{"text_format":"1","workbook":"xlsx","n_sheets":7,"sheets":["Form","Ops Centre Guide ","Address Lookup","Report","WSI Info","Process Checklist","Tables"],"not_rendered":{"charts":0,"images":6,"macros":1,"external_links":0,"defined_names":8,"comments":0,"pivot_tables":0},"unopened":[],"bounds":{"document_bytes":16777216,"sheet_cells":100000,"rows_first":2000,"rows_last":500,"rows_between":2000,"halvings":0,"cell_chars":16384,"cell_head_chars":4096},"cells_cut":0,"cells_raw":0,"read":"whole","date_system":"1900"}

{"sheet":"Form","index":0,"n_rows":75,"n_cols":4,"rows_kept":75,"cut":false,"hidden":false,"merged":[[45,1,45,3],[46,1,46,3],[56,1,56,3],[9,1,9,3],[10,1,10,3],[43,1,43,3],[51,1,51,3],[52,1,52,3],[54,1,54,3],[47,1,47,3],[72,1,72,3],[60,1,60,3],[49,1,49,3],[58,1,58,3],[57,1,57,3],[59,1,59,3],[68,1,68,3],[53,1,53,3],[65,1,65,3],[66,1,66,3]]}
[]
[null,null,null,"REFERENCE NUMBER:"]
[null,null,null,{"$f":"IF(ISBLANK(D5),\"\",YEAR(D5)&\"-\"&MONTH(D5)&\"-\"&DAY(D5)&\"_\"&D38&\"_\"&B17)","v":""}]
[null,null,null,"* Submission Date (yyyy-mm-dd):"]
[]
[null,null,null,"Request Status:"]
[null,"TIER 2 SERVICE COMPLAINT ESCALATION FORM",null,"New"]
[]
[null,"Please read prior to submitting a Tier 2 Form:"]
[null,"The use of this form is to identify service deficiencies related to the resolution of Service Complaints (SC) submitted to the WSI Operation Centre.  \nPlease use this form only after you’ve raised a Service Complaint (Tier 1) with the WSI Operations Centre and are not satisfied with the result. \nYou will need to include the following information in order for us to process your escalation:\n• Service Complaint BCB Tracking # and associated work order number(s) from WSI.\n• All emails and documents related to the issue.\nFor more information on submitting Service Complaints (Tier 1), please refer to the worksheet tab labelled Ops Centre Guide.\n"]
[null,"Upon completion the form will be assigned a RPD reference number.  \nYou will be contacted within two business days by a RPD Contract Performance Officer (CPO) regarding your issue.  The CPO will work with WSI to resolve your issue updating\nyou as progress is made. Once resolution is determined, detailed notes will be added to your initial submission and you will receive a copy of the completed form along with an email advising you of the Resolved status seeking your concurrence to advance the issue to Closed status."]
[]
[null,"Enter data into light blue fields, * indicates a mandatory field, please complete all * fields prior to submitting the form. "]
[]
[null,"WSI Work Order Information:"]
[null,"* Service Complaint # (e.g. BCB12345678)","Other Work Order #'s (e.g. BCB12345678, BCB23456789, ...)","* Multiple requests or complaints issued (Yes/No)"]
[]
[]
[null,"* Service Deficiency (Primary - select one)","Service Deficiency (Secondary - select one)","Service Deficiency Other (manual entry)"]
[]
[]
[null,"* Impact (Primary - select one)","Impact (Secondary - select one)","Impact Other (manual entry)"]
[]
[]
[null,"Facilities Key Contact Information:"]
[null,"* Name","* Telephone #","* Email address"]
[]
[]
[null,"Parent Org / Ministry name (select one)","Branch / Child Org (select one)","Other Organization / Program Name (manual entry)"]
[]
[null,"Client On-Site Contact Information (if applicable):"]
[null,"Name","Telephone #","Email address"]
[]
[]
[]
[null,"Building information:"]
[null,"* Building Address (select one)","Building Number (auto populates with address selection)","City (auto populates with address selection)"]
[null,null,{"$f":"IFERROR(VLOOKUP(B38,'Address Lookup'!$A$1:$F$1579,3,FALSE),\"\")","v":""},{"$f":"IFERROR(VLOOKUP(B38,'Address Lookup'!$A$1:$F$1579,5,FALSE),\"\")","v":""}]
[]
[null,"Tenure (auto populates with address selection)","Floor # ","Suite # "]
[null,{"$f":"IFERROR(VLOOKUP(B38,'Address Lookup'!$A$1:$F$1579,4,FALSE),\"\")","v":""}]
[]
[null,"* Description of issue (1000 character max):"]
[]
[]
[null,"The use of this form is to identify service deficiencies related to the resolution of Service Complaints submitted to the WSI Operation Centre."]
[null,"Definitions: A Service Complaint may be referred to as an SC. A Service Request may be referred to as an SR. A Work Order may be referred to as a WO."]
[null,"For additional information and resources for submitting and tracking SR's and SC's please refer to worksheet tab labelled Ops Centre Guide or the following link:"]
[null,"WSI Operations Centre Guide"]
[]
[null,"Saving, adding attachments and submitting:"]
[null,"1. Upon completion of all mandatory form fields save the form to your preferred location/file on your computer."]
[null,"2. Click on the email hyperlink FMS CPO Mailbox below and an email message will open with the subject line pre-populated.  Please do not edit the subject line."]
[null,"3. Attach the Tier2 form to the email.  Attach any other relevant documents and/or add supporting information to the body of the email."]
[null,"4. Send the email to the FMS CPO Mailbox to finalize the submission of the form."]
[]
[null,"Upon submitting the email, the form is sent directly to the Facilities Management Services Branch (FMS) of Real Property Division (RPD) for action."]
[]
[null,"You will be contacted within two business days by an FMS Contract Performance Officer (CPO) regarding your issue.  \nOnce resolution is determined, detailed notes will be added to your initial submission and you will receive a copy of the completed form along with an email advising you whether the status of the issue has advanced to Closed."]
[null,"Should you experience issues with the form or have questions regarding the process please email RPD at:"]
[null,{"$f":"HYPERLINK(\"mailto:FMS.CPOMail@gov.bc.ca?subject=Tier2 Form - Help/Questions\", \"Tier2 Form - Help/Questions\")","v":"Tier2 Form - Help/Questions"}]
[]
[null,null,{"$f":"IF(ISBLANK(D5),\"REQUIRED FIELD BLANK - Submission Date\",IF(ISBLANK(B17),\"REQUIRED FIELD BLANK - Service Complaint #\",IF(ISBLANK(D17),\"REQUIRED FIELD BLANK - Multiple Request Yes/No\",IF(ISBLANK(B20),\"REQUIRED FIELD BLANK - Service Deficiency\",IF(ISBLANK(B23),\"REQUIRED FIELD BLANK - Impact\",IF(ISBLANK(B27),\"REQUIRED FIELD BLANK - Facilities Contact Name\",IF(ISBLANK(C27),\"REQUIRED FIELD BLANK - Facilities Contact Telephone #\",IF(ISBLANK(D27),\"REQUIRED FIELD BLANK - Facilities Contact Email\",IF(B38=\"\",\"REQUIRED FIELD BLANK - Address\",IF(D38=\"\",\"REQUIRED FIELD BLANK - City\",IF(ISBLANK(B44),\"REQUIRED FIELD BLANK - Description of Issue\",\"All Required Fields Present\")))))))))))","v":"REQUIRED FIELD BLANK - Submission Date"}]
[]
[null,null,"Submitting the Form:"]
[null,"Once the required fields are completed save the form and click on the link below to open an email with the To: and Subject: fields pre-populated."]
[null,"Attach the saved Tier2 form and any other supporting documentation to the email and Send the email to complete your submission."]
[]
[null,{"$f":"HYPERLINK(\"mailto:FMS.CPOMail@gov.bc.ca?subject=Tier2_\"&D3&\" - \"&B38, \"FMS CPO Mailbox\")","v":"FMS CPO Mailbox"}]
[]
[]
[null,"Resolution Notes (completed by RPD CPO representative):"]
[]
[null,null,null,"Resolved/Closed Date (yyyy-mm-dd):"]
[null,{"$f":"\"RPD CPO Representative (based on building address): \"","v":"RPD CPO Representative (based on building address): "},{"$f":"VLOOKUP(B38,'Address Lookup'!$A$2:$F$2000,6,FALSE)","v":{"$error":"#N/A"}}]

{"sheet":"Ops Centre Guide ","index":1,"n_rows":0,"n_cols":0,"rows_kept":0,"cut":false,"hidden":false,"merged":[]}

{"sheet":"Address Lookup","index":2,"n_rows":1579,"n_cols":6,"rows_kept":1579,"cut":false,"hidden":false,"merged":[]}
["Address","Description","Building","Tenure","City","Contract Performance Officer"]
[" Suite 506 - 55 City Centre Dr.","Mississauga Ontario Office","B1002517","Leased","MISSISSAUGA"]
["#6 Federal Way","RCMP Sewage Treatment Building","B1002340","Managed","NEW AIYANSH","Elena Awchoula"]
["1 - 361 Trans Canada Hwy","Kidney Dialysis Clinc ","B1002345","Leased","DUNCAN","Allison Dunn"]
["1 Cicada Rd.","District Office","B0067242","Leased","MACKENZIE","Carolynn Oliver"]
["1 Cicada Rd.","Shed - Implements   (L2913)","B0078087","Leased","MACKENZIE","Carolynn Oliver"]
["1 Cicada Rd.","Fuel Shed  (L2913)","B0078088","Leased","MACKENZIE","Carolynn Oliver"]
["1 Cicada Rd.","Double Wide Trailer - District Office","B1002620","Owned","MACKENZIE","Carolynn Oliver"]
["1 Clearwater Pl.","RCMP Residence","B0091545","Managed","ELKFORD","Alison Nordgren"]
["1 Coast Guard Rd. - Seal Cove","RCMP Seal Cove Hangar","B0091332","Managed","PRINCE RUPERT","Elena Awchoula"]
["1 Lots 1 & 2","R.C.M.P.","B0090928","Managed","GIBSONS","Davy Mulligan"]
["1 Sawtooth Road - B","R.C.M.P. Residence - Eo434","B0092451","Managed","TELEGRAPH CREEK","Elena Awchoula"]
["1 Tanzilla Pl.","House - Residence","B0049999","Owned","DEASE LAKE","Elena Awchoula"]
["100 Cranbrook St. N.","Access Ctr","B0067516","Leased","CRANBROOK","Alison Nordgren"]
["100 Main St.","Courthouse/Office","B0022236","Owned","PENTICTON","Alison Nordgren"]
["100 Market Pl.","Courthouse/Office","B0040295","Owned","PRINCE RUPERT","Elena Awchoula"]
["10003 110th Ave.","Frances Work Beaton Building","B0092433","Leased","FORT ST. JOHN","Carolynn Oliver"]
["10004 Dudley Dr.","Residence","B0091272","Managed","HUDSON'S HOPE","Carolynn Oliver"]
["1001 110th Ave.","Health Ctr","B0078129","Owned","DAWSON CREEK","Carolynn Oliver"]
["1001 Douglas St.","Sussex","B0067621","Leased","VICTORIA","Darrel Murphy"]
["10011 - 96th Ave.","NHA Space","B1002292","Managed","FORT ST. JOHN","Carolynn Oliver"]
["1002 Teal St.","R.C.M.P Residence","B0092452","Managed","CLINTON","Mark Timmins"]
["10043 100th St.","Office","B0092593","Leased","FORT ST. JOHN","Carolynn Oliver"]
["10095 Whalley Blvd. ","Office","B0092263","Leased","SURREY","Joel Guno"]
["1010 2nd St.","R.C.M.P. District Bldg","B0091553","Managed","NELSON","Alison Nordgren"]
["1010 Mackenzie Ave.","Storage - Pesticide","B0078036","Owned","WILLIAMS LAKE","Carolynn Oliver"]
["1010 Mackenzie Ave.","Warehouse","B0082677","Owned","WILLIAMS LAKE","Carolynn Oliver"]
["1010 Mackenzie Ave.","District Warehouse B","B0082685","Owned","WILLIAMS LAKE","Carolynn Oliver"]
["1010 Mackenzie Ave.","Refrigeration","B0082693","Owned","WILLIAMS LAKE","Carolynn Oliver"]
["1010 Mackenzie Ave.","Oil Storage Shed","B0082701","Owned","WILLIAMS LAKE","Carolynn Oliver"]
["1010 Mackenzie Ave.","Storage","B0082727","Owned","WILLIAMS LAKE","Carolynn Oliver"]
["1010 Mackenzie Ave.","Cone Shed","B0082743","Owned","WILLIAMS LAKE","Carolynn Oliver"]
["10103 13th St.","Office - Field Operations","B0067279","Leased","DAWSON CREEK","Carolynn Oliver"]
["10105 MacIntosh Cres.","Residence","B0091273","Managed","HUDSON'S HOPE","Carolynn Oliver"]
["1011 4th Ave.","Plaza 400 - Incl Access Ctr","B0043406","Leased","PRINCE GEORGE","Carolynn Oliver"]
["10113 MacIntosh Cres.","Residence","B0091274","Managed","HUDSON'S HOPE","Carolynn Oliver"]
["10115 110th Ave.","Health Ctr - 1992","B0078128","Owned","FORT ST. JOHN","Carolynn Oliver"]
["1012 Douglas St","Office Building ","B1002621","Leased","VICTORIA","Darrel Murphy"]
["1015 Columbia St.","Bldg \"K\" Col. Sq Plaza","B0067723","Leased","NEW WESTMINSTER","Davy Mulligan"]
["1017 Miller Rd.","R.C.M.P. Detachment","B0090926","Managed","BOWEN ISLAND","Davy Mulligan"]
["10193 152a St.","Office","B0092571","Leased","SURREY","Joel Guno"]
["102 11th Ave. S.","Courthouse","B0034512","Owned","CRANBROOK","Alison Nordgren"]
["102 Industrial Pl.","Letts Properties Bldg ","B0065326","Leased","PENTICTON","Alison Nordgren"]
["102 Industrial Pl.","Co Storage/Workshop  (L2373)","B0078048","Leased","PENTICTON","Alison Nordgren"]
["102 Industrial Pl.","Warehouse  (L2373)","B0092228","Leased","PENTICTON","Alison Nordgren"]
["102 Industrial Pl.","Fuel Shed (L2373)","B0092245","Leased","PENTICTON","Alison Nordgren"]
["1020 Murray St.","Access Ctr  ","B0092162","Leased","SMITHERS","Elena Awchoula"]
["1021 2nd Ave.","R.C.M.P. RESIDENCE","B1002623","Managed","QUEEN CHARLOTTE","Elena Awchoula"]
["1021 Miller Rd.","R.C.M.P.  House","B0090936","Managed","BOWEN ISLAND","Davy Mulligan"]
["10221 153rd St.","Guildford Ctr","B0067325","Leased","SURREY","Joel Guno"]
["102-4450 Greig Ave.","Office","B0091979","Leased","TERRACE","Elena Awchoula"]
["1030 West Georgia St.","OFFICE","B1002244","Leased","VANCOUVER","Davy Mulligan"]
["10317 Gething St.","R.C.M.P. Detachment 50426","B0091313","Managed","HUDSON'S HOPE","Carolynn Oliver"]
["1040 Shopper'S Row","1000 Shopper'S Row","B0065557","Leased","CAMPBELL RIVER","Darrel Murphy"]
["10428 153 St.","Office ","B0092486","Leased","SURREY","Joel Guno"]
["1045 8th Ave.","Residence","B0091331","Managed","VALEMOUNT","Elena Awchoula"]
["10453 Whalley Blvd. ","Office","B0092634","Leased","SURREY","Joel Guno"]
["10470 152nd St.","Office/Warehouse/Lab","B0068147","Leased","SURREY","Joel Guno"]
["10475 138th St.","Office","B0092143","Leased","SURREY","Joel Guno"]
["1048 Hwy. 16 E.","R.C.M.P. Detachment 50176","B0091316","Managed","MCBRIDE","Elena Awchoula"]
["105 Martin St.","OFFICE","B1002266","Leased","PENTICTON","Alison Nordgren"]
["1050 Eldorado St.","Access Ctr","B0067532","Leased","TRAIL","Alison Nordgren"]
["1050 W. Pender St.","Office","B0067499","Leased","VANCOUVER","Davy Mulligan"]
["1051 Farwell St.","Health Ctr","B0068035","Leased","TRAIL","Alison Nordgren"]
["1055 W. Hastings St.","Office","B0092454","Leased","VANCOUVER","Davy Mulligan"]
["10551 Shellbridge Way","Office","B0068075","Leased","RICHMOND","Davy Mulligan"]
["106 Agar Rd.","RCMP Maintained Residence","B1002339","Managed","SALTSPRING ISLAND","Allison Dunn"]
["1060 Manhattan Dr.","Office","B1002356","Leased","KELOWNA","Mark Timmins"]
["10600 100th St.","Courthouse/Access Ctr","B0038695","Owned","FORT ST. JOHN","Carolynn Oliver"]
["10600 100th St.","Storage  (Recycle Building)","B0073742","Owned","FORT ST. JOHN","Carolynn Oliver"]
["1065 Columbia St.","Bldg \"A\" Col. Sq Plaza","B0067506","Leased","NEW WESTMINSTER","Davy Mulligan"]
["1066 W. Hastings St.","Oceanic Plaza","B0092044","Leased","VANCOUVER","Davy Mulligan"]
["1067 Matsque Ave.","R.C.M.P. Married Quarters E0261","B0090520","Managed","PORT ALICE","Darrel Murphy"]
["107 - 1742 Cliffe Ave.","CLBC Office","B1002530","Leased","COURTENAY","Darrel Murphy"]
["1070 Main St.","Healthy Living Centre","B1002260","Leased","SMITHERS","Elena Awchoula"]
["108 1765 Springfield Rd.","Telecom Workshop Rcmp Ref# E2436","B0092099","Managed","KELOWNA","Mark Timmins"]
["108 2nd Ave.","Tweedsmuir Bldg","B0054353","Leased","BURNS LAKE","Elena Awchoula"]
["10808 15th St.","Storage Space","B0092684","Leased","DAWSON CREEK","Carolynn Oliver"]
["109 West 6th Ave.","Office","B0087502","Owned","NAKUSP","Alison Nordgren"]
["109 West 6th Ave.","Warehouse","B0087510","Owned","NAKUSP","Alison Nordgren"]
["109 West 6th Ave.","Garage - 4 Bay","B0087528","Owned","NAKUSP","Alison Nordgren"]
["109 West 6th Ave.","Oil Storage Shed","B0087544","Owned","NAKUSP","Alison Nordgren"]
["109 West 6th Ave.","Wood Shed","B0087551","Owned","NAKUSP","Alison Nordgren"]
["1092 Maquinna Ave.","R.C.M.P. Detachment E2246","B0090543","Managed","PORT ALICE","Darrel Murphy"]
["1092 Maquinua Ave.","R.C.M.P. Married Quarters E2246","B0090521","Managed","PORT ALICE","Darrel Murphy"]
["1100 - 45337 Calais Cr.","RCMP DINING ROOMS E0537","B1002313","Managed","CHILLIWACK","Joel Guno"]
["1100 Hunter Place Rd.","Office","B0068225","Leased","SQUAMISH","Davy Mulligan"]
["1100 Island Hwy.","Tyee Plaza","B0091579","Leased","CAMPBELL RIVER","Darrel Murphy"]
["1100 Mackenzie Ave.","Warehouse","B0067943","Leased","WILLIAMS LAKE","Carolynn Oliver"]
["1101 - 45337 Calais Cr.","RCMP ADMIN BUILDING EO507","B1002295","Managed","CHILLIWACK","Joel Guno"]
["1101 Raven St.","Residence","B0091317","Managed","STEWART","Elena Awchoula"]
["1102 - 45337 Calais Cr.","RCMP CLASSROOM EO517","B1002296","Managed","CHILLIWACK","Joel Guno"]
["1102 Hwy. 22","Weigh Scale","B0078195","Managed","ROSSLAND","Alison Nordgren"]
["1102 Railway St.","Residence","B0091310","Managed","STEWART","Elena Awchoula"]
["1103 - 45337 Calais Cr.","RCMP Classroom E0518","B1002297","Managed","CHILLIWACK","Joel Guno"]
["1104 - 45337 Calais Cr.","RCMP GUEST ROOMS E0553","B1002298","Managed","CHILLIWACK","Joel Guno"]
["1104 9th St.","Office ","B0092226","Leased","GOLDEN","Mark Timmins"]
["1105 - 45337 Calais Cr.","RCMP BARRACKS E0554","B1002299","Managed","CHILLIWACK","Joel Guno"]
["1106 - 45337 Calais Cr.","RCMP BARRACKS E0555","B1002300","Managed","CHILLIWACK","Joel Guno"]
["1106 Cook St.","Professional Ctr","B0067163","Leased","VICTORIA","Darrel Murphy"]
["1107 - 45337 Calais Cr.","RCMP ADMIN BUILDING 1107 E0556","B1002301","Managed","CHILLIWACK","Joel Guno"]
["1108 - 3rd. Ave.","Outreach Health Centre","B1002251","Leased","PRINCE GEORGE","Carolynn Oliver"]
["1108 - 45337 Calais Cr.","RCMP BARRACKS E0557","B1002302","Managed","CHILLIWACK","Joel Guno"]
["1108 Burke Ave.","RCMP Detachment","B1002287","Managed","BELLA COOLA","Carolynn Oliver"]
["1109 - 45337 Calais Cr.","RCMP BARRACKS E0558","B1002303","Managed","CHILLIWACK","Joel Guno"]
["1110 - 45337 Calais Cr.","RCMP BARRACKS E0559","B1002304","Managed","CHILLIWACK","Joel Guno"]
["1110 Belvedere St.","MCFD Office","B1002724","Leased","ENDERBY","Mark Timmins"]
["1111 - 45337 Calais Cr.","RCMP BARRACKS E0562","B1002305","Managed","CHILLIWACK","Joel Guno"]
["1112 - 45337 Calais Cr.","RCMP GUEST ROOMS E0563","B1002306","Managed","CHILLIWACK","Joel Guno"]
["1113 - 45337 Calais Cr.","RCMP GUEST ROOMS E0564","B1002307","Managed","CHILLIWACK","Joel Guno"]
["1113 West 2nd St.","Courthouse","B0092054","Leased","REVELSTOKE","Mark Timmins"]
["1114 - 45337 Calais Cr.","RCMP GUEST ROOMS E0565","B1002308","Managed","CHILLIWACK","Joel Guno"]
["1115 - 45337 Calais Cr.","RCMP GUEST ROOMS E0566","B1002309","Managed","CHILLIWACK","Joel Guno"]
["1116 - 45337 Calais Cr.","RCMP GUEST ROOMS E0567","B1002310","Managed","CHILLIWACK","Joel Guno"]
["1117 - 45337 Calais Cr.","RCMP GUEST ROOMS  E0568","B1002311","Managed","CHILLIWACK","Joel Guno"]
["1118 - 45337 Calais Cr.","RCMP TRAINING STORES E0519","B1002312","Managed","CHILLIWACK","Joel Guno"]
["1119 - 45370 Calais Cr.","RCMP DRILL HALL E0538","B1002294","Managed","CHILLIWACK","Joel Guno"]
["1120 - 5495 Korea Rd.","RCMP DRIVER TRAINING BUILDING","B1002323","Managed","CHILLIWACK","Joel Guno"]
["1121 - 45337 Calais Cr.","RCMP SBTA BUILDING E0521","B1002318","Managed","CHILLIWACK","Joel Guno"]
["1122 - 45348 Caen Rd.","RCMP TRAINING BLDG E2416/2918","B1002317","Managed","CHILLIWACK","Joel Guno"]
["1123 - 45374 Calais Cr.","RCMP GUEST ROOMS E2371","B1002314","Managed","CHILLIWACK","Joel Guno"]
["11245 84th Ave.","Pgob","B0049718","Owned","DELTA","Joel Guno"]
["1125 Paradise Ave.","Rcmp Detachment (Ref#)","B0092152","Managed","SICAMOUS","Mark Timmins"]
["1133 Eagle Pass Way","Parkland Health Ctr","B0058354","Leased","SICAMOUS","Mark Timmins"]
["1138 McBride Cr.","RCMP Residence","B1002513","Managed","MCBRIDE","Elena Awchoula"]
["1146 Mcbride Cres.","Residence","B0091283","Managed","MCBRIDE","Elena Awchoula"]
["1150 - 5450 Korea Rd.","RCMP POST GARAGE E0522","B1002316","Managed","CHILLIWACK","Joel Guno"]
["1150 Mckenzie Ave.","Office","B0065532","Leased","SAANICH","Allison Dunn"]
["1151 - 45101 Caen Ave.","RCMP REGIONAL STORES E0569/0524","B1002315","Managed","CHILLIWACK","Joel Guno"]
["1152 - 45337 Calais Cr.","RCMP RADIO REPEATER E0389","B1002319","Managed","CHILLIWACK","Joel Guno"]
["1153 - 45140 Keith Wilson Rd.","RCMP - PRTC Washroom Building","B1002348","Managed","CHILLIWACK","Joel Guno"]
["1155 W. Pender St.","Office","B0092659","Leased","VANCOUVER","Joel Guno"]
["116 Queens Rd.","Office","B0092646","Leased","DUNCAN","Allison Dunn"]
["1160 7th Ave.","Barbicon Bldg","B0067215","Leased","PRINCE GEORGE","Carolynn Oliver"]
["11609 115th St.","R.C.M.P. - Detachment","B0092243","Managed","OSOYOOS","Alison Nordgren"]
["1164 Miller Landing Rd.","RCMP Residential","B1002246","Managed","BOWEN ISLAND","Davy Mulligan"]
["1165 Battle St.","Office","B0052522","Leased","KAMLOOPS","Alison Nordgren"]
["117 10th Ave. S.","Higgins Bldg","B0057968","Leased","CRANBROOK","Alison Nordgren"]
["117 Nass Rd.","R.C.M.P. Detachment 50896","B0091318","Managed","NEW AIYANSH","Elena Awchoula"]
["1175 Douglas St.","Office ","B1002722","Leased","VICTORIA","Darrel Murphy"]
["1177 W. Broadway","Office","B0068068","Leased","VANCOUVER","Davy Mulligan"]
["117A Nass Rd.","Residence 1 - R.C.M.P. 50894","B0091284","Managed","NEW AIYANSH","Elena Awchoula"]
["117B Nass Rd.","Residence 2 - R.C.M.P. 50897","B0091285","Managed","NEW AIYANSH","Elena Awchoula"]
["117C Nass Rd. ","Residence - R.C.M.P. 050893","B0091775","Managed","NEW AIYANSH","Elena Awchoula"]
["117D Nass Rd.","Residence - Modular Home","B1002569","Managed","NEW AIYANSH","Elena Awchoula"]
["1180 Ironwood St.","Farrwell (Access Center)","B0058453","Leased","CAMPBELL RIVER","Darrel Murphy"]
["11841 222nd St.","Golden Ears Re Stn","B0068240","Leased","MAPLE RIDGE","Davy Mulligan"]
["11861 88 Ave.","Office","B0092557","Leased","DELTA","Joel Guno"]
["119 Ash Cres.","Residence","B0091322","Managed","TUMBLER RIDGE","Carolynn Oliver"]
["1195 Esquimalt Rd.","Office","B0067600","Leased","ESQUIMALT","Allison Dunn"]
["11996 Edge St.","S.L. 2 Courthouse Square","B0067083","Leased","MAPLE RIDGE","Davy Mulligan"]
["12 Park St.","Ambulance Stn","B0067214","Leased","PORT CLEMENTS","Elena Awchoula"]
["120 6th St NE","MCFD Office","B1002727","Leased","SALMON ARM","Mark Timmins"]
["1200 Kelly Rd.","Residence - R.C.M.P.","B0092564","Managed","CLINTON","Mark Timmins"]
["1200 La Salle Ave.","Old School Site (South Fort George)","B0092307","Leased","PRINCE GEORGE","Carolynn Oliver"]
["1200 Lynn Valley Rd.","Valley Ctr","B0067717","Leased","NORTH VANCOUVER","Davy Mulligan"]
["1200 W. 73rd Ave.","Airport Sq","B0056960","Leased","VANCOUVER","Davy Mulligan"]
["1201 103rd Ave.","Courthouse/Access Ctr/Pgob","B0038539","Owned","DAWSON CREEK","Carolynn Oliver"]
["1201 103rd Ave.","Storage","B0078517","Owned","DAWSON CREEK","Carolynn Oliver"]
["1204 Kelly Lake Rd.","R.C.M.P. Detachment 50073","B0091518","Managed","CLINTON","Mark Timmins"]
["1211 Gunn Rd.","Youth Detention Ctr - 1984 - Primary","B0077867","Owned","PRINCE GEORGE","Elena Awchoula"]
["1211 Gunn Rd.","Bowron House","B0078593","Owned","PRINCE GEORGE","Carolynn Oliver"]
["1211 Gunn Rd.","Log Cabin","B0091653","Owned","PRINCE GEORGE","Elena Awchoula"]
["1211 Gunn Rd.","Sea Can/Generator","B1002738","Owned","PRINCE GEORGE"]
["1212 2nd St. N.","Health Ctr ","B0092429","Leased","CRANBROOK","Alison Nordgren"]
["121-250 Stuart Dr.","Health Unit","B1002290","Leased","FORT ST. JAMES","Elena Awchoula"]
["1214 Shuswap Ave.","MCFD Office","B1002728","Leased","SICAMOUS","Mark Timmins"]
["1215 Broad St.","Office","B0091904","Leased","VICTORIA","Darrel Murphy"]
["1229 Oceanview Dr.","District Office","B0067301","Leased","QUEEN CHARLOTTE","Elena Awchoula"]
["1229 Oceanview Dr.","Shed - Implements  (L3201)","B0078125","Leased","QUEEN CHARLOTTE","Elena Awchoula"]
["1229 Oceanview Dr.","Fuel  (L3201)","B0078126","Leased","QUEEN CHARLOTTE","Elena Awchoula"]
["1229 Oceanview Dr.","Shop/Office","B0091752","Owned","QUEEN CHARLOTTE","Elena Awchoula"]
["124 Murray Dr.","Residence","B0091325","Managed","TUMBLER RIDGE","Carolynn Oliver"]
["1243 Northwest Blvd.","Warehouse/Yard","B0092319","Leased","CRESTON","Alison Nordgren"]
["1243 Northwest Blvd.","Garage   L4776","B0092324","Leased","CRESTON","Alison Nordgren"]
["1246 6th Ave.","Residence","B0091327","Managed","VALEMOUNT","Elena Awchoula"]
["12491 Barkerville Hwy. 26","R.C.M.P. Detachment 50366","B0091343","Managed","WELLS","Carolynn Oliver"]
["125 Park Rd.","Kidney Dialysis Unit","B0067414","Leased","KELOWNA","Mark Timmins"]
["125 Wallace St","Office","B0092714","Leased","NANAIMO","Allison Dunn"]
["1250 Quadra St.","Quadra","B0067634","Leased","VICTORIA","Darrel Murphy"]
["1253 1253a Res Hwy 20","Residence - R.C.M.P. 50196 Beige","B0091246","Managed","HAGENSBORG","Carolynn Oliver"]
["1253 1253b Res Hwy 20","Residence - R.C.M.P. 50197 Yellow","B0091247","Managed","HAGENSBORG","Carolynn Oliver"]
["1255 Dalhousie Dr.","Office - Multi Tenant/Ehs","B0030098","Owned","KAMLOOPS","Alison Nordgren"]
["1255 Dalhousie Dr.","Fuel Shed","B0073841","Owned","KAMLOOPS","Alison Nordgren"]
["1255 Dalhousie Dr.","Storage - Pesticide","B0073858","Owned","KAMLOOPS","Alison Nordgren"]
["1255 Dalhousie Dr.","Modular Office","B1002684","Managed","KAMLOOPS","Alison Nordgren"]
["1259 Dalhousie Dr.","Environmental Regional Bldg","B0049932","Owned","KAMLOOPS","Alison Nordgren"]
["1265 Dalhousie Dr.","Office/Warehouse","B0078230","Owned","KAMLOOPS","Alison Nordgren"]
["1265 Dalhousie Dr.","Fuel Shed","B0078231","Owned","KAMLOOPS","Alison Nordgren"]
["1265 Dalhousie Dr.","Shed - Implements","B0078232","Owned","KAMLOOPS","Alison Nordgren"]
["1265 Dalhousie Dr.","Storage - Pesticide","B0078233","Owned","KAMLOOPS","Alison Nordgren"]
["1274 Main St.","Office","B0067533","Leased","PENTICTON","Alison Nordgren"]
["12758 - 80th Ave.","Storage - Warehouse","B1002609","Leased","SURREY","Joel Guno"]
["1280 Trans Canada Hwy. W.","R.C.M.P. - Telecoms Garage","B0091559","Managed","KAMLOOPS","Mark Timmins"]
["1280 Trans Canada Hwy. W.","R.C.M.P. - District Office","B0091560","Managed","KAMLOOPS","Mark Timmins"]
["129 10th Ave. S.","R & S Holdings Bldg","B0065581","Leased","CRANBROOK","Alison Nordgren"]
["12952 Rice Mill Rd.","George Massey Tunnel Generator Storage","B1002702","Managed","RICHMOND","Davy Mulligan"]
["1296 7th Ave.","Residence","B0091328","Managed","VALEMOUNT","Elena Awchoula"]
["1300 4th Ave.","Courthouse","B0092144","Leased","VALEMOUNT","Elena Awchoula"]
["1300 8th Ave.","Residence","B0091333","Managed","VALEMOUNT","Elena Awchoula"]
["1301 Main St.","Office (215)","B0067390","Leased","PENTICTON","Alison Nordgren"]
["1302 5th Ave.","R.C.M.P. Detachment","B0091547","Managed","FERNIE","Alison Nordgren"]
["1308 S.E. Marine Dr.","Office","B0092237","Leased","VANCOUVER","Davy Mulligan"]
["1311 Commercial Dr.","Office","B0050989","Leased","VANCOUVER","Davy Mulligan"]
["1312 Blanshard St.","Carnegie","B0067162","Leased","VICTORIA","Darrel Murphy"]
["1313 - 6th Ave.","District Garage","B0092326","Leased","HOPE","Joel Guno"]
["1315 Summit Dr.","Tudor Village (5/8)","B0067528","Leased","KAMLOOPS","Alison Nordgren"]
["132 W. 1st Ave.","Chatham Village - Rowhouse 1","B0067235","Leased","PRINCE RUPERT","Elena Awchoula"]
["1321 Blanshard St.","The Atrium ","B1002359","Leased","VICTORIA","Darrel Murphy"]
["13211 Henry Ave.","Office","B0090964","Leased","SUMMERLAND","Alison Nordgren"]
["1322 9th Ave.","R.C.M.P. Residence","B0092504","Managed","VALEMOUNT","Elena Awchoula"]
["1326 Island Hwy. E.","Weigh Scale - S Bound","B0078296","Managed","PARKSVILLE","Darrel Murphy"]
["133 3rd Ave.","Staff House","B0084178","Owned","QUEEN CHARLOTTE","Elena Awchoula"]
["13350 Hwy. 2","Weigh Scale","B0078080","Managed","POUCE COUPE","Carolynn Oliver"]
["1340 Eagle Cliff Rd.","R.C.M.P. - S.W. District - House","B0091767","Managed","BOWEN ISLAND","Davy Mulligan"]
["1340 Ellis St.","Office","B0078198","Owned","KELOWNA","Mark Timmins"]
["13401 108th Ave.","Station Tower","B0068181","Leased","SURREY","Joel Guno"]
["1345 St. Paul St.","Office","B0090130","Leased","KELOWNA","Mark Timmins"]
["13450 102nd Ave.","Office","B0092145","Leased","SURREY","Joel Guno"]
["135 Loring Way","Residence","B0091558","Managed","LYTTON","Mark Timmins"]
["13545 64th Ave.","King's Corner PGOB","B0091717","Owned","SURREY"]
["1355 Water St.","Kelowna Law Courts","B0078239","Owned","KELOWNA","Mark Timmins"]
["1358 St. Paul St.","Office","B0092298","Leased","KELOWNA","Mark Timmins"]
["136 Loring Way","Residence","B0091557","Managed","LYTTON","Mark Timmins"]
["136 Spruce St.","Civic Bldg","B0054056","Leased","SPARWOOD","Alison Nordgren"]
["136 Tapton Ave.","Princeton Plaza","B0091785","Leased","PRINCETON","Mark Timmins"]
["1360 Pemberton Ave.","Office","B0067736","Leased","SQUAMISH","Davy Mulligan"]
["13630 72nd Ave.","Newton Crossing","B0068227","Leased","SURREY","Joel Guno"]
["1364 Greenwood St.","R.C.M.P.","B0090938","Managed","PEMBERTON","Davy Mulligan"]
["13650 102 Ave.","Office","B0092700","Leased","SURREY","Joel Guno"]
["1366 Aster St.","Office","B0090035","Leased","PEMBERTON","Davy Mulligan"]
["13680 105a Ave.","Surrey Ctr (101/201)","B0091173","Leased","SURREY","Joel Guno"]
["137 3rd Ave.","Residence 3 - See Notes","B0084186","Owned","QUEEN CHARLOTTE","Elena Awchoula"]
["13745 72nd Ave.","Park Place","B0067326","Leased","SURREY","Joel Guno"]
["13777 256th St.","Fraser Regional Correctional Ctr","B0077895","Owned","MAPLE RIDGE","Davy Mulligan"]
["13777 256th St.","Greenhouse","B0078451","Owned","MAPLE RIDGE","Davy Mulligan"]
["13777 256th St.","Ablutions - Field","B0078455","Owned","MAPLE RIDGE","Davy Mulligan"]
["13777 256th St.","Services Bldg.","B0092049","Owned","MAPLE RIDGE","Davy Mulligan"]
["13777 256th St.","SIERRA HOUSE","B0092662","Owned","MAPLE RIDGE","Davy Mulligan"]
["13777 256th St.","November House","B1002240","Owned","MAPLE RIDGE","Davy Mulligan"]
["13777 256th St.","Works Building","B1002330","Owned","MAPLE RIDGE","Davy Mulligan"]
["13777 256th St.","CMC Building","B1002730","Owned","MAPLE RIDGE","Davy Mulligan"]
["14 Tatcho St.","Residence 14 - R.C.M.P. 50395","B0091249","Managed","DEASE LAKE","Elena Awchoula"]
["1400 Dogwood St.  ","Office   ","B0092632","Leased","CAMPBELL RIVER","Darrel Murphy"]
["1401 Rockland Ave.","Government House","B0043356","Owned","VICTORIA","Allison Dunn"]
["1401 Rockland Ave.","Residence - Chauffeurs'","B0049783","Owned","VICTORIA","Allison Dunn"]
["1401 Rockland Ave.","Garage","B0049791","Owned","VICTORIA","Allison Dunn"]
["1401 Rockland Ave.","Root Cellar","B0049809","Owned","VICTORIA","Allison Dunn"]
["1401 Rockland Ave.","Carriage House/Stable","B0049817","Owned","VICTORIA","Allison Dunn"]
["1401 Rockland Ave.","Coal Shed","B0049825","Owned","VICTORIA","Allison Dunn"]
["1401 Rockland Ave.","Laundry","B0049833","Owned","VICTORIA","Allison Dunn"]
["1401 Rockland Ave.","Residence/Poultry Barn","B0049841","Owned","VICTORIA","Allison Dunn"]
["1404 Canyon St.","Office","B0067039","Leased","CRESTON","Alison Nordgren"]
["1405 Douglas St.","Td Bank","B0055756","Leased","VICTORIA","Darrel Murphy"]
["141 Seaview St","R.C.M.P. Residence","B0092277","Managed","SAYWARD","Darrel Murphy"]
["1410 Raven St.","Residence","B0091319","Managed","STEWART","Elena Awchoula"]
["1411 - 3rd Ave.","Office","B1002278","Leased","PRINCE GEORGE","Carolynn Oliver"]
["1419 11th Ave. North","RCMP Detachment","B1002490","Managed","GOLDEN","Mark Timmins"]
["1420 7th Ave.","Residence","B0091330","Managed","VALEMOUNT","Elena Awchoula"]
["1420 St. Paul St.","Office","B0091778","Leased","KELOWNA","Mark Timmins"]
["1423 Cariboo Hwy.","Office (Leaseback/Actl Used)","B0091816","Leased","CLINTON","Mark Timmins"]
["14245 56 Ave.","Ministry of Justice","B1002512","Leased","SURREY","Joel Guno"]
["14245 56 Ave.,","RCMP 1st floor","B1002581","Managed","SURREY","Joel Guno"]
["14292 Green Timbers Way","Provincial Emergency Program Bldg - Green Timbers","B0092637","Managed","SURREY","Joel Guno"]
["14323 57th Ave.","Surrey Pre-Trial","B0078169","Owned","SURREY","Joel Guno"]
["14340 57th Ave.","Courthouse","B0078168","Owned","SURREY","Joel Guno"]
["1435 5th Ave.","R.C.M.P. Detachment 50026","B0091341","Managed","VALEMOUNT","Elena Awchoula"]
["144 Ash Cres.","Residence","B0091323","Managed","TUMBLER RIDGE","Carolynn Oliver"]
["1440 14th Ave.","Health Ctr","B0048777","Owned","VERNON","Mark Timmins"]
["1440 14th Ave.","Iha Trailer On Vernon Health Unit Site","B0092639","Managed","VERNON","Mark Timmins"]
["1440 14th Ave.","Vernon Health Unit - Trailer","B1002333","Managed","VERNON","Mark Timmins"]
["1441 7th Ave.","Victoria Square Bldg","B0090205","Leased","PRINCE GEORGE","Carolynn Oliver"]
["1444 Edmonton St.","Health Ctr","B0046987","Owned","PRINCE GEORGE","Elena Awchoula"]
["1445 10th Ave.","Kandola Plaza","B0067967","Leased","PRINCE GEORGE","Carolynn Oliver"]
["145 Fir St.","R.C.M.P. Detachment E0666","B0090497","Managed","ALERT BAY","Darrel Murphy"]
["1451 Kingsway Ave.","Pre-Trial","B0091374","Owned","PORT COQUITLAM","Davy Mulligan"]
["1451 Kingsway Ave.","Work Program Building (NFPC)","B1002331","Owned","PORT COQUITLAM","Davy Mulligan"]
["14672 108a Ave.","Office","B0068186","Leased","SURREY","Joel Guno"]
["147 Hwy. 35","R.C.M.P. Detachment 50006","B0091302","Managed","BURNS LAKE","Elena Awchoula"]
["147 Park Rd.","MCFD Office","B0091462","Leased","KELOWNA","Mark Timmins"]
["1471 Rockland Ave.","Residence - Chef'S","B0048066","Owned","VICTORIA","Allison Dunn"]
["1472 Columbia Ave.","Office","B0092582","Leased","CASTLEGAR","Alison Nordgren"]
["1475 10th Ave.","Office","B0092670","Leased","PRINCE GEORGE","Carolynn Oliver"]
["1475 Ellis St.","Valley First Credit Union","B0067415","Leased","KELOWNA","Mark Timmins"]
["1478 Hartley Rd.","Office","B0092040","Leased","COQUITLAM","Davy Mulligan"]
["1483 Douglas St.","City Centre Bldg.","B0067135","Leased","VICTORIA","Darrel Murphy"]
["1488 4th Ave.","Office (Bank Of Nova Scotia Bldg)","B0092494","Leased","PRINCE GEORGE","Carolynn Oliver"]
["15 Carrier Cres","RCMP DETACHMENT","B1002269","Managed","FRASER LAKE","Elena Awchoula"]
["15 Craig St.","Office","B0092720","Leased","DUNCAN","Allison Dunn"]
["15 Munroe St.","RCMP Detachment","B1002363","Managed","PORT SIMPSON","Elena Awchoula"]
["15 Tatcho St.","Residence 15 - R.C.M.P. 50397","B0091250","Managed","DEASE LAKE","Elena Awchoula"]
["1500 Hardy Pl.","L5303 - Office","B1002238","Leased","KELOWNA","Mark Timmins"]
["1500 Woolridge St.","Office - TRAN","B1002452","Leased","COQUITLAM","Davy Mulligan"]
["1507 Glacier Dr.","RCMP Residence","B1002457","Managed","STEWART","Elena Awchoula"]
["1508 102nd Ave.","Olympic Bldg (104)","B0061200","Leased","DAWSON CREEK","Carolynn Oliver"]
["15117 - 101 Ave.","Office","B1002670","Leased","SURREY","Joel Guno"]
["1514 Wallace St.","Residence","B0091280","Managed","MASSET","Elena Awchoula"]
["1515 Blanshard St.","Richard Blanshard","B0011221","Owned","VICTORIA","Allison Dunn"]
["1517 Water St.","Office  #200","B0092033","Leased","KELOWNA","Mark Timmins"]
["152 Main St.","Courthouse Annex","B0027136","Owned","PENTICTON","Alison Nordgren"]
["152 St. & 112 Ave.","TRAN, Properties & Land Management","B1002742","Managed","SURREY"]
["1520 Bay Ave.","Office","B0067368","Leased","TRAIL","Alison Nordgren"]
["1520 Blanshard St.","Rotherham","B0063404","Leased","VICTORIA","Darrel Murphy"]
["15355 102a Ave.","Office ","B0068019","Leased","SURREY","Joel Guno"]
["154 Middleton Ave.","Office","B0092104","Leased","PARKSVILLE","Darrel Murphy"]
["15420 Fraser Hwy.","Office","B0068071","Leased","SURREY","Joel Guno"]
["15455 Vine Ave.","Office","B0067086","Leased","WHITE ROCK","Joel Guno"]
["155 Mcdermid Dr.","Highland School","B0092694","Leased","PRINCE GEORGE","Carolynn Oliver"]
["1560 Hwy. 16 E.","District Office ","B0067227","Leased","VANDERHOOF","Elena Awchoula"]
["1560 Hwy. 16 E.","Shed - Implements  ","B0078144","Leased","VANDERHOOF","Elena Awchoula"]
["1560 Hwy. 16 E.","Fuel Shed  ","B0078145","Leased","VANDERHOOF","Elena Awchoula"]
["1560 Hwy. 16 E.","Compliance & Enforcement","B0078504","Leased","VANDERHOOF","Elena Awchoula"]
["1560 Hwy. 16 E.","Office","B0092395","Leased","VANDERHOOF","Elena Awchoula"]
["1560 Hwy. 16 E.","Protection","B0092397","Leased","VANDERHOOF","Elena Awchoula"]
["1560 Hwy. 16 E.","Stewardship Scaling ","B0092510","Leased","VANDERHOOF","Elena Awchoula"]
["1565 Millard","Rcmp Residence","B0092575","Managed","MASSET","Elena Awchoula"]
["1577 7th Ave.","Skills Development Building","B0067284","Leased","PRINCE GEORGE","Carolynn Oliver"]
["1577 Millard St.","R.C.M.P. Residence E0404","B0092673","Managed","MASSET","Elena Awchoula"]
["1581 Hart Hwy. 97 N.","Weigh Scale","B0078075","Managed","PRINCE GEORGE","Carolynn Oliver"]
["15875 Hutda Lake Rd.","Chapel","B0036145","Managed","HUTDA LAKE","Carolynn Oliver"]
["15875 Hutda Lake Rd.","Generator Shed","B0036228","Managed","HUTDA LAKE","Carolynn Oliver"]
["15875 Hutda Lake Rd.","Sawmill","B0036236","Managed","HUTDA LAKE","Carolynn Oliver"]
["15875 Hutda Lake Rd.","Tools","B0036251","Managed","HUTDA LAKE","Carolynn Oliver"]
["15875 Hutda Lake Rd.","Carpenter Shop","B0036269","Managed","HUTDA LAKE","Carolynn Oliver"]
["15875 Hutda Lake Rd.","Oil Storage Shed","B0036608","Managed","HUTDA LAKE","Carolynn Oliver"]
["15875 Hutda Lake Rd.","Gym","B0048744","Managed","HUTDA LAKE","Carolynn Oliver"]
["15875 Hutda Lake Rd.","Sleeping Unit - Hutb","B0076042","Managed","HUTDA LAKE","Carolynn Oliver"]
["15875 Hutda Lake Rd.","Sleeping Unit - Hut C","B0076059","Managed","HUTDA LAKE","Carolynn Oliver"]
["15875 Hutda Lake Rd.","Sleeping Unit - Hut D","B0076067","Managed","HUTDA LAKE","Carolynn Oliver"]
["15875 Hutda Lake Rd.","Office","B0076646","Managed","HUTDA LAKE","Carolynn Oliver"]
["15875 Hutda Lake Rd.","Salmonid Enhancement Bldg","B0077882","Managed","HUTDA LAKE","Carolynn Oliver"]
["15875 Hutda Lake Rd.","Pump House","B0077883","Managed","HUTDA LAKE","Carolynn Oliver"]
["15875 Hutda Lake Rd.","Hose Testing Stn","B0077884","Managed","HUTDA LAKE","Carolynn Oliver"]
["15875 Hutda Lake Rd.","Hose Drying Tower","B0077995","Managed","HUTDA LAKE","Carolynn Oliver"]
["15875 Hutda Lake Rd.","Office - Sawmill","B0077996","Managed","HUTDA LAKE","Carolynn Oliver"]
["15875 Hutda Lake Rd.","Fuel Shed","B0077997","Managed","HUTDA LAKE","Carolynn Oliver"]
["15875 Hutda Lake Rd.","Lift Station","B0077998","Managed","HUTDA LAKE","Carolynn Oliver"]
["15875 Hutda Lake Rd.","Greenhouse","B0077999","Managed","HUTDA LAKE","Carolynn Oliver"]
["15875 Hutda Lake Rd.","Hobby Unit - Hut J","B0078007","Managed","HUTDA LAKE","Carolynn Oliver"]
["15875 Hutda Lake Rd.","Tv/Libraryunit - Hut I","B0078008","Managed","HUTDA LAKE","Carolynn Oliver"]
["15875 Hutda Lake Rd.","Sleeping Unit - Hut H","B0078009","Managed","HUTDA LAKE","Carolynn Oliver"]
["15875 Hutda Lake Rd.","Sleeping Unit - Hut G","B0078010","Managed","HUTDA LAKE","Carolynn Oliver"]
["15875 Hutda Lake Rd.","Sleeping Unit - Hut F","B0078011","Managed","HUTDA LAKE","Carolynn Oliver"]
["15875 Hutda Lake Rd.","Sleeping Unit - Hut E","B0078012","Managed","HUTDA LAKE","Carolynn Oliver"]
["15875 Hutda Lake Rd.","Generator Shed","B0078034","Managed","HUTDA LAKE","Carolynn Oliver"]
["15875 Hutda Lake Rd.","Equipment Storage Shed","B0089904","Managed","HUTDA LAKE","Carolynn Oliver"]
["1594 7th Ave.","Office","B0067955","Leased","PRINCE GEORGE","Carolynn Oliver"]
["15955 Fraser Hwy.","Office Space","B0092685","Leased","SURREY","Joel Guno"]
["16 Eagle Ct.","R.C.M.P. Detachment- Ref#05-0856","B0091567","Managed","OSOYOOS","Alison Nordgren"]
["160 E. Columbia St.","Office","B0067975","Leased","VANDERHOOF","Elena Awchoula"]
["1600 - 3rd Ave.","Native Friendship Centre","B1002250","Leased","PRINCE GEORGE","Carolynn Oliver"]
["1600 15th Ave.","Office and Kidney Dialysis Unit","B0091420","Leased","PRINCE GEORGE","Carolynn Oliver"]
["1602 McDonald Ave.","R.C.M.P. Residence","B0092453","Managed","CLINTON","Mark Timmins"]
["1604 Brothen Rd.","House - Residence","B0076323","Owned","HAGENSBORG","Carolynn Oliver"]
["1608 Central Ave.","R.C.M.P. Detachment","B0091550","Managed","GRAND FORKS","Alison Nordgren"]
["16088 84th Ave.","Fleetwood Professional Ctr","B0068124","Leased","SURREY","Joel Guno"]
["161 4th St.","Walbohm","B0091817","Leased","DUNCAN","Allison Dunn"]
["161 Hwy. 16 W.","Office  Access Centre","B0092515","Leased","BURNS LAKE","Elena Awchoula"]
["1611 Bay St.","R.C.M.P. Married Quarters E0811","B0090524","Managed","UCLUELET","Darrel Murphy"]
["1620 Peninsula Rd","#5 1620 Davison Plaza ","B0051730","Leased","UCLUELET","Darrel Murphy"]
["1621 10th Ave.","Office","B0067045","Leased","FERNIE","Alison Nordgren"]
["1626 Richter St. Unit #120","RCMP - ","B1002233","Managed","KELOWNA","Mark Timmins"]
["163 Kinchant St.","Office","B0067993","Leased","QUESNEL","Carolynn Oliver"]
["16332 Hwy. 3a","Water Treatment Building","B0034587","Owned","CRAWFORD BAY","Alison Nordgren"]
["16332 Hwy. 3a","Storage","B0034595","Owned","CRAWFORD BAY","Alison Nordgren"]
["16332 Hwy. 3a","Oil Storage Shed","B0034603","Owned","CRAWFORD BAY","Alison Nordgren"]
["1637 Delkatla St.","Residence","B0091279","Managed","MASSET","Elena Awchoula"]
["1640 Dilworth Rd.","Office","B0092016","Leased","KELOWNA","Mark Timmins"]
["1650 Airport Rd.","Office/Warehouse","B0090162","Leased","HAGENSBORG","Carolynn Oliver"]
["1651 Commercial Dr.","Ii Mercato","B0066563","Leased","VANCOUVER","Davy Mulligan"]
["166 Harbourview Rd.","R.C.M.P. Detachment E0052","B0090507","Managed","TAHSIS","Darrel Murphy"]
["1664 Richter St.","Office","B0067046","Leased","KELOWNA","Mark Timmins"]
["1665 Grant Ave.","Health Ctr","B0048553","Owned","NANAIMO","Allison Dunn"]
["1666 Orr St.","Courthouse/Office","B0078526","Owned","MASSET","Elena Awchoula"]
["1669 Victoria St.","Victoria Medical Building","B1002249","Leased","PRINCE GEORGE","Carolynn Oliver"]
["167 Lorne St.","Office","B0067446","Leased","KAMLOOPS","Alison Nordgren"]
["1675 Douglas St.","Terasen Gas  Building","B0067637","Leased","VICTORIA","Darrel Murphy"]
["1686 Lyon St.","Moti","B1002741","Leased","PRINCE GEORGE"]
["1687 Lot 2 & 3 Airport Rd.","Bella Coola Hangar","B0092050","Leased","HAGENSBORG","Carolynn Oliver"]
["169 Loring Way","Rcmp Facility","B0092503","Managed","LYTTON","Mark Timmins"]
["1690 Powick Rd.","Aberdeen Place","B0092137","Leased","KELOWNA","Mark Timmins"]
["17 Church St.","Nanaimo Realty","B0052860","Leased","NANAIMO","Allison Dunn"]
["170 Cedar Ave. S.","Office/Circuit Court","B0067295","Leased","100 MILE HOUSE","Carolynn Oliver"]
["170 Dyer Rd.","R.C.M.P. Married Quarters E0696","B0090537","Managed","SAYWARD","Darrel Murphy"]
["1705 3rd Ave.","Office","B0091864","Leased","PRINCE GEORGE","Carolynn Oliver"]
["1711 Bay St.","R.C.M.P. Married Quarters E0512","B0090523","Managed","UCLUELET","Darrel Murphy"]
["1712 Cedar St.","R.C.M.P. Detachment E0153","B0090510","Managed","UCLUELET","Darrel Murphy"]
["1720 Grant St.","Office","B1002735","Leased","VANCOUVER","Davy Mulligan"]
["1725 Robson St.","Office","B0064899","Leased","VANCOUVER","Davy Mulligan"]
["1726 Dolphin Ave.","Landmark Square","B0067420","Leased","KELOWNA","Mark Timmins"]
["1727 W. Broadway","Office Space ","B1002362","Leased","VANCOUVER","Davy Mulligan"]
["1736 Larch St.","R.C.M.P. Married Quarters E0806","B0090526","Managed","UCLUELET","Darrel Murphy"]
["175 2nd Ave.","Office","B0092602","Leased","KAMLOOPS","Alison Nordgren"]
["1750 Quinn St.","Office","B0067309","Leased","PRINCE GEORGE","Carolynn Oliver"]
["1756 Old Island Hwy.","Courthouse - 1990","B0067192","Leased","COLWOOD","Darrel Murphy"]
["1761 Big Eddy Rd.","Warehouse","B0077855","Owned","REVELSTOKE","Mark Timmins"]
["1761 Big Eddy Rd.","Office","B0086868","Owned","REVELSTOKE","Mark Timmins"]
["1761 Big Eddy Rd.","Garage - 5 Bay","B0086876","Owned","REVELSTOKE","Mark Timmins"]
["1761 Big Eddy Rd.","Oil Storage Shed","B0086892","Owned","REVELSTOKE","Mark Timmins"]
["1761 Big Eddy Rd.","Garage - 1 Bay","B0086900","Owned","REVELSTOKE","Mark Timmins"]
["1761 Big Eddy Rd.","Trailer Shed (Cone&Boat)","B0086918","Owned","REVELSTOKE","Mark Timmins"]
["1767 Angus Campbell Rd.","Agriculture Ctr & CL3 Lab","B0078612","Owned","ABBOTSFORD","Joel Guno"]
["1770 Burrard St.","Office Building","B1002393","Leased","VANCOUVER","Davy Mulligan"]
["178 Stuart Dr.","R.C.M.P. Detachment 50756","B0091307","Managed","FORT ST. JAMES","Elena Awchoula"]
["178 Stuart Dr.","R.C.M.P. Trailer ","B0092656","Managed","FORT ST. JAMES","Elena Awchoula"]
["1788 Diefenbaker Dr.","Centre for Healthy Living","B0092612","Leased","PRINCE GEORGE","Carolynn Oliver"]
["17969 Roan Pl.","Office","B0051961","Leased","SURREY","Joel Guno"]
["18 Main St.","RCMP Detachment","B1002391","Managed","TSAY KEH DENE","Carolynn Oliver"]
["180 - 3rd St.","RCMP Detachment E0323","B1002265","Managed","ATLIN","Elena Awchoula"]
["180 - 3rd St.","Garage","B1002398","Managed","ATLIN","Elena Awchoula"]
["180 - 3rd St.","RCMP Boat Storage Shelter","B1002525","Managed","ATLIN","Elena Awchoula"]
["1801 Admirals Rd ","Craigflower Manor ","B1002503","Managed","VIEW ROYAL","Darrel Murphy"]
["1802 Douglas St.","Jawl","B0067183","Leased","VICTORIA","Allison Dunn"]
["1803 Douglas St. ","IBM Building ","B1002347","Leased","VICTORIA","Allison Dunn"]
["1808 Yukon Dr.","Storage Shed","B0077644","Owned","STEWART","Elena Awchoula"]
["1808 Yukon Dr.","Maintenance Garage","B0078121","Owned","STEWART","Elena Awchoula"]
["1808 Yukon Dr.","Avalanche Shed","B0084079","Owned","STEWART","Elena Awchoula"]
["1808 Yukon Dr.","Fuel Shed","B0084087","Owned","STEWART","Elena Awchoula"]
["1808 Yukon Dr.","Enclosed Snow Shed","B0084095","Owned","STEWART","Elena Awchoula"]
["181 W. Columbia St.","R.C.M.P. Detachment 50596","B0091342","Managed","VANDERHOOF","Elena Awchoula"]
["1810 Blanshard St.","Jack Davis","B0078333","Owned","VICTORIA","Allison Dunn"]
["183 Hwy. 16 W.","District Office/Warehouse","B0067280","Leased","BURNS LAKE","Elena Awchoula"]
["183 Hwy. 16 W.","Fuel Shed  (L3104)","B0077669","Leased","BURNS LAKE","Elena Awchoula"]
["183 Hwy. 16 W.","Shed - Implements  (L3104)","B0077677","Leased","BURNS LAKE","Elena Awchoula"]
["183 Hwy. 16 W.","ATV STORAGE","B1002264","Leased","BURNS LAKE","Elena Awchoula"]
["1855 Burrard St.","Office","B0068051","Leased","VANCOUVER","Davy Mulligan"]
["1873 Main St.","Office","B0067407","Leased","PENTICTON","Alison Nordgren"]
["189 Stewart St. E.","Access Centre","B0092053","Leased","VANDERHOOF","Elena Awchoula"]
["190 Wallace St.","Office - 3 Story","B0051888","Leased","NANAIMO","Allison Dunn"]
["1900 Richmond Ave.","Office","B0092128","Leased","VICTORIA","Darrel Murphy"]
["1901 Rosser Ave.","Office","B1002696","Leased","BURNABY","Davy Mulligan"]
["1902 Theatre Rd.","Office/Warehouse","B0066159","Leased","CRANBROOK","Alison Nordgren"]
["1902 Theatre Rd.","Implement Shed","B0092103","Leased","CRANBROOK","Alison Nordgren"]
["1905 Trumpeter Dr.","Rcmp Residence - E0209","B0092376","Managed","MASSET","Elena Awchoula"]
["1907 Ridgewood Rd.","Cone Shed","B0077920","Managed","NELSON","Alison Nordgren"]
["1907 Ridgewood Rd.","Warehouse/Garage/Oil Storage Shed","B0087437","Owned","NELSON","Alison Nordgren"]
["1907 Ridgewood Rd.","Storage","B0087452","Owned","NELSON","Alison Nordgren"]
["1907 Ridgewood Rd.","District Office","B0087460","Owned","NELSON","Alison Nordgren"]
["1907 Ridgewood Rd.","1990 Manufactured Portable Trailer","B0092498","Managed","NELSON","Alison Nordgren"]
["1925 Bowen Rd.","Bowen Centre","B0064204","Leased","NANAIMO","Allison Dunn"]
["1942 Brant Cres.","Residence","B0091275","Managed","MASSET","Elena Awchoula"]
["1948 Brant Cres.","Residence","B0091276","Managed","MASSET","Elena Awchoula"]
["1958 Blubber Bay Rd.","R.C.M.P. E0561","B0091725","Managed","TEXADA ISLAND","Darrel Murphy"]
["1960 Cynamoka Rd.","R.C.M.P. Married Quarters E0816","B0090525","Managed","UCLUELET","Darrel Murphy"]
["19600 McBride Hwy. 16 W.","Equipment Storage Shed","B0036509","Owned","SLIM CREEK","Elena Awchoula"]
["19600 McBride Hwy. 16 W.","Oil Storage Shed","B0036517","Owned","SLIM CREEK","Elena Awchoula"]
["19600 McBride Hwy. 16 W.","Storage","B0036533","Owned","SLIM CREEK","Elena Awchoula"]
["19600 McBride Hwy. 16 W.","Pump House","B0036541","Owned","SLIM CREEK","Elena Awchoula"]
["19600 McBride Hwy. 16 W.","Power Shed","B0036566","Owned","SLIM CREEK","Elena Awchoula"]
["19600 McBride Hwy. 16 W.","Garage - 2 Bay","B0077869","Owned","SLIM CREEK","Elena Awchoula"]
["19600 McBride Hwy. 16 W.","Modular Home","B0077880","Owned","SLIM CREEK","Elena Awchoula"]
["19600 McBride Hwy. 16 W.","Mobile Home - 80 Elba M.H. T1039 Sn6373","B0080143","Owned","SLIM CREEK","Elena Awchoula"]
["19600 McBride Hwy. 16 W.","Trailer - Assembly T-0841","B0081216","Owned","SLIM CREEK","Elena Awchoula"]
["197 North 2nd Ave.","Office","B0092592","Leased","WILLIAMS LAKE","Carolynn Oliver"]
["1978 Cliffe Ave","Office ","B1002695","Leased","COURTENAY","Darrel Murphy"]
["198 Morison Ave.","Abernethy","B0055095","Leased","PARKSVILLE","Darrel Murphy"]
["2 - 2208 Birch Dr.","RCMP Residence","B1002322","Managed","ATLIN","Elena Awchoula"]
["2 Chimo Cres.","RCMP Residence","B0091544","Managed","ELKFORD","Alison Nordgren"]
["2 Galena Rd.","R.C.M.P. Detachment","B0091524","Managed","LOGAN LAKE","Mark Timmins"]
["2 Sawtooth Rd.","Residence - R.C.M.P. Married Quarters 50904","B0091719","Managed","TELEGRAPH CREEK","Elena Awchoula"]
["200 - 1465 Ellis St.","Office","B1002685","Leased","KELOWNA","Mark Timmins"]
["200 E. 23rd St.","Courthouse","B0072611","Owned","NORTH VANCOUVER","Davy Mulligan"]
["200 E. 23rd St.","Emergency Generator Building","B1002507","Owned","NORTH VANCOUVER","Davy Mulligan"]
["200 Enterprise Way","Okanagan Correctional Centre","B1002619","Owned","OLIVER","Alison Nordgren"]
["200 Hwy. 3 E.","R.C.M.P. Detachment","B0091568","Managed","PRINCETON","Mark Timmins"]
["200 Hwy. 3 E.","R.C.M.P. - Garage","B0091569","Managed","PRINCETON","Mark Timmins"]
["2000 Balmer Dr.","RCMP Detachment ","B0091527","Managed","ELKFORD","Alison Nordgren"]
["2000 Ospika Blvd.","District Office","B0078026","Owned","PRINCE GEORGE","Elena Awchoula"]
["2000 Ospika Blvd.","Warehouse","B0083063","Owned","PRINCE GEORGE","Elena Awchoula"]
["2000 Ospika Blvd.","Shed - 9 Bay","B0083089","Owned","PRINCE GEORGE","Elena Awchoula"]
["201 W. 3rd Ave.","Office","B0067985","Leased","PRINCE RUPERT","Elena Awchoula"]
["20159 88th Ave.","Office","B0092722","Leased","LANGLEY","Joel Guno"]
["20161 86th Ave.","Labour - EAO","B1002715","Leased","LANGLEY","Joel Guno"]
["202 1311 Lakepoint Way ","Office","B1002739","Leased","LANGFORD"]
["2025 W. Broadway St.","Office","B1002469","Leased","VANCOUVER","Davy Mulligan"]
["20338 65 Ave.","Rcmp Facility","B0092576","Managed","LANGLEY","Joel Guno"]
["204 6th Ave.","Office ","B0092357","Leased","NAKUSP","Alison Nordgren"]
["2042 Collison St.","R.C.M.P. Detachment 50866","B0091315","Managed","MASSET","Elena Awchoula"]
["2042A Collison St.","Boat House - RCMP (M)","B1002536","Managed","MASSET","Elena Awchoula"]
["20434 64th. Ave.","Office","B0092456","Leased","LANGLEY","Joel Guno"]
["20486 64th Ave.","Office","B1002451","Leased","LANGLEY","Joel Guno"]
["204a Lakeside Dr.","Warehouse","B0068036","Leased","NELSON","Alison Nordgren"]
["205 - 150 Victoria St.","Office Space","B1002681","Leased","KAMLOOPS","Alison Nordgren"]
["205 Boundary St.","Office","B0067788","Leased","DUNCAN","Allison Dunn"]
["205 Industrial Rd.","Office/Compound","B0068025","Leased","CRANBROOK","Alison Nordgren"]
["205 Industrial Rd.","Storage","B1002492","Leased","CRANBROOK","Alison Nordgren"]
["205 Newport Dr.","Newport Professional","B0091800","Leased","PORT MOODY","Davy Mulligan"]
["205 Powell St.","Office","B0061762","Leased","VANCOUVER","Joel Guno"]
["2050 Pipeline Rd.","RCMP ","B1002378","Managed","COQUITLAM","Davy Mulligan"]
["2062  Manning St.","Office","B0092636","Leased","PORT COQUITLAM","Davy Mulligan"]
["207 Marine Dr.","R.C.M.P. E818","B0091723","Managed","UCLUELET","Darrel Murphy"]
["2076 Church Rd.","R.C.M.P. Detachment E0788","B0090496","Managed","SOOKE","Darrel Murphy"]
["2080 Labieux Rd.","Office/Lab","B0090095","Leased","NANAIMO","Allison Dunn"]
["209 Dutch Lake Rd.","Office","B1002570","Leased","CLEARWATER","Mark Timmins"]
["2090 Coutlee Ave.","Office","B0050229","Leased","MERRITT","Mark Timmins"]
["2099 Lougheed Hwy.","Office","B0092353","Leased","PORT COQUITLAM","Davy Mulligan"]
["210 Garden Ave.","Colarch Enterprises","B0067563","Leased","REVELSTOKE","Mark Timmins"]
["210 W. Broadway","Office","B0067719","Leased","VANCOUVER","Davy Mulligan"]
["2100 Labieux Rd.","Office - Regional","B0078419","Owned","NANAIMO","Allison Dunn"]
["2100 Labieux Rd.","Warehouse","B0078420","Owned","NANAIMO","Allison Dunn"]
["2109 Helm Pl.","R.C.M.P.","B0090945","Managed","WHISTLER","Davy Mulligan"]
["211 Gore Ave.","Community Corrections Xref B80028","B0092017","Owned","VANCOUVER","Joel Guno"]
["2114 Shuswap Ave.","Office ","B0067408","Leased","LUMBY","Mark Timmins"]
["2135 Norris Ave.","Health Ctr","B0026914","Owned","LUMBY","Mark Timmins"]
["2135 Norris Ave.","Ambulance Stn","B0078197","Owned","LUMBY","Mark Timmins"]
["2153 Collison Ave.","Residence","B0091277","Managed","MASSET","Elena Awchoula"]
["2155 - 10th Ave.","Phoenix Medical Centre","B1002252","Leased","PRINCE GEORGE","Carolynn Oliver"]
["216 Oceanview Dr.","Office ","B0067941","Leased","QUEEN CHARLOTTE","Elena Awchoula"]
["2163 Collison Ave.","Residence","B0091278","Managed","MASSET","Elena Awchoula"]
["2172 Coutlee Ave.","Access Ctr","B0091637","Leased","MERRITT","Mark Timmins"]
["2180 Coutlee Ave.","Office","B0092596","Leased","MERRITT","Mark Timmins"]
["2194 Coutlee Ave","Office - Coutlee","B0092597","Leased","MERRITT","Mark Timmins"]
["2196 Quilchena St.","Office","B0092367","Leased","MERRITT","Mark Timmins"]
["22 Mcdonald Ave.","R.C.M.P. Detachment 50826","B0091311","Managed","GRANISLE","Elena Awchoula"]
["220 Brew St.","Office","B1002719","Leased","PORT MOODY","Davy Mulligan"]
["2208 Shuswap Ave.","R.C.M.P. Detachment","B0091533","Managed","LUMBY","Mark Timmins"]
["2208 Shuswap Ave.","R.C.M.P. - 2 Bay Garage","B0091534","Managed","LUMBY","Mark Timmins"]
["221 Bayview St.","RCMP Residence","B0091530","Managed","KASLO","Alison Nordgren"]
["221 W. Esplanade","Office","B0092161","Leased","NORTH VANCOUVER","Davy Mulligan"]
["2210 Hwy. 62","Office/Warehouse","B0076877","Owned","HAZELTON","Elena Awchoula"]
["2210 Hwy. 62","Fuel Shed","B0076885","Owned","HAZELTON","Elena Awchoula"]
["2210 Hwy. 62","Storage - Pesticide","B0076893","Owned","HAZELTON","Elena Awchoula"]
["2210 Hwy. 62","Storage","B0084517","Owned","HAZELTON","Elena Awchoula"]
["2210 Hwy. 62","Shed - Implements","B0084632","Owned","HAZELTON","Elena Awchoula"]
["2210 Hwy. 62","Storage - 2 Bay","B0090440","Managed","HAZELTON","Elena Awchoula"]
["2210 Hwy. 62","Wash Car (showers for Firefighters)","B1002524","Managed","HAZELTON","Elena Awchoula"]
["2217 Mine Road Pl.","Service Headquarter","B0063990","Leased","PORT MCNEILL","Darrel Murphy"]
["222 Main St.","Provincial Court Facilities Xref  B91916","B0017871","Owned","VANCOUVER","Joel Guno"]
["2231 S. Island Hwy.","Office","B0092638","Leased","CAMPBELL RIVER","Darrel Murphy"]
["22323 119th Ave.","Office","B0090123","Leased","MAPLE RIDGE","Davy Mulligan"]
["22356 Mcintosh Ave.","Office","B0091890","Leased","MAPLE RIDGE","Davy Mulligan"]
["224 10th Ave.","Courthouse","B0067246","Leased","CRESTON","Alison Nordgren"]
["224 Cottonwood Ave.","Residence","B0091324","Managed","TUMBLER RIDGE","Carolynn Oliver"]
["224 W. Esplanade","Office","B0092604","Leased","NORTH VANCOUVER","Davy Mulligan"]
["22420 Dewdney Trunk Rd.","Office","B0067774","Leased","MAPLE RIDGE","Davy Mulligan"]
["22470 Dewdney Trunk Rd.","Office","B0091884","Leased","MAPLE RIDGE","Davy Mulligan"]
["22496 Chilcotin Hwy 20","Staff House","B0082750","Owned","ANAHIM LAKE","Carolynn Oliver"]
["22496 Chilcotin Hwy 20","Shed","B0082768","Owned","ANAHIM LAKE","Carolynn Oliver"]
["225 Ucona Crt.","R.C.M.P. Residence","B0092279","Managed","GOLD RIVER","Darrel Murphy"]
["2250 Trans Canada Hwy.","Regional Correctional Ctr","B0077984","Owned","KAMLOOPS","Alison Nordgren"]
["2250 Trans Canada Hwy.","Greenhouse","B0077985","Owned","KAMLOOPS","Alison Nordgren"]
["2250 Trans Canada Hwy.","Pump House","B0077986","Owned","KAMLOOPS","Alison Nordgren"]
["2250 Trans Canada Hwy.","Multi Purpose Bldg","B0092087","Owned","KAMLOOPS","Alison Nordgren"]
["2250 Trans Canada Hwy.","Interim Sprung Structure","B0092663","Owned","KAMLOOPS","Alison Nordgren"]
["22522 Lougheed Hwy.","Office","B0067471","Leased","MAPLE RIDGE","Davy Mulligan"]
["22541 Hwy. 20","Courthouse Trailer","B0078520","Managed","ANAHIM LAKE","Carolynn Oliver"]
["22551 Chilcotin Hwy. 20","Mobile Home ","B0043976","Owned","ANAHIM LAKE","Carolynn Oliver"]
["226 Shuswap Ave.","R.C.M.P. Detachment","B0091571","Managed","CHASE","Mark Timmins"]
["2260 Jaffray Shop Rd.","Equipment Storage Shed - 2 Bay","B0034538","Owned","JAFFRAY","Alison Nordgren"]
["2260 Jaffray Shop Rd.","Oil Storage Shed/Road Foreman","B0034546","Owned","JAFFRAY","Alison Nordgren"]
["2260 Jaffray Shop Rd.","Storage","B0034553","Owned","JAFFRAY","Alison Nordgren"]
["2260 Jaffray Shop Rd.","First Aid","B0075499","Owned","JAFFRAY","Alison Nordgren"]
["2261 Keating Cross Rd.","Office","B0092413","Leased","CENTRAL SAANICH","Allison Dunn"]
["227 Uncona Crt.","R.C.M.P. Residence","B0092687","Managed","GOLD RIVER","Darrel Murphy"]
["2275 Quinn St.","Storage","B0036673","Owned","PRINCE GEORGE","Elena Awchoula"]
["2288 Columbia Ave.","Courthouse","B0033621","Owned","ROSSLAND","Alison Nordgren"]
["2288 Kingsway","SDPR Office","B1002717","Leased","VANCOUVER","Davy Mulligan"]
["229 Ucona Cres.","R.C.M.P. Residence","B0092094","Managed","GOLD RIVER","Darrel Murphy"]
["233 W. 1st St.","Office","B0068189","Leased","NORTH VANCOUVER","Davy Mulligan"]
["235 1st Ave.","Cornerstone Towers","B0067526","Leased","KAMLOOPS","Alison Nordgren"]
["2350 Commercial Dr.","Office","B0057125","Leased","VANCOUVER","Davy Mulligan"]
["2351 Seal Cove Rd.","Warehouse 1","B1002615","Managed","PRINCE RUPERT","Elena Awchoula"]
["2351 Seal Cove Rd.","Warehouse 2","B1002616","Managed","PRINCE RUPERT","Elena Awchoula"]
["2351 Seal Cove Rd.","Fuel Shed","B1002617","Managed","PRINCE RUPERT","Elena Awchoula"]
["2358 Justin Rd. - Lot 17","Mobile Home","B0092508","Owned","HAGENSBORG","Carolynn Oliver"]
["2361 Justin Rd. - Lot 10","House - Residence 3","B0072355","Owned","HAGENSBORG","Carolynn Oliver"]
["237 E. Columbia St.","After Hours","B0064287","Leased","NEW WESTMINSTER","Davy Mulligan"]
["2370 United Blvd.","Mayfair Industrial Park","B0067731","Leased","COQUITLAM","Davy Mulligan"]
["238 Government St.","Courthouse","B0014621","Leased","DUNCAN","Allison Dunn"]
["238 Government St.","Round Bldg","B0014639","Leased","DUNCAN","Allison Dunn"]
["24 Normandy Dr.","RCMP training","B1002714","Managed","CHILLIWACK","Joel Guno"]
["240 1st St.","Residence - R.C.M.P. 1997 #05-0461","B0091240","Managed","ATLIN","Elena Awchoula"]
["2411 E. Pender St.","Office","B0092382","Leased","VANCOUVER","Davy Mulligan"]
["2440 Butte St.","Courthouse ","B0092086","Leased","VANDERHOOF","Elena Awchoula"]
["2455 Mansfield Dr.","Office","B0067373","Leased","COURTENAY","Darrel Murphy"]
["2475 Stones Bay Rd.","Boathouse","B1002588","Managed","FORT ST JAMES","Elena Awchoula"]
["248 Green St.","Residence - R.C.M.P. 50466","B0091239","Managed","ATLIN","Elena Awchoula"]
["24800 Alouette Rd.","Dormitory - Cedar","B0023184","Owned","MAPLE RIDGE","Davy Mulligan"]
["24800 Alouette Rd.","Dormitory - Birch","B0023192","Owned","MAPLE RIDGE","Davy Mulligan"]
["24800 Alouette Rd.","Alder-Sentence Management/Infirmary","B0023200","Owned","MAPLE RIDGE","Davy Mulligan"]
["24800 Alouette Rd.","Kitchen/Stores","B0023218","Owned","MAPLE RIDGE","Davy Mulligan"]
["24800 Alouette Rd.","Admin Bldg/Accw","B0023226","Owned","MAPLE RIDGE","Davy Mulligan"]
["24800 Alouette Rd.","Gym/Activity Ctr","B0071613","Owned","MAPLE RIDGE","Davy Mulligan"]
["24800 Alouette Rd.","Trailers","B0092133","Owned","MAPLE RIDGE","Davy Mulligan"]
["24800 Alouette Rd.","MONARCH A - ACCW","B0092660","Owned","MAPLE RIDGE","Davy Mulligan"]
["24800 Alouette Rd.","MONARCH B - ACCW","B0092661","Owned","MAPLE RIDGE","Davy Mulligan"]
["24800 Alouette Rd.","ACCW new build","B1002381","Owned","MAPLE RIDGE","Davy Mulligan"]
["2484 Main St.","Office","B1002565","Leased","WEST KELOWNA","Mark Timmins"]
["250 Douglas St.","Office","B1002523","Leased","FORT ST. JAMES","Elena Awchoula"]
["250 George St.","Courthouse - 1993","B0078515","Owned","PRINCE GEORGE","Elena Awchoula"]
["250 Lone Cone Rd.","R.C.M.P. Residence","B0092688","Managed","TOFINO","Darrel Murphy"]
["250 Powell St. ","BC Housing portion of building B92017.  ","B1002626","Owned","VANCOUVER","Joel Guno"]
["250 Stuart Dr.","Office","B0066597","Leased","FORT ST. JAMES","Elena Awchoula"]
["2500 Butler Ave.","Warehouse ","B0066613","Leased","HOUSTON","Elena Awchoula"]
["2500 Butler Ave.","Shed - Implements ","B0077529","Leased","HOUSTON","Elena Awchoula"]
["2500 Butler Ave.","Fuel Shed/Storage - Pesticide  (L2522)","B0077537","Leased","HOUSTON","Elena Awchoula"]
["2500 Cliffe Ave.","Access Ctr","B0067199","Leased","COURTENAY","Darrel Murphy"]
["2501 14th Ave.","Office - Multi","B0090152","Leased","VERNON","Mark Timmins"]
["2501 14th Ave.","Forests - Trailer - Office","B0092580","Managed","VERNON","Mark Timmins"]
["2525 Commercial Dr.","Office","B0092001","Leased","VANCOUVER","Davy Mulligan"]
["2533 & 2535 Wiggins Way","Duplex Residence","B1002383","Managed","HAZELTON","Elena Awchoula"]
["2537 Stones Bay Rd.","District Office","B0076901","Owned","FORT ST. JAMES","Elena Awchoula"]
["2537 Stones Bay Rd.","Boathouse","B0078102","Managed","FORT ST. JAMES","Elena Awchoula"]
["2537 Stones Bay Rd.","Shed - Implements","B0078536","Owned","FORT ST. JAMES","Elena Awchoula"]
["2537 Stones Bay Rd.","Cache/Inspection Bay","B0083360","Owned","FORT ST. JAMES","Elena Awchoula"]
["2537 Stones Bay Rd.","Effluent Plant","B0083394","Owned","FORT ST. JAMES","Elena Awchoula"]
["2537 Stones Bay Rd.","Pump House","B0083444","Owned","FORT ST. JAMES","Elena Awchoula"]
["2537 Stones Bay Rd.","Equipment Storage Shed - 3 Bay","B0083451","Owned","FORT ST. JAMES","Elena Awchoula"]
["254 Belleville St.","Belleville St Property  Victoria Clipper- see note","B1002461","Leased","VICTORIA","Allison Dunn"]
["254 Haynes St.","District Office","B0067542","Leased","PENTICTON","Alison Nordgren"]
["255 East 12th Ave","PSSG - Community Corrections","B1002677","Leased","VANCOUVER","Davy Mulligan"]
["2573 Burrard St.","Storage (3)","B0066456","Leased","VANDERHOOF","Elena Awchoula"]
["2575 Trans Canada Hwy. W.","East Weigh Scale","B0078185","Managed","KAMLOOPS","Mark Timmins"]
["2582 Stum Lake Rd.","Warehouse","B0078033","Owned","ALEXIS CREEK","Carolynn Oliver"]
["2582 Stum Lake Rd.","District Office","B0082123","Owned","ALEXIS CREEK","Carolynn Oliver"]
["2582 Stum Lake Rd.","Office","B0082131","Owned","ALEXIS CREEK","Carolynn Oliver"]
["2582 Stum Lake Rd.","Oil Storage Shed","B0082156","Owned","ALEXIS CREEK","Carolynn Oliver"]
["2584 Stum Lake Rd.","Staff House","B0082149","Owned","ALEXIS CREEK","Carolynn Oliver"]
["260 Ambleside Dr.","R.C.M.P. Married Quarters E0427","B0090536","Managed","SAYWARD","Darrel Murphy"]
["2601 Lougheed Hwy.","Central Supply/Services","B0021675","Leased","COQUITLAM","Davy Mulligan"]
["2601 Lougheed Hwy.","North Lawn","B0021683","Leased","COQUITLAM","Davy Mulligan"]
["2601 Lougheed Hwy.","Fernwood Lodge","B0021766","Leased","COQUITLAM","Davy Mulligan"]
["2601 Lougheed Hwy.","Roadside","B0022046","Leased","COQUITLAM","Davy Mulligan"]
["2601 Lougheed Hwy.","Distribution Centre","B0022087","Leased","COQUITLAM","Davy Mulligan"]
["2601 Lougheed Hwy.","Unit 5 (X&Y)","B0022285","Leased","COQUITLAM","Davy Mulligan"]
["2611 Norris Rd.","R.C.M.P. Detachment","B0091525","Managed","KELOWNA","Mark Timmins"]
["2611 Norris Rd.","Rcmp Portable Units","B0092528","Managed","KELOWNA","Mark Timmins"]
["2611A Norris Rd.","RCMP Portables","B1002579","Managed","KELOWNA","Mark Timmins"]
["2619 Stum Lake Rd.","Residence / Employee Housing","B1002622","Managed","ALEXIS CREEK","Carolynn Oliver"]
["2620 Mary Hill Rd.","Courthouse","B0078604","Owned","PORT COQUITLAM","Davy Mulligan"]
["2630 Forest Pl. 1 (Lot 1)","Mobile Home - Reg 72956","B0078568","Owned","ALEXIS CREEK","Carolynn Oliver"]
["2630 Forest Pl. 2  (Lot 2)","Mobile Home - Reg 72953","B0078569","Owned","ALEXIS CREEK","Carolynn Oliver"]
["2635 Forest Pl., Lot C","Mobile Home - Residence 1","B0092505","Owned","ALEXIS CREEK","Carolynn Oliver"]
["2638 Forest Pl., Lot D","Mobile Home - Residence 3","B0092507","Owned","ALEXIS CREEK","Carolynn Oliver"]
["2639 Gibbs Rd.","RCMP Residence","B1002589","Managed","HAGENSBORG","Carolynn Oliver"]
["2641 Forest Pl., Lot D","Mobile Home - Residence 2","B0092506","Owned","ALEXIS CREEK","Carolynn Oliver"]
["2641 Gibbs Rd.  Hwy #20","Residence - R.C.M.P. 050042","B0091772","Managed","HAGENSBORG","Carolynn Oliver"]
["265 E. Cordova St.","Jail","B0091916","Owned","VANCOUVER","Joel Guno"]
["265 Namu Pl.","Residence - 50589","B0091243","Managed","BELLA BELLA","Carolynn Oliver"]
["2650 Trans Canada Hwy. W.","West Weigh Scale","B0078186","Managed","KAMLOOPS","Mark Timmins"]
["2684 Trinity Ave. ","Office","B0067932","Leased","ABBOTSFORD","Joel Guno"]
["27 Riverview Dr.","Residence","B1002537","Managed","DEASE LAKE","Elena Awchoula"]
["270 Lone Cone Rd.","R.C.M.P. Married Quarters E0101","B0090528","Managed","TOFINO","Darrel Murphy"]
["2700 Haddington Cres.","R.C.M.P. Detachment E0751","B0090503","Managed","PORT MCNEILL","Darrel Murphy"]
["2707 Galley Cres.","Residence - Rcmp E0268","B0092415","Managed","PENDER ISLAND","Allison Dunn"]
["2709 Shoreline Dr.","Manufactured Home ","B1002506","Managed","VIEW ROYAL","Darrel Murphy"]
["27090 Gloucester Way","RCMP WAREHOUSE","B1002325","Managed","LANGLEY","Joel Guno"]
["27110 Cariboo Hwy. 97 S.","Weigh Scale - Red Rock","B0092609","Managed","PRINCE GEORGE","Carolynn Oliver"]
["2715 Theatre Rd.","RCMP Office Complex","B0092098","Managed","CRANBROOK","Alison Nordgren"]
["2721 Lougheed Hwy.","Healing Spirit House","B1002699","Owned","COQUITLAM","Davy Mulligan"]
["275 E. Cordova St.","Admin And Discharge  XrefB92017","B0080028","Owned","VANCOUVER","Joel Guno"]
["2777 Gladwin Rd.","Office","B0092630","Leased","ABBOTSFORD","Joel Guno"]
["2780 E. Broadway","Office (108)","B0091801","Leased","VANCOUVER","Davy Mulligan"]
["2780 Shawnigan Lake Rd.","R.C.M.P. Detachment E0306","B0090494","Managed","SHAWNIGAN LAKE","Allison Dunn"]
["28 Bastion Sq.","Maritime Museum","B0042275","Owned","VICTORIA","Allison Dunn"]
["28 Firth Cres","RCMP Residence","B1002364","Managed","MACKENZIE","Carolynn Oliver"]
["280 Mackenzie Ave.","Office","B0091174","Leased","WILLIAMS LAKE","Carolynn Oliver"]
["2802 30th St.","Office","B0092558","Leased","VERNON","Mark Timmins"]
["2809 28 St.","Office","B0067382","Leased","VERNON","Mark Timmins"]
["2809 Alaska Hwy.","Weigh Scale","B0078077","Managed","FORT NELSON","Carolynn Oliver"]
["2809 Ferry Ave.","Office","B0090209","Leased","PRINCE GEORGE","Carolynn Oliver"]
["280A 3rd Ave. North","MCFD Office","B1002718","Owned","WILLIAMS LAKE","Carolynn Oliver"]
["2814 Nanaimo St. (2814-2828)","Office","B0067601","Leased","VICTORIA","Allison Dunn"]
["282 2nd Ave.","Warehouse","B0058214","Leased","PRINCE GEORGE","Carolynn Oliver"]
["2820 - 28th St.","Office","B1002586","Leased","VERNON","Mark Timmins"]
["2828 Cruickshank St.","Office","B0091424","Leased","ABBOTSFORD","Joel Guno"]
["2845 Cruickshank St.","Office","B0091882","Leased","ABBOTSFORD","Joel Guno"]
["2865 Cruickshank St.","Office","B0067760","Leased","ABBOTSFORD","Joel Guno"]
["2881 Nanaimo St.","R.C.M.P.","B0090386","Managed","VICTORIA","Allison Dunn"]
["2895 Chowat Rd.","MCFD Trailer","B1002720","Leased","AGASSIZ","Joel Guno"]
["2899 30th Ave.","Vern-View Building ","B0060939","Leased","VERNON","Mark Timmins"]
["29 Helmcken Rd","Office","B1002629","Leased","VIEW ROYAL","Darrel Murphy"]
["2918 Eby St.","Office","B0092437","Leased","TERRACE","Elena Awchoula"]
["2920 Hwy. 3 ","Rcmp Detachment","B0092392","Managed","KEREMEOS","Alison Nordgren"]
["2940 Jutland Rd.","Sawmill Point","B0091693","Leased","VICTORIA","Darrel Murphy"]
["2940 Virtual Way","BC Lottery Corp Office","B1002528","Managed","VANCOUVER","Davy Mulligan"]
["2945 Hebb Ave.","Warehouse","B1002529","Managed","VANCOUVER","Davy Mulligan"]
["2955 / 2957 Jutland Rd.","Arc Building","B0067659","Leased","VICTORIA","Darrel Murphy"]
["2956 Ed Nixon Ter","Warehouse -  Goldstream Industrial Park","B0092709","Managed","LANGFORD","Darrel Murphy"]
["2975 Jutland Rd.","Selkirk Waterway   Large","B0078325","Leased","VICTORIA","Darrel Murphy"]
["298 - Hwy. 99","British Columbia Visitor Centre @ Peace Arch","B1002247","Owned","SURREY","Joel Guno"]
["2984 Railway Ave.","Warehouse/Compound","B0066308","Leased","SMITHERS","Elena Awchoula"]
["2984 Railway Ave.","Warehouse - 8 Bay","B0077872","Leased","SMITHERS","Elena Awchoula"]
["2984 Railway Ave.","Battery Storage","B0077873","Leased","SMITHERS","Elena Awchoula"]
["2984 Railway Ave.","Warehouse (6 Bay) ","B0092140","Leased","SMITHERS","Elena Awchoula"]
["299 Victoria St.","Canada Trust Bldg","B0066043","Leased","PRINCE GEORGE","Carolynn Oliver"]
["2990 Wesbrook Mall","Public Safety (Rcmp/Firehall)","B0081489","Owned","VANCOUVER","Davy Mulligan"]
["2995 Jutland Rd.","Selkirk E. - Small","B0078328","Leased","VICTORIA","Darrel Murphy"]
["2999 4th Ave.","Courthouse","B0072603","Owned","PORT ALBERNI","Darrel Murphy"]
["2999 Voght St.","R.C.M.P. Detachment","B0091565","Managed","MERRITT","Mark Timmins"]
["3 Sawtooth Rd.","R.C.M.P Detachment (New)","B0092691","Managed","TELEGRAPH CREEK","Elena Awchoula"]
["300 Cariboo Hwy.","District Office","B0076976","Owned","100 MILE HOUSE","Carolynn Oliver"]
["300 Cariboo Hwy.","Fuel Shed","B0076984","Owned","100 MILE HOUSE","Carolynn Oliver"]
["300 Cariboo Hwy.","Office/Warehouse","B0081810","Owned","100 MILE HOUSE","Carolynn Oliver"]
["300 Cariboo Hwy.","Warehouse","B0081828","Owned","100 MILE HOUSE","Carolynn Oliver"]
["300 Cariboo Hwy.","Garage - 3 Bay","B0081844","Owned","100 MILE HOUSE","Carolynn Oliver"]
["3001 27th St.","Courthouse/Office","B0026179","Owned","VERNON","Mark Timmins"]
["3001 27th St.","Garage/Storage","B0026302","Owned","VERNON","Mark Timmins"]
["3002 27th St.","Pump House","B1002489","Owned","VERNON","Mark Timmins"]
["3003 St. Johns St.","Office","B0068009","Leased","PORT MOODY","Davy Mulligan"]
["3007 35th Ave.","Office","B0066670","Leased","VERNON","Mark Timmins"]
["301 Victoria St.","Office","B0092398","Leased","KAMLOOPS","Alison Nordgren"]
["3019 4th Ave","3019 4th Ave Port Alberni","B1002369","Leased","PORT ALBERNI","Darrel Murphy"]
["3023 Mcleod St.","Residence - R.C.M.P. 05486","B0091429","Managed","NEW HAZELTON","Elena Awchoula"]
["305A 4th St. N.W.","RCMP Residence","B0092737","Managed","NAKUSP","Alison Nordgren"]
["305B 4th St. N.W.","RCMP Residence","B1002542","Managed","NAKUSP","Alison Nordgren"]
["306 Oceanview Dr.","Residential RCMP","B1002611","Managed","QUEEN CHARLOTTE","Elena Awchoula"]
["308 Finlay River Rd.","RCMP Detachment","B1002390","Managed","FORT WARE","Carolynn Oliver"]
["3088 Gibbins Rd.","Health Ctr","B0067069","Leased","DUNCAN","Allison Dunn"]
["3088 Gibbins Rd.","Trailer ","B0067812","Leased","DUNCAN","Allison Dunn"]
["309 Centennial Dr.","RCMP Residence","B1002283","Managed","MACKENZIE","Carolynn Oliver"]
["309 W. 2nd Ave.","Ocean Ctr","B0057364","Leased","PRINCE RUPERT","Elena Awchoula"]
["310 Clatsja St.","RCMP Residence","B1002509","Managed","BELLA BELLA","Carolynn Oliver"]
["310 Ward St.","Office ","B0092354","Leased","NELSON","Alison Nordgren"]
["3100 30th Ave.","Office","B0067449","Leased","VERNON","Mark Timmins"]
["3101 29th Ave.","Office","B0092085","Leased","VERNON","Mark Timmins"]
["3115 48th Ave.","Kidney Dialysis Unit","B0091966","Leased","VERNON","Mark Timmins"]
["313 Dutch Lake Rd.","R.C.M.P. Detachment","B0091570","Managed","CLEARWATER","Mark Timmins"]
["3133 Sumner Ave.","Office","B0067103","Leased","BURNABY","Davy Mulligan"]
["315 Founders St.","R.C.M.P. Detachment 50881","B0091340","Managed","TUMBLER RIDGE","Carolynn Oliver"]
["3151 Barons Rd.","District Office - 2","B0067180","Leased","NANAIMO","Allison Dunn"]
["316 176th St.","Weigh Scale","B0078280","Managed","CLOVERDALE","Joel Guno"]
["316 3rd Ave","Ocean Center - Space 100","B1002680","Leased","PRINCE RUPERT","Elena Awchoula"]
["317 Clatsja St.","R.C.M.P. Residence","B0092281","Managed","BELLA BELLA","Carolynn Oliver"]
["317 Main St.","R.C.M.P. Detachment","B0091532","Managed","LILLOOET","Mark Timmins"]
["318 Railway Ave.","Office","B0092590","Leased","ASHCROFT","Mark Timmins"]
["32 Ospika Cr.","RCMP Residence","B1002286","Managed","MACKENZIE","Carolynn Oliver"]
["320 Ward St.","Courthouse","B0032771","Owned","NELSON","Alison Nordgren"]
["3200 Shelbourne St.","Remax","B0067611","Leased","SAANICH","Allison Dunn"]
["3201 30th St.","Access Ctr","B0067525","Leased","VERNON","Mark Timmins"]
["3211 Wharf St.","R.C.M.P. Detachment #05-0219","B0091334","Managed","QUEEN CHARLOTTE","Elena Awchoula"]
["3211 Wharf St.","R.C.M.P. Storage Bay","B0092046","Managed","QUEEN CHARLOTTE","Elena Awchoula"]
["3215 Eby St.","Office Building","B0092271","Leased","TERRACE","Elena Awchoula"]
["322 Johnston Ave.","Office","B0082297","Owned","QUESNEL","Carolynn Oliver"]
["322 Johnston Ave.","Fuel Shed","B0082339","Owned","QUESNEL","Carolynn Oliver"]
["322 Johnston Ave.","Refrigeration","B0082347","Owned","QUESNEL","Carolynn Oliver"]
["322 Johnston Ave.","Shed - Implements","B0082354","Owned","QUESNEL","Carolynn Oliver"]
["3220 Eby St.","Access Ctr","B0067021","Leased","TERRACE","Elena Awchoula"]
["32203 S. Fraser Way","Courthouse","B0055376","Leased","ABBOTSFORD","Joel Guno"]
["3235 Westwood Dr.","Office","B0068248","Leased","PRINCE GEORGE","Carolynn Oliver"]
["32375 Veterans Way","Abbotsford Courthouse","B1002712","Owned","ABBOTSFORD","Joel Guno"]
["3238 Sargent Cres.","Residence","B0091294","Managed","NEW HAZELTON","Elena Awchoula"]
["3245 Christianson Cr.","Residence","B0091293","Managed","NEW HAZELTON","Elena Awchoula"]
["32463 Simon Ave.","Capital Square","B0092419","Leased","ABBOTSFORD","Joel Guno"]
["325 Brunswick St.","Call Centre Space","B1002337","Leased","PRINCE GEORGE","Carolynn Oliver"]
["32525 Simon Ave.","Office","B1002354","Leased","ABBOTSFORD","Joel Guno"]
["32555 Simon Ave.","Office","B0067740","Leased","ABBOTSFORD","Joel Guno"]
["3268 11 St.","R.C.M.P. Detachment 50922","B0091312","Managed","HOUSTON","Elena Awchoula"]
["32772 Marshall Rd.","Canuck Place Children’s Hospice","B1002744","Leased","ABBOTSFORD"]
["3280 Sargent Cres.","R.C.M.P. Residence","B0092658","Managed","NEW HAZELTON","Elena Awchoula"]
["32900 Marshall Rd","Morgue/Autopsy","B1002713","Leased","ABBOTSFORD","Joel Guno"]
["3299 Hospital Rd.","Health Ctr","B0077866","Owned","VANDERHOOF","Elena Awchoula"]
["3310 Port Washington Rd","Workshop/Storage Garage","B1002688","Managed","PENDER ISLAND","Allison Dunn"]
["3310 Port Washington Rd ","Patrol Cabin ","B1002689","Managed","PENDER ISLAND","Allison Dunn"]
["3310 Port Washington Rd.","Residence - Rcmp E0258","B0092416","Managed","PENDER ISLAND","Allison Dunn"]
["3320 Earle St.","R.C.M.P.  Building","B0092027","Managed","TERRACE","Elena Awchoula"]
["33276 2nd Ave.","Office","B0090207","Leased","MISSION","Davy Mulligan"]
["333 Victoria St.","Kutenai Place","B0078217","Owned","NELSON","Alison Nordgren"]
["3333 Tatlow Rd.","District Office","B0078552","Owned","SMITHERS","Elena Awchoula"]
["3333 Tatlow Rd.","Fuel Shed","B0078553","Owned","SMITHERS","Elena Awchoula"]
["3333 Tatlow Rd.","Shed - Implements","B0078554","Owned","SMITHERS","Elena Awchoula"]
["3333 Tatlow Rd.","Storage - Propane","B0078555","Owned","SMITHERS","Elena Awchoula"]
["3350 Douglas St.","Head Office","B0063883","Leased","SAANICH","Allison Dunn"]
["3351 Yellowhead Hwy.","R.C.M.P. Detachment 50551","B0091337","Managed","SMITHERS","Elena Awchoula"]
["335A Ave.","RCMP  Detachment","B1002449","Managed","KASLO","Alison Nordgren"]
["3400 11th St.","Municipal Hall","B0092118","Leased","HOUSTON","Elena Awchoula"]
["3400 Davidson Ave.","Office","B0064766","Leased","SAANICH","Allison Dunn"]
["3408 Kalum St.","Courthouse","B0047639","Owned","TERRACE","Elena Awchoula"]
["341 2nd Ave.","Office","B0067412","Leased","FERNIE","Alison Nordgren"]
["3412 Kalum St.","Health Ctr","B0048314","Owned","TERRACE","Elena Awchoula"]
["3420 Mill St.","R.C.M.P. Detachment (Ref#)","B0092169","Managed","ARMSTRONG","Mark Timmins"]
["3429 3rd Ave.","Warehouse","B0084202","Owned","QUEEN CHARLOTTE","Elena Awchoula"]
["3429 3rd Ave. ","Oil Storage Shed","B0084236","Owned","QUEEN CHARLOTTE","Elena Awchoula"]
["343 Bay St.","Office 343b Bay St.","B0091584","Leased","VICTORIA","Darrel Murphy"]
["343 Lower Ganges Rd.","Courthouse - Ganges","B0091702","Leased","SALTSPRING ISLAND","Allison Dunn"]
["34345 Vye Rd.","Boathouse","B0091918","Managed","ABBOTSFORD","Joel Guno"]
["345 Wale Rd","Office","B1002723","Leased","COLWOOD","Darrel Murphy"]
["3455 Victoria Dr.","Cedar Cottage","B0057232","Leased","VANCOUVER","Davy Mulligan"]
["347 E. Cordova St.","new space for VISU program ARE-16461","B1002540","Managed","VANCOUVER","Joel Guno"]
["3491 Saanich Rd.","Office Building","B0092006","Leased","SAANICH","Allison Dunn"]
["3499 3rd Ave.","Residence Trailer","B0092588","Owned","QUEEN CHARLOTTE","Elena Awchoula"]
["35 Front St.","Courthouse/Office","B0014902","Owned","NANAIMO","Allison Dunn"]
["350 Barlow Ave.","Pgob","B0031526","Owned","QUESNEL","Carolynn Oliver"]
["3507 3rd Ave.","Shed (Bob's Chalet)","B0070631","Owned","QUEEN CHARLOTTE","Elena Awchoula"]
["351 Hudson Ave. N.E.","Andover Place","B0090378","Leased","SALMON ARM","Mark Timmins"]
["355 11th St.","Office","B0067151","Leased","COURTENAY","Darrel Murphy"]
["3550 Saanich Rd.","Medical Office","B0092149","Leased","SAANICH","Allison Dunn"]
["364 Christina Pl.","Residence","B0091308","Managed","SANDSPIT","Elena Awchoula"]
["365 Main St.","R.C.M.P. Detachment","B0091540","Managed","SALMO","Alison Nordgren"]
["36500 Main Rd.","MCFD Office","B1002729","Leased","SPUZZUM ","Joel Guno"]
["3665 Kingsway","Office","B0091223","Leased","VANCOUVER","Davy Mulligan"]
["3685 Hoskins Rd.","Office","B0067379","Leased","WEST KELOWNA","Mark Timmins"]
["3688 Cessna Dr.","Office","B1002628","Leased","RICHMOND","Davy Mulligan"]
["3695 Opie Cres.","Warehouse","B0068156","Leased","PRINCE GEORGE","Elena Awchoula"]
["370 S. Dogwood St.","Office","B0072421","Owned","CAMPBELL RIVER","Darrel Murphy"]
["370 S. Dogwood St.","Storage/Warehouse/Office","B0072439","Owned","CAMPBELL RIVER","Darrel Murphy"]
["370 S. Dogwood St.","Storage - Pesticide","B0072447","Owned","CAMPBELL RIVER","Darrel Murphy"]
["370 S. Dogwood St.","Equipment Storage Shed - 10 Bay","B0072454","Owned","CAMPBELL RIVER","Darrel Murphy"]
["370 S. Dogwood St.","Oil Storage Shed","B0078403","Owned","CAMPBELL RIVER","Darrel Murphy"]
["3710 Pleasant Valley Rd.","R.C.M.P. Detachment","B0091561","Managed","ARMSTRONG","Mark Timmins"]
["3726 Alfred Ave.","Nora Bldg","B0062133","Leased","SMITHERS","Elena Awchoula"]
["3732/3740 Opie Cres.","Office","B0036624","Owned","PRINCE GEORGE","Elena Awchoula"]
["377 E. 2nd Ave.","Detox","B0044578","Owned","VANCOUVER","Davy Mulligan"]
["3793 Alfred Ave.","Pgob","B0040535","Owned","SMITHERS","Elena Awchoula"]
["3793 Alfred Ave.","Maintenance Garage","B0040543","Owned","SMITHERS","Elena Awchoula"]
["38077 2nd Ave.","Office","B0058057","Leased","SQUAMISH","Davy Mulligan"]
["3862A Broadway Ave.","CCA/Brain Injury Society","B1002259","Leased","SMITHERS","Elena Awchoula"]
["3870 Hwy. 97 N.","Weigh Scale","B0078083","Managed","QUESNEL","Carolynn Oliver"]
["3932 Legion Dr.","Residence - 050743. From: 3392 Goldquartz Dr.","B0091345","Managed","WELLS","Carolynn Oliver"]
["3939 Quadra St.","Office","B0067660","Leased","SAANICH","Allison Dunn"]
["3945 Biggs Rd","Hose Reel Building ","B1002673","Owned","NANAIMO","Allison Dunn"]
["3945 Biggs Rd","Hose Manifold Building ","B1002674","Owned","NANAIMO","Allison Dunn"]
["3945 Biggs Rd ","Kiln Shop","B1002672","Owned","NANAIMO","Allison Dunn"]
["3945 Biggs Rd ","Pump House ","B1002675","Owned","NANAIMO","Allison Dunn"]
["3945 Biggs Rd.","Main Bldg - Correctional Facility","B0013714","Owned","NANAIMO","Allison Dunn"]
["3945 Biggs Rd.","Campbell House Gym ","B0013730","Owned","NANAIMO","Allison Dunn"]
["3945 Biggs Rd.","Guthrie House","B0013748","Owned","NANAIMO","Allison Dunn"]
["3945 Biggs Rd.","Residence 4","B0013755","Owned","NANAIMO","Allison Dunn"]
["3945 Biggs Rd.","Residence 1","B0013763","Owned","NANAIMO","Allison Dunn"]
["3945 Biggs Rd.","Residence 2","B0013771","Owned","NANAIMO","Allison Dunn"]
["3945 Biggs Rd.","Residence 3","B0013789","Owned","NANAIMO","Allison Dunn"]
["3945 Biggs Rd.","Central Heating Plant","B0013797","Owned","NANAIMO","Allison Dunn"]
["3945 Biggs Rd.","Campbell House ","B0013805","Owned","NANAIMO","Allison Dunn"]
["3945 Biggs Rd.","Park House ","B0013813","Owned","NANAIMO","Allison Dunn"]
["3945 Biggs Rd.","Pool/Auditorium","B0044099","Owned","NANAIMO","Allison Dunn"]
["3945 Biggs Rd.","PC Rec Trailer","B0046078","Owned","NANAIMO","Allison Dunn"]
["3945 Biggs Rd.","Gatehouse","B0046516","Owned","NANAIMO","Allison Dunn"]
["3945 Biggs Rd.","Trailer - Artisan Lab","B0047373","Owned","NANAIMO","Allison Dunn"]
["3945 Biggs Rd.","Guthrie Program Shop","B0077829","Owned","NANAIMO","Allison Dunn"]
["3945 Biggs Rd.","Triple Wide/Benson","B0077842","Owned","NANAIMO","Allison Dunn"]
["3945 Biggs Rd.","Hose Wash Warehouse","B0078203","Owned","NANAIMO","Allison Dunn"]
["3945 Biggs Rd.","Farm Warehouse","B0078302","Owned","NANAIMO","Allison Dunn"]
["3945 Biggs Rd.","Sleeping Unit","B0078589","Owned","NANAIMO","Allison Dunn"]
["3945 Biggs Rd.","Kitchen Unit","B0078590","Owned","NANAIMO","Allison Dunn"]
["3945 Biggs Rd.","Farm Gang Building","B0092231","Managed","NANAIMO","Allison Dunn"]
["3945 Biggs Rd.","Park Works Building","B0092240","Managed","NANAIMO","Allison Dunn"]
["3945 Biggs Rd.","Bicycle Program Building","B0092620","Owned","NANAIMO","Allison Dunn"]
["3945 Biggs Rd.","Storage Shed /NCC","B1002268","Managed","NANAIMO","Allison Dunn"]
["3945 Biggs Rd.","Guthrie House School","B1002379","Owned","NANAIMO","Allison Dunn"]
["3945 Biggs Rd.","Farm Equipment Storage Shed #1","B1002591","Owned","NANAIMO","Allison Dunn"]
["3945 Biggs Rd.","Farm Equipment Storage Shed #2","B1002592","Owned","NANAIMO","Allison Dunn"]
["3945 Biggs Rd.","Chicken Hut #1 ","B1002593","Owned","NANAIMO","Allison Dunn"]
["3945 Biggs Rd.","Chicken Hut #2","B1002594","Owned","NANAIMO","Allison Dunn"]
["3945 Biggs Rd.","Hydroponic Shed","B1002595","Owned","NANAIMO","Allison Dunn"]
["3945 Biggs Rd.","Shed vacant ","B1002596","Owned","NANAIMO","Allison Dunn"]
["3945 Biggs Rd.","Shed","B1002597","Owned","NANAIMO","Allison Dunn"]
["3945 Biggs Rd.","Shed","B1002598","Owned","NANAIMO","Allison Dunn"]
["3945 Biggs Rd.","Shed (open walls) ","B1002599","Owned","NANAIMO","Allison Dunn"]
["3945 Biggs Rd.","Metal Storage Shed","B1002600","Owned","NANAIMO","Allison Dunn"]
["3945 Biggs Rd.","Greenhouse #1","B1002601","Owned","NANAIMO","Allison Dunn"]
["3945 Biggs Rd.","Greenhouse #2","B1002602","Owned","NANAIMO","Allison Dunn"]
["3945 Biggs Rd.","Greenhouse #3","B1002603","Owned","NANAIMO","Allison Dunn"]
["3945 Biggs Rd.","Small Engine Shop #1","B1002604","Owned","NANAIMO","Allison Dunn"]
["3945 Biggs Rd.","Small Engine Shop #2","B1002605","Owned","NANAIMO","Allison Dunn"]
["3945 Biggs Rd.","Carpentry Shop Add-on","B1002610","Owned","NANAIMO","Allison Dunn"]
["395 Elliot St.","CDC BUILDING","B1002334","Leased","QUESNEL","Carolynn Oliver"]
["395 Penno Rd. (170)","R.C.M.P. - Admin.","B0091987","Managed","KELOWNA","Mark Timmins"]
["395 Waterfront Cr.","Gatehouse","B0091756","Leased","VICTORIA","Darrel Murphy"]
["3960 Quadra St.","Quadra Ctr","B0065722","Leased","SAANICH","Allison Dunn"]
["3965 Quadra St.","Office","B0067607","Leased","SAANICH","Allison Dunn"]
["3980 22nd Ave.","Assembly Trailer","B0078501","Managed","PRINCE GEORGE","Elena Awchoula"]
["3980 22nd Ave.","Storage - Propane","B0078539","Owned","PRINCE GEORGE","Elena Awchoula"]
["3980 22nd Ave.","Fuel Shed","B0078566","Owned","PRINCE GEORGE","Elena Awchoula"]
["3980 22nd Ave.","Warehouse","B0083071","Owned","PRINCE GEORGE","Elena Awchoula"]
["3980 22nd Ave.","Office - Trailer #3","B0090052","Managed","PRINCE GEORGE","Elena Awchoula"]
["3999 Williams Rd.","Ambulance Station","B0092717","Owned","RICHMOND","Davy Mulligan"]
["3rd St.","PGOB","B0092428","Leased","ATLIN","Elena Awchoula"]
["3rd St.","Red Cross Outpost ","B0092477","Leased","ATLIN","Elena Awchoula"]
["3rd St.","Storage  (Included With L4880)","B0092478","Leased","ATLIN","Elena Awchoula"]
["3rd St.","Garage (Attached To L4880)","B0092479","Leased","ATLIN","Elena Awchoula"]
["40 Calgary Ave.","Penticton Plaza (301)","B0061788","Leased","PENTICTON","Alison Nordgren"]
["400 Campbell St.","RCMP Detachment","B1002733","Managed","TOFINO","Darrel Murphy"]
["4000 Seymour ","Shipping Container ","B1002566","Owned","SAANICH","Allison Dunn"]
["4000 Seymour Pl.","4000 Seymour Place Bldg.","B0073080","Leased","SAANICH","Allison Dunn"]
["4000 Trans Canada Hwy.","Cold Storage At Old Afton Mine Site","B0092520","Managed","KAMLOOPS","Mark Timmins"]
["4001 Seymour Pl.","Daycare Ctr","B0078308","Leased","SAANICH","Allison Dunn"]
["401 4th Ave.","Courthouse ","B0092055","Leased","FERNIE","Alison Nordgren"]
["401 Lower Ganges Rd.","R.C.M.P. Detachment","B0091226","Managed","SALTSPRING ISLAND","Allison Dunn"]
["401 Stuart Dr.","House - Residence 1","B0078064","Owned","MACKENZIE","Carolynn Oliver"]
["402 1st Ave.","House - Residence","B0078090","Owned","QUEEN CHARLOTTE","Elena Awchoula"]
["402 1st Ave. NW","Residence/Employee housing","B1002671","Managed","NAKUSP","Alison Nordgren"]
["4020 5th Ave.","R.C.M.P. Detachment 05-0516","B0091842","Managed","PRINCE GEORGE","Carolynn Oliver"]
["4020 5th Ave.","STORAGE SHED","B1002360","Managed","PRINCE GEORGE","Carolynn Oliver"]
["403 Vernon St.","Office - Pep","B0032789","Owned","NELSON","Alison Nordgren"]
["406 Copper Bay Rd.","Sandspit Elementary School","B0053603","Leased","SANDSPIT","Elena Awchoula"]
["407 Slocan Ave.","R.C.M.P. Detachment","B0091554","Managed","NEW DENVER","Alison Nordgren"]
["407 Slocan Ave.","Residence Attached To Detachment","B0091659","Managed","NEW DENVER","Alison Nordgren"]
["4070 8th Ave.","Office","B0067818","Leased","PORT ALBERNI","Darrel Murphy"]
["4088 8th Ave.","Office","B0067539","Leased","PORT ALBERNI","Darrel Murphy"]
["410 3rd Ave.","Warehouse","B0050492","Leased","PRINCE GEORGE","Carolynn Oliver"]
["410 Kinchant St.","Office","B0092559","Leased","QUESNEL","Carolynn Oliver"]
["411 Berg Rd","RCMP Residence/Employee Housing ","B1002678","Managed","GABRIOLA ISLAND","Allison Dunn"]
["411 Spruce St.","R.C.M.P. Residence","B0092444","Managed","CLINTON","Mark Timmins"]
["412 2nd Ave.","Residence","B0091556","Managed","NEW DENVER","Alison Nordgren"]
["413-4th St.","Office","B1002694","Leased","KASLO","Alison Nordgren"]
["415 Broadways St.","Courthouse/House-","B0092432","Leased","NAKUSP","Alison Nordgren"]
["4166 15th Ave.","R.C.M.P. Office","B0092550","Managed","PRINCE GEORGE","Carolynn Oliver"]
["4170 Still Creek Dr.","Office","B0092718","Leased","BURNABY","Davy Mulligan"]
["4172 15th Ave.","Rcmp Training Facility","B0092584","Managed","PRINCE GEORGE","Carolynn Oliver"]
["4186 - 15th Ave.","Northern SCAN Clinic","B1002253","Leased","PRINCE GEORGE","Carolynn Oliver"]
["420 Cumberland Rd.","Courthouse","B0014381","Owned","COURTENAY","Darrel Murphy"]
["42000 Loggers Ln.","Fuel Shed ","B0092465","Leased","SQUAMISH","Davy Mulligan"]
["42000 Loggers Ln.","Shed-Implements","B0092466","Leased","SQUAMISH","Davy Mulligan"]
["42000 Loggers Ln.","District Office","B0092467","Leased","SQUAMISH","Davy Mulligan"]
["421 2nd Ave.","Residence","B0091300","Managed","QUEEN CHARLOTTE","Elena Awchoula"]
["421 Menzies St","Office","B1002590","Leased","VICTORIA","Allison Dunn"]
["421 Neill St.","R.C.M.P. Married Quarters E0981","B0090527","Managed","TOFINO","Darrel Murphy"]
["4216 Wilkinson Rd.","Main Bldg - Jail - Correctional Facility","B0011809","Owned","SAANICH","Darrel Murphy"]
["4216 Wilkinson Rd.","Horse Barn - Staff Exercise","B0012062","Owned","SAANICH","Darrel Murphy"]
["4216 Wilkinson Rd.","Detention Cells","B0075754","Owned","SAANICH","Darrel Murphy"]
["4220 Commerce Cir.","Office","B0092026","Leased","SAANICH","Allison Dunn"]
["4234 Glanford Ave.","Warehouse - 742 Vanalman","B0066316","Leased","SAANICH","Allison Dunn"]
["425 Similkameen Ave.","R.C.M.P. Detachment","B0091566","Managed","OLIVER","Alison Nordgren"]
["4255 Prince George Airport","R.C.M.P. Detachment 50847 - Hanger","B0091329","Managed","PRINCE GEORGE","Carolynn Oliver"]
["430 Marine Dr.","Lions Gate Bridge Hwy Generator Storage","B1002704","Managed","WEST VANCOUVER","Davy Mulligan"]
["4300 North Rd.","Storage Building","B0092024","Leased","SAANICH","Allison Dunn"]
["4300 North Rd.","Lab","B0092322","Leased","SAANICH","Allison Dunn"]
["4300 North Rd.","Workshop","B0092338","Leased","SAANICH","Allison Dunn"]
["431 Menzies St.","Armories - see note","B0010033","Managed","VICTORIA","Allison Dunn"]
["4322 13th Ave.","Rcmp Detachment - North District","B0092450","Managed","NEW HAZELTON","Elena Awchoula"]
["4343 Skeena St.","RCMP Delta Hanger","B1002521","Managed","DELTA","Joel Guno"]
["4368 Margaret St.","Residence - R.C.M.P. 05016","B0091335","Managed","WELLS","Carolynn Oliver"]
["4370 Dominion St.","Office Space","B0092701","Leased","BURNABY","Davy Mulligan"]
["4392 West Saanich Rd.","Kidney Dialysis Unit","B1002332","Leased","SAANICH","Allison Dunn"]
["441 Columbia St.","Office","B0092621","Leased","KAMLOOPS","Mark Timmins"]
["4412 Boban Dr.","R.C.M.P. - W.C.Marine/Telcom - E2892","B0092193","Managed","NANAIMO","Allison Dunn"]
["4416 Boban Dr.","R.C.M.P.","B1002516","Managed","NANAIMO","Allison Dunn"]
["4419 Bedwell Harbour Rd.","R.C.M.P. Detachment E0626","B0090493","Managed","PENDER ISLAND","Allison Dunn"]
["4425 Ledger Ave.","Office","B0092115","Leased","BURNABY","Davy Mulligan"]
["4430 Halifax St.","Halifax Place","B0067336","Leased","BURNABY","Davy Mulligan"]
["444 Ellis St.","Office","B1002399","Leased","PENTICTON","Alison Nordgren"]
["4460 Chatterton Way","Office","B0091872","Leased","SAANICH","Allison Dunn"]
["447 Columbia St.","Office","B0092418","Leased","KAMLOOPS","Mark Timmins"]
["4478 W. Saanich Rd.","Office","B0067186","Leased","SAANICH","Allison Dunn"]
["44990 Caen Ave.","RCMP Driver Training Classroom Trailer/E2077","B1002737","Managed","CHILLIWACK","Joel Guno"]
["45 Charlie Currie Rd.","RCMP Office","B1002721","Managed","PRINCE RUPERT","Elena Awchoula"]
["45 Pine Cr.","RCMP Residence","B1002284","Managed","MACKENZIE","Carolynn Oliver"]
["450 Gibson St.","R.C.M.P. Married Quarters E0841","B0090529","Managed","TOFINO","Darrel Murphy"]
["450 Lansdowne St.","Office","B1002401","Leased","KAMLOOPS","Alison Nordgren"]
["4507 13th Ave.","Residence - R.C.M.P. 050316","B0091428","Managed","NEW HAZELTON","Elena Awchoula"]
["4523 13th Ave.","Residence - R.C.M.P. 050536","B0091430","Managed","NEW HAZELTON","Elena Awchoula"]
["45270 Keith Wilson Rd.","RCMP SPORTSFIELD TRAILER","B1002700","Managed","CHILLIWACK","Joel Guno"]
["4532 12th Ave.","Residence","B0091287","Managed","NEW HAZELTON","Elena Awchoula"]
["454 Balfour Cres.","RCMP Residence","B1002365","Managed","KASLO","Alison Nordgren"]
["4542 Park Ave.","NHA Addictions Day Treatment Program","B1002491","Managed","TERRACE","Elena Awchoula"]
["4545 Lazelle Ave.","Office","B0067014","Leased","TERRACE","Elena Awchoula"]
["45467 Yale Rd.","Access Ctr","B0091696","Leased","CHILLIWACK","Joel Guno"]
["4547 13th Ave.","Residence","B0091289","Managed","NEW HAZELTON","Elena Awchoula"]
["4548 12th Ave.","R.C.M.P. Residence","B0092280","Managed","NEW HAZELTON","Elena Awchoula"]
["455 Columbia St.","Courthouse","B0072769","Owned","KAMLOOPS","Mark Timmins"]
["455 Leon Ave.","Office","B0092417","Leased","KELOWNA","Mark Timmins"]
["45540 Yale Rd.","Office","B0092554","Leased","CHILLIWACK","Joel Guno"]
["4563 13th Ave.","Residence","B0091292","Managed","NEW HAZELTON","Elena Awchoula"]
["4580 12th Ave.","Residence","B0091288","Managed","NEW HAZELTON","Elena Awchoula"]
["45890 Victoria Ave.","Office","B0067332","Leased","CHILLIWACK","Joel Guno"]
["45960 Wellington Ave.","Chilliwack Five Corners Building","B0091910","Leased","CHILLIWACK","Joel Guno"]
["460 Doyle Ave.","Okanagan Centre for Innovation (OCI)","B1002624","Owned","KELOWNA","Mark Timmins"]
["460 Selby St.","Access Ctr","B0067819","Leased","NANAIMO","Allison Dunn"]
["4600 Jacombs Rd.","Office","B0091825","Leased","RICHMOND","Davy Mulligan"]
["4601 Canada Way","Office Space","B1002683","Leased","BURNABY","Davy Mulligan"]
["4603 Kingsway","Metro-Pointe","B0067483","Leased","BURNABY","Davy Mulligan"]
["4607 23rd St.","Office - Agriculture","B0051763","Leased","VERNON","Mark Timmins"]
["4607 23rd St.","Implement Shed","B0092595","Leased","VERNON","Mark Timmins"]
["46085 Yale Rd.","Courthouse","B0091782","Owned","CHILLIWACK","Joel Guno"]
["46326 Airport Rd.","R.C.M.P.","B0090927","Managed","CHILLIWACK","Joel Guno"]
["4634 Park Ave.","Park Ave Medical Office","B1002261","Leased","TERRACE","Elena Awchoula"]
["46360 Airport Rd.","Office (Leaseback/Actual Area Used)","B0091580","Leased","CHILLIWACK","Joel Guno"]
["46360 Airport Rd.","Warehouse","B0092270","Leased","CHILLIWACK","Joel Guno"]
["4637 Cedar St.","R.C.M.P. Married Quarters E0588","B0090531","Managed","TEXADA ISLAND","Darrel Murphy"]
["4664 Lougheed Hwy.","Office","B1002518","Leased","BURNABY","Davy Mulligan"]
["470 Stuart Dr. W.","Shopping Ctr","B0053025","Leased","FORT ST. JAMES","Elena Awchoula"]
["4702 Lazelle Ave.","Office Building","B1002533","Leased","TERRACE","Elena Awchoula"]
["4720 Kingsway","Tower 2","B0068122","Leased","BURNABY","Davy Mulligan"]
["4744 52nd St.","Office","B0067986","Leased","CHETWYND","Carolynn Oliver"]
["475 Birch Ave. S.","Office","B0092607","Leased","100 MILE HOUSE","Carolynn Oliver"]
["4760 Roger St.","Ambulance Stn","B0078213","Owned","PORT ALBERNI","Darrel Murphy"]
["478 Barriere Town Rd.","R.C.M.P. Detachment","B0091526","Managed","BARRIERE","Mark Timmins"]
["478 Bernard Ave.","Office","B0092547","Leased","KELOWNA","Mark Timmins"]
["478 St. Paul St.","Office - Regional","B0067026","Leased","KAMLOOPS","Alison Nordgren"]
["4780 Roger St.","Health Ctr","B0078406","Owned","PORT ALBERNI","Darrel Murphy"]
["47864 Old Boston Bar Rd.","R.C.M.P.","B0090925","Managed","BOSTON BAR","Joel Guno"]
["4791 23rd.St.","Office","B0092296","Leased","VERNON","Mark Timmins"]
["480 Cumberland Rd.","Office","B0055137","Owned","COURTENAY","Darrel Murphy"]
["4804 Mcleod Rd.","R.C.M.P. Detachment 50087","B0091306","Managed","FORT NELSON","Carolynn Oliver"]
["4821 S. Access Rd.","Office","B0091486","Leased","CHETWYND","Carolynn Oliver"]
["4825 Keith Ave.","Office/Shop  ","B0092434","Leased","TERRACE","Elena Awchoula"]
["4825 Keith Ave.","Oil Storage Shed   (L4887)","B0092463","Leased","TERRACE","Elena Awchoula"]
["4825 Keith Ave.","Storage   (L4887)","B0092464","Leased","TERRACE","Elena Awchoula"]
["4833 Southgate Rd.","Office  - Unit A","B0092623","Leased","PORT ALBERNI","Darrel Murphy"]
["486 72 St.","Office","B0092170","Leased","GRAND FORKS","Alison Nordgren"]
["488 Albert St.","Office","B0067804","Leased","NANAIMO","Allison Dunn"]
["4882 11th Ave.","Residence - R.C.M.P. 050446","B0091840","Managed","NEW HAZELTON","Elena Awchoula"]
["4885 Cherry Creek Rd.","Office","B0091669","Leased","PORT ALBERNI","Darrel Murphy"]
["4885 Cherry Creek Rd.","Implement Shed","B0092269","Leased","PORT ALBERNI","Darrel Murphy"]
["493 8th Ave.","RCMP Residence","B1002282","Managed","MIDWAY","Alison Nordgren"]
["4936 Athalmere Rd.","R.C.M.P. Detachment","B0091539","Managed","INVERMERE","Mark Timmins"]
["4936 Barriere Town Rd.","MCFD Office","B1002725","Leased","BARRIERE","Mark Timmins"]
["494 Bay Ave.","Parksville Family Place","B1002493","Leased","PARKSVILLE","Darrel Murphy"]
["4940 Canada Way","Deer Lake Ctr Phase Ii","B0062760","Leased","BURNABY","Davy Mulligan"]
["4946 Canada Way","Deer Lake Ctr 1","B0058065","Leased","BURNABY","Davy Mulligan"]
["495 Dunsmuir St.","Dunsmuir","B0066720","Leased","NANAIMO","Allison Dunn"]
["498 Queensway St.","Jack & Jill Bldg (496/498)","B0063651","Leased","PRINCE GEORGE","Carolynn Oliver"]
["4980 Kingsway Ave.","Office","B1002750","Leased","BURNABY"]
["499 George St.","Wood Innovation Design Centre (WIDC)","B1002532","Owned","PRINCE GEORGE","Elena Awchoula"]
["499 Muchalat Dr.","Public Safety","B0052753","Leased","GOLD RIVER","Darrel Murphy"]
["5 Riverview Dr.","Residence - R.C.M.P. 50267","B0091248","Managed","DEASE LAKE","Elena Awchoula"]
["50 Boulder Ave.","R.C.M.P. Detachment 50651","B0091305","Managed","DEASE LAKE","Elena Awchoula"]
["500 13th Ave.","Courthouse","B0048801","Owned","CAMPBELL RIVER","Darrel Murphy"]
["500 Matterson Dr.","Office","B1002732","Leased","UCLUELET","Darrel Murphy"]
["500 Parkway Rd.","Ambulance Stn/Medical Facility","B0078415","Owned","ZEBALLOS","Darrel Murphy"]
["500 Slater Rd. - Unit 5","RCMP Electronics Shop","B0092021","Managed","CRANBROOK","Alison Nordgren"]
["5000 Bridge St.","Office","B0065797","Leased","DELTA","Joel Guno"]
["501 Belleville St.","Legislature -Primary","B0043364","Managed","VICTORIA","Allison Dunn"]
["5010 Gillies Bay Rd.","R.C.M.P. Detachment E0853","B0090508","Managed","TEXADA ISLAND","Darrel Murphy"]
["5020 Airport Dr.","Office","B0067952","Leased","FORT NELSON","Carolynn Oliver"]
["5021 49th Ave.","Chetwynd Ctr","B0066290","Leased","CHETWYND","Carolynn Oliver"]
["5021 Kingsway","Malborough Mall","B0054585","Leased","BURNABY","Davy Mulligan"]
["504 1st Ave.","R.C.M.P. Residence","B0092282","Managed","QUEEN CHARLOTTE","Elena Awchoula"]
["504 Cottonwood Ave.","Office","B0068066","Leased","COQUITLAM","Davy Mulligan"]
["505 Burman Crt.","R.C.M.P. Residence ","B1002575","Managed","GOLD RIVER","Darrel Murphy"]
["506 Government St.","House/Office","B0010678","Owned","VICTORIA","Allison Dunn"]
["50620 Slanzi Rd.","Residence - R.C.M.P. 1","B0090933","Managed","BOSTON BAR","Joel Guno"]
["50625 Slanzi Rd.","Residence - R.C.M.P. 5","B0090934","Managed","BOSTON BAR","Joel Guno"]
["50625 Slanzi Rd.","Residence - R.C.M.P. 4 (A)","B0090935","Managed","BOSTON BAR","Joel Guno"]
["507 Burman Crt.","R.C.M.P Residence ","B1002576","Managed","GOLD RIVER","Darrel Murphy"]
["508 Hwy. 16 W.","Courthouse","B0071985","Owned","BURNS LAKE","Elena Awchoula"]
["50801 Christensen Rd.","R.C.M.P.  Trailer","B0092165","Managed","ANAHIM LAKE","Carolynn Oliver"]
["509 2nd Ave.","Residence","B0091301","Managed","QUEEN CHARLOTTE","Elena Awchoula"]
["51 Francois Lake Dr.","Storage Unit - Burns Lake Hwys Yard ","B1002358","Owned","BURNS LAKE","Elena Awchoula"]
["510 & 540 Carney St.","Office","B0067935","Leased","PRINCE GEORGE","Carolynn Oliver"]
["510 Burrard St.","Office","B0092539","Leased","VANCOUVER","Davy Mulligan"]
["5125 50th St. S.W. ","Health Centre","B1002577","Leased","CHETWYND","Carolynn Oliver"]
["513 2nd Ave.","Residence","B0091303","Managed","QUEEN CHARLOTTE","Elena Awchoula"]
["514 Government St.","House/Office","B0010660","Owned","VICTORIA","Allison Dunn"]
["514 Main St.","Office","B0067370","Leased","LILLOOET","Mark Timmins"]
["515 Columbia St.","Forestry Bldg","B0029769","Owned","KAMLOOPS","Mark Timmins"]
["516 Cedar Cres","R.C.M.P. Residence","B0092278","Managed","GOLD RIVER","Darrel Murphy"]
["5172 Kingsway ","Office Building","B1002455","Leased","BURNABY","Davy Mulligan"]
["518 Cheenies St. Lot 69","R.C.M.P. Residence - 05-0023","B0091969","Managed","BELLA BELLA","Carolynn Oliver"]
["519 Columbia St.","Health Ctr - S. Central","B0077479","Owned","KAMLOOPS","Mark Timmins"]
["519A Columbia St.","Health Centre - Continuing Care Trailer","B0067393","Owned","KAMLOOPS","Mark Timmins"]
["519B Columbia St.","Health Trailer - Corporate Office","B0077919","Owned","KAMLOOPS","Mark Timmins"]
["520 Cheenies St. Lot 70","R.C.M.P. Residence - 05-0024","B0091968","Managed","BELLA BELLA","Carolynn Oliver"]
["5201 Heather St.","R.C.M.P. - Forensic Lab - #E0362","B0091998","Managed","VANCOUVER","Davy Mulligan"]
["5201B Heather St.","RCMP Forensic Lab B","B1002522","Managed","VANCOUVER","Davy Mulligan"]
["521 Columbia St.","Boiler House 1","B0091685","Owned","KAMLOOPS","Mark Timmins"]
["521 Upper Golden Donald Rd.","Warehouse","B1002496","Leased","GOLDEN","Mark Timmins"]
["5217 Airport Dr.","NHA Office/Clinic","B1002256","Leased","FORT NELSON","Carolynn Oliver"]
["5220 Keith Ave.","Bc Hydro Bldg","B0067216","Leased","TERRACE","Elena Awchoula"]
["523 Columbia St.","Regional Office - Hwys","B0029777","Owned","KAMLOOPS","Mark Timmins"]
["525 South Rd.","R.C.M.P. Detachment E0712","B0090499","Managed","GABRIOLA ISLAND","Allison Dunn"]
["525 Superior St","Commercial Office Building ","B1002634","Leased","VICTORIA","Darrel Murphy"]
["527 Columbia St.","Annex","B0029785","Owned","KAMLOOPS","Mark Timmins"]
["53005-1 Kahmoose Rd.","MCFD Office","B1002731","Leased","BOSTON BAR","Joel Guno"]
["531 Cypre Cres.","R.C.M.P. Married Quarters E0726","B0090530","Managed","TOFINO","Darrel Murphy"]
["5311 50th Ave.","House - Residence","B0038869","Owned","FORT NELSON","Carolynn Oliver"]
["5319 50th Ave. S.","Town Sq - MH&A Clubhouse","B0066084","Leased","FORT NELSON","Carolynn Oliver"]
["5339 Hamsterly Rd.","Weigh Scale - Portable","B0078314","Managed","SAANICH","Allison Dunn"]
["540 Borland St.","Pgob/Access Ctr","B0031690","Owned","WILLIAMS LAKE","Carolynn Oliver"]
["540 Borland St.","Garage Adjacent To Gob","B0080093","Owned","WILLIAMS LAKE","Carolynn Oliver"]
["540 Mackenzie Blvd.","Evergreen Mall","B0060608","Leased","MACKENZIE","Carolynn Oliver"]
["5420 47th St.","Garage","B0038901","Owned","FORT NELSON","Carolynn Oliver"]
["5420 47th St.","Storage - Recycling","B0078518","Owned","FORT NELSON","Carolynn Oliver"]
["5424 Hospital Rd.","R.C.M.P. Detachment 50118","B0091304","Managed","CHETWYND","Carolynn Oliver"]
["5425 Hospital Rd.","RCMP Storage Unit","B1002385","Managed","CHETWYND","Carolynn Oliver"]
["5431 Airport Dr.","Courthouse/Pgob","B0038877","Owned","FORT NELSON","Carolynn Oliver"]
["545 Larch St.","R.C.M.P. Married Quarters E0382","B0090513","Managed","ALERT BAY","Darrel Murphy"]
["545 Superior St.","Capital Park Phase II","B1002716","Leased","VICTORIA","Darrel Murphy"]
["546 Yates St.","Office","B1002572","Leased","VICTORIA","Darrel Murphy"]
["547 Cheenies St.","R.C.M.P. - Residence - E2194","B0092241","Managed","BELLA BELLA","Carolynn Oliver"]
["5477 - 152nd St.","Office","B1002386","Leased","SURREY","Joel Guno"]
["5480 Shorncliffe Ave.","Courthouse/R.C.M.P. Building","B0091929","Leased","SECHELT","Davy Mulligan"]
["5498 Wharf Ave.","Office","B0068063","Leased","SECHELT","Davy Mulligan"]
["550 2nd. Ave N.E.","Courthouse","B0092308","Leased","SALMON ARM","Mark Timmins"]
["550 Cambie St.","Office","B0090125","Leased","VANCOUVER","Davy Mulligan"]
["550 Comox Rd.","District Office","B0067150","Leased","COURTENAY","Darrel Murphy"]
["550 Lakeshore Rd. N.E.","Office - Mcf","B0091854","Leased","SALMON ARM","Mark Timmins"]
["5503 Tuchodi Ave.","Residence - R.C.M.P. 50192","B0091256","Managed","FORT NELSON","Carolynn Oliver"]
["551 Larch St.","R.C.M.P. Married Quarters E0383","B0090514","Managed","ALERT BAY","Darrel Murphy"]
["5512 Tuchodi Ave.","Residence - R.C.M.P. 50163","B0091257","Managed","FORT NELSON","Carolynn Oliver"]
["5516 Tuchodi Ave.","Residence - R.C.M.P. 50164","B0091258","Managed","FORT NELSON","Carolynn Oliver"]
["5520 Churchill Ave.","Residence - R.C.M.P. 50174","B0091267","Managed","FORT NELSON","Carolynn Oliver"]
["5524 Maxhamish Cr.","Residence - R.C.M.P. 50159","B0091265","Managed","FORT NELSON","Carolynn Oliver"]
["5532 Minnaker Cres.","Residence - R.C.M.P. 50189","B0091259","Managed","FORT NELSON","Carolynn Oliver"]
["5535 Maxhamish Cr.","Residence - R.C.M.P. 50154","B0091266","Managed","FORT NELSON","Carolynn Oliver"]
["5536 Minnaker Cres.","Residence - R.C.M.P. 50179","B0091260","Managed","FORT NELSON","Carolynn Oliver"]
["555 Columbia Ave.","Courthouse","B0072389","Owned","CASTLEGAR","Alison Nordgren"]
["555 Victoria Rd.","Alpine Village Mall","B0067041","Leased","REVELSTOKE","Mark Timmins"]
["555 W. Hastings St.","Harbour Centre","B0092093","Leased","VANCOUVER","Davy Mulligan"]
["5550 Dieppe Pl.","RCMP Office building used for scenario training","B1002682","Managed","CHILLIWACK","Joel Guno"]
["5550 Fraser St.","Office","B0068178","Leased","VANCOUVER","Davy Mulligan"]
["5608 Minnaker Cres.","Residence - R.C.M.P. 50183","B0091261","Managed","FORT NELSON","Carolynn Oliver"]
["561 Ahousaht Rd.","R.C.M.P Detachment E0113 ","B1002389","Managed","AHOUSAHT","Darrel Murphy"]
["561 Columbia St.","Warehouse - Regional","B0029637","Owned","KAMLOOPS","Mark Timmins"]
["561 Columbia St.","Garage/Workshop","B0029652","Owned","KAMLOOPS","Mark Timmins"]
["561 Columbia St.","Warehouse - Forestry Protection","B0045815","Owned","KAMLOOPS","Mark Timmins"]
["561 Columbia St.","Storage","B0049296","Owned","KAMLOOPS","Mark Timmins"]
["561 Columbia St.","Cone Shed","B0070482","Owned","KAMLOOPS","Mark Timmins"]
["561 Columbia St.","Boiler House 2 (B)","B0091686","Owned","KAMLOOPS","Mark Timmins"]
["561 Columbia St.","Trailer - Double Wide 1990 #1","B0092500","Managed","KAMLOOPS","Mark Timmins"]
["561 Columbia St.","Trailer - Double Wide 1990 #2","B0092501","Managed","KAMLOOPS","Mark Timmins"]
["561 Columbia St.","Trailer - Double Wide 1990 #3","B0092502","Managed","KAMLOOPS","Mark Timmins"]
["561 Larch St.","R.C.M.P.  Married Quarters ","B1002573","Managed","ALERT BAY","Darrel Murphy"]
["5611 Cooney Rd.","Office","B0092544","Leased","RICHMOND","Davy Mulligan"]
["5616 Minnaker Cres.","Residence - R.C.M.P. 50137","B0091262","Managed","FORT NELSON","Carolynn Oliver"]
["5619 Alpine Rd.","House - Residence","B0078059","Owned","FORT NELSON","Carolynn Oliver"]
["5628 Minnaker Cres.","Residence - R.C.M.P. 50187","B0091263","Managed","FORT NELSON","Carolynn Oliver"]
["563 Superior St.","Queen's Printer","B0010652","Owned","VICTORIA","Allison Dunn"]
["5632 Minnaker Cres.","Residence - R.C.M.P. 50178","B0091264","Managed","FORT NELSON","Carolynn Oliver"]
["564 Mountain View Sq.","Office","B0091619","Leased","KITIMAT","Elena Awchoula"]
["565 Bernard Ave.","Towne Ctr Mall","B0091852","Leased","KELOWNA","Mark Timmins"]
["567 Hwy. 97 S.","Okanagan Lake Provincial Park Building","B1002328","Managed","SUMMERLAND","Alison Nordgren"]
["5678 Hwy. 97","R.C.M.P. Detachment","B0091563","Managed","FALKLAND","Mark Timmins"]
["569 9th Ave.","Rcmp Residence","B0092446","Managed","MIDWAY","Alison Nordgren"]
["5710 Teredo St.","Teredo Sq","B0061309","Leased","SECHELT","Davy Mulligan"]
["5714 Glover Rd.","Office","B0067931","Leased","LANGLEY","Joel Guno"]
["575 Borland St.","R.C.M.P. Detachment 50508","B0091344","Managed","WILLIAMS LAKE","Carolynn Oliver"]
["5753 Glover Rd.","Office","B0067900","Leased","LANGLEY","Joel Guno"]
["5755 Glover Rd.","Office","B0068112","Leased","LANGLEY","Joel Guno"]
["5760 Minoru Blvd.","Office","B0068086","Leased","RICHMOND","Davy Mulligan"]
["57657 Chilliwack Lake Rd.","Work/Storage","B0023994","Owned","CHILLIWACK","Joel Guno"]
["57657 Chilliwack Lake Rd.","Storage - Paint","B0024000","Owned","CHILLIWACK","Joel Guno"]
["57657 Chilliwack Lake Rd.","Tools","B0024026","Owned","CHILLIWACK","Joel Guno"]
["57657 Chilliwack Lake Rd.","Hobby Shop","B0024034","Owned","CHILLIWACK","Joel Guno"]
["57657 Chilliwack Lake Rd.","Gym/Recreation","B0024059","Owned","CHILLIWACK","Joel Guno"]
["57657 Chilliwack Lake Rd.","Pump House","B0024075","Owned","CHILLIWACK","Joel Guno"]
["57657 Chilliwack Lake Rd.","Oil Storage Shed","B0076661","Owned","CHILLIWACK","Joel Guno"]
["57657 Chilliwack Lake Rd.","Garage","B0076679","Owned","CHILLIWACK","Joel Guno"]
["57657 Chilliwack Lake Rd.","Bunkhouse A","B0081141","Owned","CHILLIWACK","Joel Guno"]
["57657 Chilliwack Lake Rd.","Bunkhouse B","B0081158","Owned","CHILLIWACK","Joel Guno"]
["57657 Chilliwack Lake Rd.","Bunkhouse C","B0081166","Owned","CHILLIWACK","Joel Guno"]
["57657 Chilliwack Lake Rd.","Bunkhouse D","B0081174","Owned","CHILLIWACK","Joel Guno"]
["57657 Chilliwack Lake Rd.","Admin Bldg","B0081182","Owned","CHILLIWACK","Joel Guno"]
["57657 Chilliwack Lake Rd.","Induction Unit","B0091467","Owned","CHILLIWACK","Joel Guno"]
["57657 Chilliwack Lake Rd.","Assembly Trailer","B0091894","Owned","CHILLIWACK","Joel Guno"]
["57657 Chilliwack Lake Rd.","Cascade Continuing Eduction Centre","B1002326","Managed","CHILLIWACK","Joel Guno"]
["57657 Chilliwack Lake Rd.","Generator / Pump House","B1002467","Owned","CHILLIWACK","Joel Guno"]
["57657 Chilliwack Lake Rd.","Waste Water Treatment Plant","B1002535","Owned","CHILLIWACK","Joel Guno"]
["57657 Chilliwack Lake Rd.","Red Barn","B1002635","Owned","CHILLIWACK","Joel Guno"]
["57657 Chilliwack Lake Rd.","Storage Shed in  Industrial Area","B1002636","Owned","CHILLIWACK","Joel Guno"]
["57657 Chilliwack Lake Rd.","Sprung Structure","B1002637","Owned","CHILLIWACK","Joel Guno"]
["57657 Chilliwack Lake Rd.","Shed  1 - Madden above door","B1002638","Owned","CHILLIWACK","Joel Guno"]
["57657 Chilliwack Lake Rd.","Shed 2 - on pavement","B1002639","Owned","CHILLIWACK","Joel Guno"]
["57657 Chilliwack Lake Rd.","Shed 3 - not raised","B1002640","Owned","CHILLIWACK","Joel Guno"]
["57657 Chilliwack Lake Rd.","Shed 4 with light","B1002641","Owned","CHILLIWACK","Joel Guno"]
["57657 Chilliwack Lake Rd.","Gazebo","B1002642","Owned","CHILLIWACK","Joel Guno"]
["57657 Chilliwack Lake Rd.","Fire hydrant shed","B1002643","Owned","CHILLIWACK","Joel Guno"]
["57657 Chilliwack Lake Rd.","Water tower Circumference","B1002644","Owned","CHILLIWACK","Joel Guno"]
["57657 Chilliwack Lake Rd.","Toilet - Industrial Area","B1002645","Owned","CHILLIWACK","Joel Guno"]
["57657 Chilliwack Lake Rd.","Storage Shed","B1002646","Owned","CHILLIWACK","Joel Guno"]
["57657 Chilliwack Lake Rd.","Small house - industrial area","B1002647","Owned","CHILLIWACK","Joel Guno"]
["57657 Chilliwack Lake Rd.","Small shed - industrial area","B1002648","Owned","CHILLIWACK","Joel Guno"]
["57657 Chilliwack Lake Rd.","Trade School - industrial mill","B1002649","Owned","CHILLIWACK","Joel Guno"]
["57657 Chilliwack Lake Rd.","Storage house - blue roof","B1002650","Owned","CHILLIWACK","Joel Guno"]
["57657 Chilliwack Lake Rd.","Open Storage Shed - 1","B1002651","Owned","CHILLIWACK","Joel Guno"]
["57657 Chilliwack Lake Rd.","Storage Shed - 2","B1002652","Owned","CHILLIWACK","Joel Guno"]
["57657 Chilliwack Lake Rd.","Storage Shed - 3","B1002653","Owned","CHILLIWACK","Joel Guno"]
["57657 Chilliwack Lake Rd.","Industrial Building - 1","B1002654","Owned","CHILLIWACK","Joel Guno"]
["57657 Chilliwack Lake Rd.","Industrial Building - 2","B1002655","Owned","CHILLIWACK","Joel Guno"]
["57657 Chilliwack Lake Rd.","Industrial Building - 3","B1002656","Owned","CHILLIWACK","Joel Guno"]
["57657 Chilliwack Lake Rd.","Industrial Building - 4","B1002657","Owned","CHILLIWACK","Joel Guno"]
["57657 Chilliwack Lake Rd.","Shed behind Greenhouse","B1002658","Owned","CHILLIWACK","Joel Guno"]
["57657 Chilliwack Lake Rd.","Shed behind Admin. Building","B1002659","Owned","CHILLIWACK","Joel Guno"]
["57657 Chilliwack Lake Rd.","Greenhouse by sprung structure","B1002660","Owned","CHILLIWACK","Joel Guno"]
["57657 Chilliwack Lake Rd.","Sport Equipment Shed","B1002661","Owned","CHILLIWACK","Joel Guno"]
["57657 Chilliwack Lake Rd.","Barn (chicken)","B1002662","Owned","CHILLIWACK","Joel Guno"]
["57657 Chilliwack Lake Rd.","Shed - by barn (chicken)","B1002663","Owned","CHILLIWACK","Joel Guno"]
["57657 Chilliwack Lake Rd.","Visitor Parking - shed","B1002664","Owned","CHILLIWACK","Joel Guno"]
["57657 Chilliwack Lake Rd.","Smoke Pit Gazebo","B1002665","Owned","CHILLIWACK","Joel Guno"]
["57657 Chilliwack Lake Rd.","Equipment storage buildings x2 - closest to garage","B1002666","Owned","CHILLIWACK","Joel Guno"]
["57657 Chilliwack Lake Rd.","Two Equipment Storage buildings","B1002667","Owned","CHILLIWACK","Joel Guno"]
["57657 Chilliwack Lake Rd.","Shed closest to garage","B1002668","Owned","CHILLIWACK","Joel Guno"]
["57657 Chilliwack Lake Rd.","Office ","B1002686","Managed","CHILLIWACK","Joel Guno"]
["5785 Duncan St.","Access Ctr","B0067554","Leased","DUNCAN","Allison Dunn"]
["58 Cowichan Ave. W.","Health Centre","B0050021","Leased","COWICHAN LAKE","Allison Dunn"]
["580 Florence St.","R.C.M.P. Detachment","B0091551","Managed","MIDWAY","Alison Nordgren"]
["583 Fairview Rd.","Pgob","B0027003","Owned","OLIVER","Alison Nordgren"]
["584 Helanton Rd","Rcmp","B0092754","Managed","QUADRA ISLAND","Darrel Murphy"]
["5840 Cedarbridge Way","Office ","B0068188","Leased","RICHMOND","Davy Mulligan"]
["585 Glady St.","Laboratory","B0032227","Owned","BALFOUR","Alison Nordgren"]
["5917 Airport St.","Office","B0067367","Leased","OLIVER","Alison Nordgren"]
["5935 Sawmill Rd.","Okanagan River Operations Ctr","B0047977","Managed","OLIVER","Alison Nordgren"]
["598 Cassiar Connector","Cassiar Connector Hwy Generator Storage","B1002703","Managed","VANCOUVER","Davy Mulligan"]
["6 - 21330 56th Ave.","RCMP Building Langley Airport","B1002514","Managed","LANGLEY","Joel Guno"]
["6 Lots 6 & 7","R.C.M.P.","B0090930","Managed","PEMBERTON","Davy Mulligan"]
["6012 Alaska Hwy. (Mile 301)","Warehouse","B0092408","Leased","FORT NELSON","Carolynn Oliver"]
["6012 Alaska Hwy. (Mile 301)","RCMP portion of building. (see note)","B0092755","Managed","FORT NELSON","Carolynn Oliver"]
["602 Granville Ave.","R.C.M.P. Detachment","B0091546","Managed","ENDERBY","Mark Timmins"]
["605 Robson St.","Office Building","B0067768","Leased","VANCOUVER","Joel Guno"]
["607 Douglas Rd.","R.C.M.P. Detachment","B0091543","Managed","SPARWOOD","Alison Nordgren"]
["609 Broughton St.","Weiler Building","B0060434","Leased","VICTORIA","Darrel Murphy"]
["61 Airport Rd.","R.C.M.P. Detachment 50968","B0091336","Managed","SANDSPIT","Elena Awchoula"]
["610  Kelsey Way","R.C.M.P. - Detachment - E2234","B0092197","Managed","SAYWARD","Darrel Murphy"]
["6100 Alaska Hwy. (Mile 301)","District Office ","B0072306","Owned","FORT NELSON","Carolynn Oliver"]
["6100 Alaska Hwy. (Mile 301)","Warehouse","B0072314","Owned","FORT NELSON","Carolynn Oliver"]
["6100 Alaska Hwy. (Mile 301)","Fuel Shed","B0078069","Managed","FORT NELSON","Carolynn Oliver"]
["611 Railway Ave.","Office","B0067564","Leased","ASHCROFT","Mark Timmins"]
["612 Government St.","Bunker","B0092734","Managed","VICTORIA","Allison Dunn"]
["613 2nd Ave.","House - Residence","B0078541","Managed","QUEEN CHARLOTTE","Elena Awchoula"]
["614 Humboldt St.","Belmont Building","B0055913","Leased","VICTORIA","Darrel Murphy"]
["615 Azu Pl.","RCMP Residence","B1002291","Managed","MACKENZIE","Carolynn Oliver"]
["615 Heriot Bay Rd.","R.C.M.P. Married Quarters E0368","B0090540","Managed","QUADRA ISLAND","Darrel Murphy"]
["615 Main St.","Courthouse & B92095","B0092056","Leased","LILLOOET","Mark Timmins"]
["615 Russell Ln.","Storage","B0092095","Leased","LILLOOET","Mark Timmins"]
["616 Alberto Rd.","R.C.M.P. E0946","B0091724","Managed","TOFINO","Darrel Murphy"]
["617 Government St.","Douglas Bldg","B0010223","Owned","VICTORIA","Allison Dunn"]
["617 Government St.","Central Heating Plant","B0010231","Owned","VICTORIA","Allison Dunn"]
["619 8th Ave.","Rcmp Residence","B0092445","Managed","MIDWAY","Alison Nordgren"]
["619 Victoria St.","Office - Human Resources","B0091788","Leased","KAMLOOPS","Alison Nordgren"]
["620 17 St.","Office - 1064893 (L4744)","B0092258","Leased","CASTLEGAR","Alison Nordgren"]
["620 Superior St.","Annex To Douglas Bldg","B0072264","Owned","VICTORIA","Allison Dunn"]
["625 4th St.","Office ","B0092439","Leased","INVERMERE","Mark Timmins"]
["625 4th St.","Warehouse/Stores ","B0092441","Leased","INVERMERE","Mark Timmins"]
["625 4th St.","Shed Implement ","B0092443","Leased","INVERMERE","Mark Timmins"]
["625 4th St.","Fuel Shed","B1002380","Leased","INVERMERE","Mark Timmins"]
["625 Main St.","Residence","B0091536","Managed","LYTTON","Mark Timmins"]
["6295 Airport Rd","Rcmp Hanger/Workshop/Office","B0092529","Managed","KELOWNA","Mark Timmins"]
["631 Seymour St.","Office","B0067391","Leased","KAMLOOPS","Alison Nordgren"]
["633 Courtney St.","Nootka Court","B0050906","Leased","VICTORIA","Darrel Murphy"]
["634 Humboldt St","Office - Part Of Nootka Court","B0092689","Leased","VICTORIA","Darrel Murphy"]
["635 5th Ave.","Rcmp Residence","B0092447","Managed","MIDWAY","Alison Nordgren"]
["635 Fitzgerald Ave.","Health Office","B0092238","Leased","COURTENAY","Darrel Murphy"]
["636 Cliff St.","Office  Pgob","B0082826","Owned","BELLA COOLA","Carolynn Oliver"]
["636 Cliff St.","Storage","B0082834","Owned","BELLA COOLA","Carolynn Oliver"]
["639 Main St.","Access Ctr","B0067568","Leased","LILLOOET","Mark Timmins"]
["64 Centennial Dr.","Police/Courts","B0067020","Leased","MACKENZIE","Carolynn Oliver"]
["640 Borland St.","Resources Building ","B0092174","Leased","WILLIAMS LAKE","Carolynn Oliver"]
["644 Heriot Bay Rd.","R.C.M.P. Married Quarters E0733","B0090538","Managed","QUADRA ISLAND","Darrel Murphy"]
["644-674 Front St.","Office","B1002272","Leased","QUESNEL","Carolynn Oliver"]
["645 Tyee Rd.","Office","B0092628","Leased","VICTORIA","Darrel Murphy"]
["646 Heriot Bay Rd.","R.C.M.P. Married Quarters E0734","B0090539","Managed","QUADRA ISLAND","Darrel Murphy"]
["6463 Balsam Way","R.C.M.P.","B0090942","Managed","WHISTLER","Davy Mulligan"]
["6475 Metral Dr.","Government Office","B0067194","Leased","NANAIMO","Allison Dunn"]
["65 Front St.","Office","B0092473","Leased","NANAIMO","Allison Dunn"]
["650 Kawkawa Lake Rd., RR#4","MCFD Office","B1002745","Leased","HOPE"]
["651 Carnarvon St.","Law Courts","B0046979","Owned","NEW WESTMINSTER","Davy Mulligan"]
["6531 Metral Dr. ","Office","B1002400","Leased","NANAIMO","Allison Dunn"]
["655 W. 12th Ave.","Bc Ctr For Disease Control","B0090258","Owned","VANCOUVER","Joel Guno"]
["6551 Aulds Rd.","Hong Kong Bank (200)","B0090271","Leased","NANAIMO","Allison Dunn"]
["6578 Bryn Rd.","Office And Warehouse","B0092041","Leased","CENTRAL SAANICH","Allison Dunn"]
["660 Park Dr.","Health Ctr","B0078202","Owned","CLEARWATER","Mark Timmins"]
["664 Alonzo Way","Residence","B0091537","Managed","LYTTON","Mark Timmins"]
["6640 Vedder Rd.","Office","B1002341","Leased","CHILLIWACK","Joel Guno"]
["6647 Christensen Rd.","Detachment 2","B1002618","Managed","ANAHIM LAKE","Carolynn Oliver"]
["6649 Christensen Rd.","Rcmp Residence - #E0827 - Collator - E1983","B0092377","Managed","ANAHIM LAKE","Carolynn Oliver"]
["665 Main St.","R.C.M.P. Detachment","B0091535","Managed","LYTTON","Mark Timmins"]
["6651 Christensen Rd.","R.C.M.P. MQ Residence #05-0822 ","B0092039","Managed","ANAHIM LAKE","Carolynn Oliver"]
["6653 Christensen Rd.","R.C.M.P. MQ Residence #05-0823","B0092038","Managed","ANAHIM LAKE","Carolynn Oliver"]
["6655 Christensen Rd.","Residence - R.C.M.P. 50802","B0091236","Managed","ANAHIM LAKE","Carolynn Oliver"]
["666 Alonzo Way","R.C.M.P. - Garage","B0091538","Managed","LYTTON","Mark Timmins"]
["6661 Christensen Rd.","R.C.M.P. Detachment 50801","B0091270","Managed","ANAHIM LAKE","Carolynn Oliver"]
["6672 Wadams Way","Office","B1002726","Leased","SOOKE","Darrel Murphy"]
["668 Carnarvon St.","Begbie Court","B0067502","Leased","NEW WESTMINSTER","Davy Mulligan"]
["6710 Hwy. 1 S.","Weigh Scale","B0078297","Managed","DUNCAN","Allison Dunn"]
["675 Belleville St.","Royal Bc Museum ","B0092533","Managed","VICTORIA","Allison Dunn"]
["675 Belleville St.","Archives -","B0092534","Managed","VICTORIA","Allison Dunn"]
["675 Belleville St.","Curatorial Block ","B0092535","Managed","VICTORIA","Allison Dunn"]
["675 Birch St.","Office (Surplus)","B0037218","Owned","FORT ST. JAMES","Elena Awchoula"]
["675 Canada Ave.","Health Ctr","B0053462","Leased","DUNCAN","Allison Dunn"]
["6869 Lougheed Hwy.","R.C.M.P.","B0090924","Managed","AGASSIZ","Joel Guno"]
["687 Powell St.","Office","B0091768","Leased","VANCOUVER","Davy Mulligan"]
["687 Yellowhead S. Hwy. 5","Admin/Warehouse ","B0067027","Leased","CLEARWATER","Mark Timmins"]
["687 Yellowhead S. Hwy. 5","Cone Shed","B0070474","Owned","CLEARWATER","Mark Timmins"]
["687 Yellowhead S. Hwy. 5","Fuel Shed   ","B0078003","Leased","CLEARWATER","Mark Timmins"]
["687 Yellowhead S. Hwy. 5","Shed - Implements  ","B0078004","Leased","CLEARWATER","Mark Timmins"]
["69 Maple St. (69a)","R.C.M.P. Married Quarters E0373","B0090512","Managed","ALERT BAY","Darrel Murphy"]
["69 Maple St. (69b)","R.C.M.P. Married Quarters E0372","B0090511","Managed","ALERT BAY","Darrel Murphy"]
["690 Old Hope-Princeton Hwy.","R.C.M.P.","B0090929","Managed","HOPE","Joel Guno"]
["6944 Alberni St.","Office","B0067786","Leased","POWELL RIVER","Darrel Murphy"]
["6953 Alberni St.","Courthouse","B0015669","Owned","POWELL RIVER","Darrel Murphy"]
["6975 Alberni St.","Office","B0090218","Leased","POWELL RIVER","Darrel Murphy"]
["70 Colony Farm Rd.","Ashworth House","B0090391","Owned","COQUITLAM","Davy Mulligan"]
["70 Colony Farm Rd.","Birch Unit","B0090414","Owned","COQUITLAM","Davy Mulligan"]
["70 Colony Farm Rd.","Cottonwood Unit","B0090415","Owned","COQUITLAM","Davy Mulligan"]
["70 Colony Farm Rd.","Dogwood House","B0090416","Owned","COQUITLAM","Davy Mulligan"]
["70 Colony Farm Rd.","Elm House","B0090417","Owned","COQUITLAM","Davy Mulligan"]
["70 Colony Farm Rd.","Fir Hall","B0090418","Owned","COQUITLAM","Davy Mulligan"]
["70 Colony Farm Rd.","Golden Willow","B0090419","Owned","COQUITLAM","Davy Mulligan"]
["70 Colony Farm Rd.","Ironwood House","B0090421","Owned","COQUITLAM","Davy Mulligan"]
["70 Colony Farm Rd.","Juniper House","B0090422","Owned","COQUITLAM","Davy Mulligan"]
["70 Colony Farm Rd.","Kingswood","B0090423","Owned","COQUITLAM","Davy Mulligan"]
["70 Colony Farm Rd.","Linden Unit","B0090424","Owned","COQUITLAM","Davy Mulligan"]
["70 Colony Farm Rd.","Maple Unit","B0090425","Owned","COQUITLAM","Davy Mulligan"]
["70 Colony Farm Rd.","Hawthorne House - H1","B0091353","Owned","COQUITLAM","Davy Mulligan"]
["70 Colony Farm Rd.","Hawthorne House - H2","B0091354","Owned","COQUITLAM","Davy Mulligan"]
["70 Colony Farm Rd.","Hawthorne House - H3","B0091355","Owned","COQUITLAM","Davy Mulligan"]
["70 Colony Farm Rd.","Hawthorne House - H4","B0091356","Owned","COQUITLAM","Davy Mulligan"]
["70 Colony Farm Rd.","Sanitary Pump Station Kiosk","B1002606","Owned","COQUITLAM","Davy Mulligan"]
["70 Colony Farm Rd.","New Storm Pump Station Kiosk","B1002607","Owned","COQUITLAM","Davy Mulligan"]
["70 Stanley Rd.","R.C.M.P. Detachment E0966","B0090501","Managed","COWICHAN LAKE","Allison Dunn"]
["700 W. Georgia St.","Pacific Ctr","B0051128","Leased","VANCOUVER"]
["700 W. Pender St.","Office Space","B0092681","Leased","VANCOUVER","Davy Mulligan"]
["703 Brightwell St.","Office (Xref - B40717)","B0092315","Leased","STEWART","Elena Awchoula"]
["703 Broughton St.","Old Credit Union","B0067142","Leased","VICTORIA","Darrel Murphy"]
["707 Conway St.","R.C.M.P. Detachment 50011","B0091338","Managed","STEWART","Elena Awchoula"]
["7077 Duncan St.","Office","B0061937","Leased","POWELL RIVER","Darrel Murphy"]
["7086 Pioneer Ave.","Office","B0092042","Leased","AGASSIZ","Joel Guno"]
["710 Dominion St.","Residence","B0091281","Managed","MCBRIDE","Elena Awchoula"]
["711 Broughton St.","Office Building","B0092671","Leased","VICTORIA","Darrel Murphy"]
["716 Courtney St.","Windermere","B0044545","Owned","VICTORIA","Darrel Murphy"]
["720 Elm St.","R.C.M.P. Detachment","B0091562","Managed","ASHCROFT","Mark Timmins"]
["7201 Hwy. 1 N.","Weigh Scale","B0078295","Managed","DUNCAN","Allison Dunn"]
["726 Sydney Ave.","Office","B0067432","Leased","KAMLOOPS","Alison Nordgren"]
["727 Fisgard St.","Victoria Place","B0067651","Leased","VICTORIA","Allison Dunn"]
["727 W. Island Hwy.","R.C.M.P. Detachment E0721 - Oceanside","B0090502","Managed","PARKSVILLE","Darrel Murphy"]
["7275 Riverside Dr.","Office Building","B0091206","Leased","GRAND FORKS","Alison Nordgren"]
["7290 2nd St.","Office - Cmwt Location","B0092096","Leased","GRAND FORKS","Alison Nordgren"]
["730 Grant Ave.","Office","B0092668","Leased","COURTENAY","Darrel Murphy"]
["732 Broughton St.","office","B1002232","Leased","VICTORIA","Darrel Murphy"]
["735 Broughton St.","Victoria Public Library","B0078319","Managed","VICTORIA","Darrel Murphy"]
["7350 King George Blvd.","Office","B0092563","Leased","SURREY","Joel Guno"]
["7355 Columbia St.","R.C.M.P. Detachment E0786","B0090505","Managed","PORT HARDY","Darrel Murphy"]
["7364 Horne St.","Office","B0068146","Leased","MISSION","Davy Mulligan"]
["7384 Hwy. 16 W.","Weigh Scale","B0078073","Managed","VANDERHOOF","Elena Awchoula"]
["74 West Seymour St.","BCLC 1st, 3rd & 4th floor","B1002505","Managed","KAMLOOPS","Mark Timmins"]
["74 West Seymour St.","BCLC 2nd floor","B1002571","Managed","KAMLOOPS","Mark Timmins"]
["740 Carmi Ave.","Health Ctr","B0078266","Owned","PENTICTON","Alison Nordgren"]
["740 Robron Rd.","Office","B1002707","Leased","CAMPBELL RIVER","Darrel Murphy"]
["7413 Southern Trans Prov Hwy. 3","Bunkhouse","B0022830","Owned","ALLISON PASS","Joel Guno"]
["7413 Southern Trans Prov Hwy. 3","Pump House","B0022863","Owned","ALLISON PASS","Joel Guno"]
["744 Fairview Rd.","R.C.M.P. Building","B0092069","Managed","VICTORIA","Darrel Murphy"]
["7448 Dogwood St.","R.C.M.P.","B0090937","Managed","PEMBERTON","Davy Mulligan"]
["745 Dominion St.","Residence","B0091282","Managed","MCBRIDE","Elena Awchoula"]
["7450 Dogwood St.","R.C.M.P.","B0090946","Managed","PEMBERTON","Davy Mulligan"]
["747 Fort St.","Rohani Towers","B0060426","Leased","VICTORIA","Darrel Murphy"]
["7495 132nd St.","Office","B0092665","Leased","SURREY","Joel Guno"]
["7549 Mcauley Rd. - Lot 14","Mobile Home - Dartmouth Mhr 67401 (1991)","B0078511","Owned","ALEXIS CREEK","Carolynn Oliver"]
["7565 – 132nd St.","Office","B1002711","Leased","SURREY","Joel Guno"]
["7577 Elmbridge Way","Courthouse","B0092075","Leased","RICHMOND","Davy Mulligan"]
["7605 Mcauley Rd. - Lot 2","Residence - House","B0078158","Owned","ALEXIS CREEK","Carolynn Oliver"]
["7609 Mcauley Rd. - Lot 1","Residence - House","B0078159","Owned","ALEXIS CREEK","Carolynn Oliver"]
["7645 Kingsway","Multi-Function Office","B0067335","Leased","BURNABY","Davy Mulligan"]
["7698 Hwy 20","Residence - R.C.M.P. 50002","B0091232","Managed","ALEXIS CREEK","Carolynn Oliver"]
["77 Deer Park Ave.","MCFD","B1002734","Leased","KIMBERLEY","Alison Nordgren"]
["771 Vernon Ave.","Service BC Centre Village Mall ","B0067159","Leased","SAANICH","Allison Dunn"]
["7712 Hwy 20","R.C.M.P. 50033 - Residence","B0091230","Managed","ALEXIS CREEK","Carolynn Oliver"]
["7714 Hwy 20","Trailer 2 - Ref 50034","B0091231","Managed","ALEXIS CREEK","Carolynn Oliver"]
["7716 Hwy 20","R.C.M.P. Detachment 05 0038","B0091269","Managed","ALEXIS CREEK","Carolynn Oliver"]
["7718 Hwy 20","R.C.M.P.  Residence - Ref 50641","B0091229","Managed","ALEXIS CREEK","Carolynn Oliver"]
["7720 Hwy 20","Residence - R.C.M.P. 50356","B0091233","Managed","ALEXIS CREEK","Carolynn Oliver"]
["774 Columbia St.","Office","B0092710","Leased","NEW WESTMINSTER","Davy Mulligan"]
["780 Blanshard St.","Blanshard Building ","B0092155","Leased","VICTORIA","Darrel Murphy"]
["7851 East Saanich Rd.","Office","B0092617","Leased","CENTRAL SAANICH","Allison Dunn"]
["79 Waglisla St.","Office","B1002531","Leased","BELLA BELLA","Carolynn Oliver"]
["7900 Fraser Park Dr.","Burnaby Youth Correctional Centre","B0078174","Owned","BURNABY","Davy Mulligan"]
["7900 Fraser Park Dr.","Greenhouse/Kennel","B0078452","Owned","BURNABY","Davy Mulligan"]
["7900 Fraser Park Dr.","Open Living Unit","B0078453","Owned","BURNABY","Davy Mulligan"]
["7900 Fraser Park Dr.","Workshop","B0078454","Owned","BURNABY","Davy Mulligan"]
["795 Hwy. 16 E.","Lift Stn","B0072694","Owned","PRINCE GEORGE","Elena Awchoula"]
["795 Hwy. 16 E.","Correctional Ctr  Main Bldg","B0078529","Owned","PRINCE GEORGE","Elena Awchoula"]
["795 Hwy. 16 E.","Fuel Shed","B0092113","Managed","PRINCE GEORGE","Elena Awchoula"]
["795 Hwy. 16 E.","Storage Shed (Lawn Mower)","B0092114","Managed","PRINCE GEORGE","Elena Awchoula"]
["795 Hwy. 16 E.","Programs Bldg","B0092126","Owned","PRINCE GEORGE","Elena Awchoula"]
["795 Hwy. 16 E.","PGRCC Power House","B1002329","Owned","PRINCE GEORGE","Elena Awchoula"]
["795 S. Lahakas Blvd.","Office","B0067972","Leased","KITIMAT","Elena Awchoula"]
["8 Bastion Sq.","Macdonald","B0060616","Leased","VICTORIA","Allison Dunn"]
["8 Palsson Pl.","Residence","B0091326","Managed","TUMBLER RIDGE","Carolynn Oliver"]
["80 6th St.","Land Titles Bldg","B0054288","Leased","NEW WESTMINSTER","Davy Mulligan"]
["80 Hagan St.","Health Ctr and Ambulance Station","B0048538","Owned","GRANISLE","Elena Awchoula"]
["800 27 St.","R.C.M.P. Office","B0092457","Managed","COURTENAY","Darrel Murphy"]
["800 Hornby St.","Robson Square Blk 51,Public Amenities ","B0043398","Owned","VANCOUVER","Joel Guno"]
["800 Hornby St.","Robson Square Blk 61 Provincial Courthouse  ","B0045047","Owned","VANCOUVER","Joel Guno"]
["800 Johnson St.","Mazda","B0067181","Leased","VICTORIA","Darrel Murphy"]
["800 Ryan Rd.","R.C.M.P. Detachment E0781","B0090498","Managed","COURTENAY","Darrel Murphy"]
["800 Smithe St.","Robson Square Blk 71- Vancouver Law Courts ","B0046581","Owned","VANCOUVER","Joel Guno"]
["800 W. Georgia St.","Art Gallery","B0016766","Owned","VANCOUVER","Joel Guno"]
["807 C. Ave.","RCMP Residence ","B0091855","Managed","KASLO","Alison Nordgren"]
["808 Douglas St.","Nootka Court","B0054601","Leased","VICTORIA","Darrel Murphy"]
["808 Nelson St.","Office","B0090404","Leased","VANCOUVER","Joel Guno"]
["808 W. Hastings St.","Prime Capital Place","B0067491","Leased","VANCOUVER","Davy Mulligan"]
["810 Blanshard St.","Robert Ker Building","B0092150","Leased","VICTORIA","Darrel Murphy"]
["8100 Granville Ave.","Office","B0092022","Leased","RICHMOND","Davy Mulligan"]
["813 Mckay St.","Residence - R.C.M.P. 50291","B0091245","Managed","HAGENSBORG","Carolynn Oliver"]
["815 Hornby St.","Northwest Trust","B0062513","Leased","VANCOUVER","Joel Guno"]
["8150 Nordel Way","Weigh Scale","B0078274","Managed","DELTA","Joel Guno"]
["8150 Nordel Way","Weigh Scale","B0078626","Managed","DELTA","Joel Guno"]
["8175 Alpine Way","R.C.M.P.","B0090944","Managed","WHISTLER","Davy Mulligan"]
["818 Fort St.","Office","B0061747","Leased","VICTORIA","Darrel Murphy"]
["820 6th Ave.","Materials Testing","B0029645","Owned","KAMLOOPS","Alison Nordgren"]
["820 Nelson Ave.","Ambulance Stn/Hwys  Stn 41","B0032979","Owned","NELSON","Alison Nordgren"]
["8256 Hwy. 97, Alaska Hwy.","Weigh Scale","B0078079","Managed","DAWSON CREEK","Carolynn Oliver"]
["828 W. 8th Ave.","Office","B0067088","Leased","VANCOUVER","Davy Mulligan"]
["8285 120th St.","Office","B0067928","Leased","DELTA","Joel Guno"]
["830 Thompson Ave.","MCFD Office","B0092692","Leased","CHASE","Mark Timmins"]
["8307 130th St.","Warehouse/Office Compound","B0091762","Leased","SURREY","Joel Guno"]
["8313 Valley Dr.","R.C.M.P.","B0090940","Managed","WHISTLER","Davy Mulligan"]
["833 14th Ave.","Office","B0067836","Leased","CAMPBELL RIVER","Darrel Murphy"]
["833 3rd Ave.","Office","B0091757","Leased","HOPE","Joel Guno"]
["835 Humboldt St.","St. Ann's","B0078317","Owned","VICTORIA","Allison Dunn"]
["835 Humboldt St.","Tea House","B0091426","Owned","VICTORIA","Allison Dunn"]
["835 Humboldt St. ","St. Ann's Garage ","B1002534","Owned","VICTORIA","Allison Dunn"]
["836 Courtney St.","Office - (836 & 844 Courtney)","B0092138","Leased","VICTORIA","Darrel Murphy"]
["836 Yates St.","Coronet","B0067647","Leased","VICTORIA","Allison Dunn"]
["837 Park Dr.","Courthouse/Pgob ","B0067559","Leased","GOLDEN","Mark Timmins"]
["841 Alder Ave.","One level RCMP Detachment/Office","B1002568","Managed","100 MILE HOUSE","Carolynn Oliver"]
["845 Columbia Ave.","Office","B0077206","Owned","CASTLEGAR","Alison Nordgren"]
["845 Columbia Ave.","Fuel Shed","B0077214","Owned","CASTLEGAR","Alison Nordgren"]
["845 Columbia Ave.","Office/Shed - Implements","B0077222","Owned","CASTLEGAR","Alison Nordgren"]
["845 Columbia Ave.","Storage - Covered","B0090429","Owned","CASTLEGAR","Alison Nordgren"]
["845 Columbia St.","Metal Quonset","B1002754","Owned","CASTLEGAR"]
["847 Carmen Cr.","R.C.M.P. Married Quarters E0281","B0090515","Managed","GABRIOLA ISLAND","Allison Dunn"]
["850 16th St. N.E.","Office - Multi","B0090155","Leased","SALMON ARM","Mark Timmins"]
["850 16th St. N.E.","Implement Shed (L3959)","B0092259","Leased","SALMON ARM","Mark Timmins"]
["850 Burdett St.","Courthouse/Land Registry","B0010900","Owned","VICTORIA","Darrel Murphy"]
["851 16th St. N.E..","Health Ctr","B0077847","Owned","SALMON ARM","Mark Timmins"]
["8553 Hwy. 97 N.","Mines Bldg","B0037812","Owned","CHARLIE LAKE","Carolynn Oliver"]
["8553 Hwy. 97 N.","Storage/Maintenance","B0037879","Owned","CHARLIE LAKE","Carolynn Oliver"]
["8648 Drifter Way","R.C.M.P.","B0090941","Managed","WHISTLER","Davy Mulligan"]
["865 Hornby St.","Chancery Place","B0073999","Leased","VANCOUVER","Joel Guno"]
["8755 Gray St.","Office","B0092629","Leased","PORT HARDY","Darrel Murphy"]
["8785 Gray St.","Office/Warehouse","B0067822","Leased","PORT HARDY","Darrel Murphy"]
["88 10th St.","Bldg \"H\", Col. Sq Plaza","B0092061","Leased","NEW WESTMINSTER","Davy Mulligan"]
["880 Douglas St.","International House","B0067668","Leased","VICTORIA","Darrel Murphy"]
["8819 73 St. & 89 Ave.","Bedford Bldg","B0063834","Leased","FORT ST. JOHN","Carolynn Oliver"]
["888 Hwy. 16","Office, R.C.M.P. Community Policing","B0092601","Managed","SKIDEGATE","Elena Awchoula"]
["89 Waglisla St.","R.C.M.P.  # E0067","B0092154","Managed","BELLA BELLA","Carolynn Oliver"]
["8978 School St.","Office","B0068140","Leased","CHILLIWACK","Joel Guno"]
["899 Dirksen Rd.","R.C.M.P. Married Quarters","B0092230","Managed","GABRIOLA ISLAND","Allison Dunn"]
["90 Waterfront Rd","R.C.M.P. Detachment","B0092283","Managed","VANCOUVER","Davy Mulligan"]
["900 Howe St.","Office","B0067080","Leased","VANCOUVER","Joel Guno"]
["900 Sparks Dr.","Office","B1002574","Leased","KEREMEOS","Alison Nordgren"]
["9000 17th St.","Office","B0076943","Owned","DAWSON CREEK","Carolynn Oliver"]
["9000 17th St.","Fuel Shed","B0078051","Owned","DAWSON CREEK","Carolynn Oliver"]
["9000 17th St.","Shed - Implements","B0078546","Owned","DAWSON CREEK","Carolynn Oliver"]
["9000 17th St.","Seed Bin","B0078559","Managed","DAWSON CREEK","Carolynn Oliver"]
["9000 17th St.","Warehouse","B0083741","Owned","DAWSON CREEK","Carolynn Oliver"]
["9011 Hwy 97 N.","Weigh Scale","B0078294","Managed","CHARLIE LAKE","Carolynn Oliver"]
["902 W. 16th St.","Owned Office ","B1002693","Owned","NORTH VANCOUVER","Davy Mulligan"]
["905 Southill St.","Health Ctr","B0046292","Owned","KAMLOOPS","Alison Nordgren"]
["906 Roderick & 908","Office","B0067773","Leased","COQUITLAM","Davy Mulligan"]
["9060 Stormont Dr.","R.C.M.P.","B0090931","Managed","BURNABY","Davy Mulligan"]
["908 Pandora Ave.","Vefra","B0067605","Leased","VICTORIA","Allison Dunn"]
["91 Government Rd.","Chemical Storage","B0075895","Owned","NELSON","Alison Nordgren"]
["910 Government St.","Harbour Ctr","B0056226","Leased","VICTORIA","Allison Dunn"]
["911 Dirksen Rd.","Water System Building","B0092242","Managed","GABRIOLA ISLAND","Allison Dunn"]
["914 Yates St.","Office","B1002234","Leased","VICTORIA","Allison Dunn"]
["917 10th Ave North","Warehouse","B1002736","Leased","GOLDEN","Mark Timmins"]
["917 2nd Ave.","House - Residence 1  (Fishbowl Complex)","B0078490","Owned","QUEEN CHARLOTTE","Elena Awchoula"]
["917 2nd Ave.","House - Residence 2 (Fishbowl Complex)","B0078491","Owned","QUEEN CHARLOTTE","Elena Awchoula"]
["917 2nd Ave.","House - Residence 3 (Fishbowl Complex)","B0078492","Owned","QUEEN CHARLOTTE","Elena Awchoula"]
["917 2nd Ave.","House - Residence 4  (Fishbowl Complex)","B0078493","Owned","QUEEN CHARLOTTE","Elena Awchoula"]
["917 2nd Ave.","House - Residence 5 (Fishbowl Complex)","B0078494","Owned","QUEEN CHARLOTTE","Elena Awchoula"]
["917 2nd Ave.","House - Residence 6  (Fishbowl Complex)","B0078495","Owned","QUEEN CHARLOTTE","Elena Awchoula"]
["9180 King George Blvd.","Office","B0068121","Leased","SURREY","Joel Guno"]
["92 Morrison St.","Residence - R.C.M.P. 50341","B0091254","Managed","GRANISLE","Elena Awchoula"]
["922 5th St. NW","Rcmp Residence","B0092448","Managed","NAKUSP","Alison Nordgren"]
["925 Canyon","R.C.M.P. Detachment","B0091552","Managed","NAKUSP","Alison Nordgren"]
["9250 Trustee Rd.","N. Island Mall","B0068245","Leased","PORT HARDY","Darrel Murphy"]
["9258 Emerald Dr.","R.C.M.P.","B0090943","Managed","WHISTLER","Davy Mulligan"]
["9269 Pine Tree Ln.","R.C.M.P.","B0090939","Managed","WHISTLER","Davy Mulligan"]
["929 Ironwood St.(A/B)","Office","B0067148","Leased","CAMPBELL RIVER","Darrel Murphy"]
["938 Gibsons Way","Coast Professional Ctr","B0091218","Leased","GIBSONS","Davy Mulligan"]
["94 Morrison St.","Residence - R.C.M.P. 50346","B0091271","Managed","GRANISLE","Elena Awchoula"]
["94 Talcott Rd.","Youth Detention Centre - MCF SLIP","B1002614","Leased","VIEW ROYAL","Darrel Murphy"]
["940 Blanshard St.","Waddington","B0043380","Owned","VICTORIA","Darrel Murphy"]
["940 Goldstream Ave.","Office","B0067653","Leased","LANGFORD","Darrel Murphy"]
["941 England Ave.","Office  (Unit C)","B0059840","Leased","COURTENAY","Darrel Murphy"]
["941 England Ave.","Office - Bldg. A & B","B0090951","Leased","COURTENAY","Darrel Murphy"]
["9437 192nd St.","R.C.M.P","B0092163","Managed","SURREY","Joel Guno"]
["9440 202nd St.","Office Space","B0092699","Leased","LANGLEY","Joel Guno"]
["9460 140th St.","Office","B0092030","Leased","SURREY","Joel Guno"]
["9594 Nazko Rd.","Garage - 2 Bay","B0031518","Owned","NAZKO","Carolynn Oliver"]
["9594 Nazko Rd.","Storage","B0043992","Owned","NAZKO","Carolynn Oliver"]
["9594 Nazko Rd.","Storage","B0044008","Owned","NAZKO","Carolynn Oliver"]
["9594 Nazko Rd.","Salt Shed","B0077487","Owned","NAZKO","Carolynn Oliver"]
["9594 Nazko Rd. ","Oil Storage Shed","B0043984","Owned","NAZKO","Carolynn Oliver"]
["960 Quayside Dr.","First Capital","B0090036","Leased","NEW WESTMINSTER","Davy Mulligan"]
["961 England Ave.","Office Building","B0092031","Leased","COURTENAY","Darrel Murphy"]
["970 Camosun Cres.","Office - Hwys","B0090921","Leased","KAMLOOPS","Alison Nordgren"]
["976 Meares St.","Office","B0092707","Leased","VICTORIA","Darrel Murphy"]
["9840 5th St. ","Health Lab","B0092333","Leased","SIDNEY","Allison Dunn"]
["9884 3rd St.","Courthouse","B0092556","Leased","SIDNEY","Allison Dunn"]
["9900 100th Ave.","Northern Grand Professional Centre","B0061911","Leased","FORT ST. JOHN","Carolynn Oliver"]
["9900 King George Blvd","Office","B1002701","Leased","SURREY","Joel Guno"]
["9912 Hwy. 3","British Columbia Visitor Centre @ Osoyoos","B0092624","Owned","OSOYOOS","Alison Nordgren"]
["9941 101 Ave.","Office -  Ft St John","B0091508","Leased","FORT ST. JOHN","Carolynn Oliver"]
["999 Canada Pl.","World Trade Ctr","B0067515","Leased","VANCOUVER","Davy Mulligan"]
["999 Water Ave.","Provincial Government Office Building","B0046250","Owned","HOPE","Joel Guno"]
["Airport Rd.","Bunkhouse","B0072082","Owned","DEASE LAKE","Elena Awchoula"]
["Airport Rd.","Fuel Shed","B0072108","Owned","DEASE LAKE","Elena Awchoula"]
["Airport Rd.","Air Tanker Base Warehouse","B0072116","Owned","DEASE LAKE","Elena Awchoula"]
["Chilcotin Hwy. 20","Pump House","B0090475","Owned","ANAHIM LAKE","Carolynn Oliver"]
["Christiansen Rd.","R.C.M.P. Pumphouse","B0092045","Managed","ANAHIM LAKE","Carolynn Oliver"]
["Coquihalla Hwy.","Avalanche Control Bldg","B0078038","Managed","COLDWATER LAKES","Mark Timmins"]
["Coquihalla Hwy.","Bunker - Ammo","B0078263","Managed","JULIET PIT","Mark Timmins"]
["Deas Island Tunnel","Weigh Scale","B0078469","Managed","RICHMOND","Davy Mulligan"]
["Det. Stikine Ave.","R.C.M.P. Detachment 50898","B0091339","Managed","TELEGRAPH CREEK","Elena Awchoula"]
["Duncan St.","Garage - 4 Bay","B0087197","Owned","LARDEAU","Alison Nordgren"]
["Gardner St.","Equipment Storage Shed - 3 Bays","B0031179","Owned","WELLS","Carolynn Oliver"]
["Gardner St.","Oil Storage Shed","B0031187","Owned","WELLS","Carolynn Oliver"]
["Gardner St.","Trailer - T835 ","B0043877","Owned","WELLS","Carolynn Oliver"]
["Gardner St.","Storage - 3 bay open shed ","B0044016","Owned","WELLS","Carolynn Oliver"]
["Greenwood Mall","Office 94","B0067410","Leased","SPARWOOD","Alison Nordgren"]
["Hwy 16 & Hwy 37","Weigh Scale","B0078588","Managed","TERRACE","Elena Awchoula"]
["Hwy 37 - Block D","PGOB Office","B0092172","Leased","DEASE LAKE","Elena Awchoula"]
["Hwy 37 - Block D","Warehouse ","B0092318","Leased","DEASE LAKE","Elena Awchoula"]
["Hwy. 1","Weigh Scale","B0092386","Managed","GOLDEN","Mark Timmins"]
["Hwy. 1","Inspection Bldg","B0092387","Managed","GOLDEN","Mark Timmins"]
["Hwy. 1","Juvis Pump and Valvehouse","B1002515","Managed","GOLDEN","Mark Timmins"]
["Hwy. 1","Chlorination Station","B1002520","Managed","GOLDEN","Mark Timmins"]
["Hwy. 1 E. - Laidlaw","Weigh Scale","B0078277","Managed","HOPE","Joel Guno"]
["Hwy. 1 W. - Hunter Creek","Weigh Scale","B0078283","Managed","HOPE","Joel Guno"]
["Hwy. 15","Weigh Scale Self Serve (Equipment Only)","B0092702","Managed","CLOVERDALE","Joel Guno"]
["Hwy. 16","Warehouse","B0084962","Owned","DECKER LAKE","Elena Awchoula"]
["Hwy. 16","Fuel Shed","B0084988","Owned","DECKER LAKE","Elena Awchoula"]
["Hwy. 16","Reefer Bldg","B0084996","Owned","DECKER LAKE","Elena Awchoula"]
["Hwy. 20","Residence - Mobile Home","B0091714","Managed","TATLA LAKE","Carolynn Oliver"]
["Hwy. 20","Residence - Mobile Home","B0091715","Managed","TATLA LAKE","Carolynn Oliver"]
["Hwy. 20","Nursing Stn","B0091716","Managed","TATLA LAKE","Carolynn Oliver"]
["Hwy. 3","Weigh Scale","B0078279","Managed","CASTLEGAR","Alison Nordgren"]
["Hwy. 3","Weigh Scale, self weigh","B0078194","Managed","MIDWAY","Alison Nordgren"]
["Hwy. 3","Weigh Scale","B0078191","Managed","SPARWOOD","Alison Nordgren"]
["Hwy. 3","Weigh Scale","B0092385","Managed","YAHK","Alison Nordgren"]
["Hwy. 5a & Airport Rd.","Fuel Shed","B0078234","Owned","MERRITT","Mark Timmins"]
["Hwy. 5a & Airport Rd.","Shed - Implements","B0078235","Owned","MERRITT","Mark Timmins"]
["Hwy. 5a & Airport Rd.","Office/Warehouse","B0078236","Owned","MERRITT","Mark Timmins"]
["Hwy. 5a & Airport Rd.","Storage -Propane","B0078265","Owned","MERRITT","Mark Timmins"]
["Hwy. 7 - Haig","Weigh Scale","B0078281","Managed","HOPE","Joel Guno"]
["Industrial Rd. 1","Tools","B0034231","Owned","INVERMERE","Mark Timmins"]
["Industrial Rd. 1","Equipment Storage Shed/Garage/Oil Storage Shed","B0042416","Owned","INVERMERE","Mark Timmins"]
["Industrial Rd. 1","Trailer - Atco T1001","B0048165","Owned","INVERMERE","Mark Timmins"]
["Industrial Rd. 1","Tools","B0077886","Owned","INVERMERE","Mark Timmins"]
["Industrial Rd. 1","Sign Shop/Storage","B0080192","Owned","INVERMERE","Mark Timmins"]
["Industrial Rd. 1","Trailer - Artisan T991 S/N 72400046","B0080663","Owned","INVERMERE","Mark Timmins"]
["Industrial Rd. 1","Salt Shed","B0080671","Owned","INVERMERE","Mark Timmins"]
["Kaleden Junction","Trailer/Weigh Scale","B0078214","Managed","KALEDEN","Alison Nordgren"]
["Lardeau St.","Office","B0086660","Owned","TROUT LAKE","Mark Timmins"]
["Lardeau St.","Staff House","B0086678","Owned","TROUT LAKE","Mark Timmins"]
["Lardeau St.","Wood Shed","B0086686","Owned","TROUT LAKE","Mark Timmins"]
["Lardeau St.","Vault","B0086694","Owned","TROUT LAKE","Mark Timmins"]
["Lot 1, 3507 3rd Ave.","Mobile Home","B0092527","Managed","QUEEN CHARLOTTE","Elena Awchoula"]
["Lot 10, 3507 3rd Ave.","Mobile Home - Dartmouth S/N 13830 3507-0 1991","B0078130","Owned","QUEEN CHARLOTTE","Elena Awchoula"]
["Lot 107S - B Rd.","RCMP Detachment","B1002466","Managed","KLEMTU","Carolynn Oliver"]
["Lot 18 Tatcho St.","Residence - R.C.M.P. 05-00007","B0071936","Managed","DEASE LAKE","Elena Awchoula"]
["Lot 19 Tatcho St.","Residence - R.C.M.P. 05-0008","B0071928","Managed","DEASE LAKE","Elena Awchoula"]
["Lot 2, 3507 3rd Ave.","Mobile Home - Tp 1279 (+) 3507-2","B0084327","Owned","QUEEN CHARLOTTE","Elena Awchoula"]
["Lot 2505  Airport Rd.","Garage - 4 Bay   Lot 2505","B0072090","Owned","DEASE LAKE","Elena Awchoula"]
["Lot 3, 3507 3rd Ave.","Mobile Home - Tp 1281 (+) 3507-3","B0084343","Owned","QUEEN CHARLOTTE","Elena Awchoula"]
["Lot 5, 3507 3rd Ave.","Mobile Home - Tp1402-3507-5","B0090457","Managed","QUEEN CHARLOTTE","Elena Awchoula"]
["Lot 6 Monarch Dr.","House - Residence   Lot 6","B0078561","Owned","ATLIN","Elena Awchoula"]
["Lot 8 Tatcho St.","House - Residence   Lot 8","B0071803","Owned","DEASE LAKE","Elena Awchoula"]
["Lot 8, 3507 3rd Ave.","Mobile Home - Tp1401-3507-8","B0090458","Managed","QUEEN CHARLOTTE","Elena Awchoula"]
["Lot 9, 3507 3rd Ave.","Mobile Home - Tp1400-3507-9","B0090459","Managed","QUEEN CHARLOTTE","Elena Awchoula"]
["Lot S1  Marion Ave.  #2","Residence   Lot S1  #2","B0078533","Owned","DEASE LAKE","Elena Awchoula"]
["Lot S3 Elasgenze Dr.","House - Residence   Lot S3","B0078105","Owned","DEASE LAKE","Elena Awchoula"]
["Lot S3 Elasgenze Dr.  #18","House - Residence   Lot S3  #18","B0078140","Owned","DEASE LAKE","Elena Awchoula"]
["Lot Sb Elasgenze Dr.","House - Residence  Lot Sb","B0078107","Owned","DEASE LAKE","Elena Awchoula"]
["Lot Sd Elasgenze Dr.  #21","House - Residence   Lot Sd  #21","B0078143","Owned","DEASE LAKE","Elena Awchoula"]
["Mcbride Blvd.","Mobile Home - Bunkhouse Tp 0985","B0070037","Owned","ATLIN","Elena Awchoula"]
["Mcbride Blvd.","Warehouse","B0078095","Owned","ATLIN","Elena Awchoula"]
["Mcbride Blvd.","Fuel Shed","B0085381","Owned","ATLIN","Elena Awchoula"]
["Munro Ave. & 4th St.","House - Residence - Conservation Officer","B0078023","Owned","ATLIN","Elena Awchoula"]
["Munro Ave. & 4th St.","Garage","B0078024","Owned","ATLIN","Elena Awchoula"]
["N. Hwy. 97","Weigh Scale","B0078188","Managed","VERNON","Mark Timmins"]
["Quathiaski Cove","R.C.M.P. Detachment E0736","B0090504","Managed","QUADRA ISLAND","Darrel Murphy"]
["Robson Ctr","Robson Ctr","B0061945","Leased","MCBRIDE","Elena Awchoula"]
["S.E. Hwys 5 & 97c Exit 286","British Columbia Visitor Centre @ Merritt","B0092364","Owned","MERRITT","Mark Timmins"]
["S.E. Hwys 5 & 97c Exit 286","Snack Shack Concession","B1002367","Owned","MERRITT","Mark Timmins"]
["S.E. Hwys 5 & 97c Exit 286","Domestic Water Well Pumphouse","B1002368","Owned","MERRITT","Mark Timmins"]
["Sollans Rd.","R.C.M.P. Detachment E0832 - Summer","B0090500","Managed","HORNBY ISLAND","Darrel Murphy"]
["Stewart Cassiar Hwy. 37","Atco Trailer #1 Lot 10","B1002402","Owned","BOB QUINN LAKE","Elena Awchoula"]
["Stewart Cassiar Hwy. 37","Atco Trailer #2 Lot 11","B1002403","Owned","BOB QUINN LAKE","Elena Awchoula"]
["Stikine/Commercial","Pump House - Pgob Dw1","B0073676","Owned","DEASE LAKE","Elena Awchoula"]
["Suite 5F - 1705 Campbell Way","MCFD Office","B1002746","Leased","PORT MCNEILL"]
["Summit Of Stagleap","Electrical Generator","B0033381","Owned","SALMO CRESTON SUMMIT","Alison Nordgren"]
["Summit Of Stagleap","Storage/Shop","B0034686","Owned","SALMO CRESTON SUMMIT","Alison Nordgren"]
["Summit Of Stagleap","Bunkhouse - 1991","B0078229","Owned","SALMO CRESTON SUMMIT","Alison Nordgren"]
["Summit Of Stagleap","Salt Shed - 1996","B0090213","Owned","SALMO CRESTON SUMMIT","Alison Nordgren"]
["Summit Of Stagleap","Storage/Shop ","B0092344","Leased","SALMO CRESTON SUMMIT","Alison Nordgren"]
["Unit 104 - 7455 132nd St","New Office ","B1002679","Leased","SURREY","Joel Guno"]
["Unit 110, 1626 Richter St.","RCMP Informatics Workshop","B1002633","Managed","KELOWNA","Mark Timmins"]
["Unit 201 - 340 Victoria St.","Office Building","B1002749","Leased","KAMLOOPS"]
["Unit 205G - 1200 Alpha Lake Rd.","Office","B1002740","Leased","WHISTLER"]
["Unit A - 18 Main St.","Residence - RCMP","B1002445","Managed","TSAY KEH DENE","Carolynn Oliver"]
["Unit B - 18 Main St. ","Residence RCMP","B1002446","Managed","TSAY KEH DENE","Carolynn Oliver"]
["Unit C - 18 Main St. ","Residence RCMP","B1002447","Managed","TSAY KEH DENE","Carolynn Oliver"]
["Unit C103, 19770 94A","RCMP lite auto fit-ups","B1002632","Managed","LANGLEY","Joel Guno"]
["Unit D - 18 Main St. ","Residence RCMP","B1002448","Managed","TSAY KEH DENE","Carolynn Oliver"]
["Yellowhead Hwy. 16","Weigh Scale","B0078074","Managed","TETE JAUNE CACHE","Elena Awchoula"]

{"sheet":"Report","index":3,"n_rows":6,"n_cols":32,"rows_kept":6,"cut":false,"hidden":true,"merged":[[5,0,6,0],[0,29,0,31],[0,14,0,19],[0,0,0,2],[0,20,0,22],[0,23,0,28],[0,5,0,13],[0,3,0,4]]}
["Form Information:",null,null,"Update Reference",null,{"$f":"Form!B15","v":"WSI Work Order Information:"},null,null,null,null,null,null,null,null,{"$f":"Form!B25","v":"Facilities Key Contact Information:"},null,null,null,null,null,{"$f":"Form!B31","v":"Client On-Site Contact Information (if applicable):"},null,null,{"$f":"Form!B36","v":"Building information:"},null,null,null,null,null,"Issue and resolution:"]
[{"$f":"Form!D2","v":"REFERENCE NUMBER:"},{"$f":"Form!D4","v":"* Submission Date (yyyy-mm-dd):"},{"$f":"Form!D6","v":"Request Status:"},"Update Date & Time","Building Superintendent",{"$f":"Form!B16","v":"* Service Complaint # (e.g. BCB12345678)"},{"$f":"Form!C16","v":"Other Work Order #'s (e.g. BCB12345678, BCB23456789, ...)"},{"$f":"Form!D16","v":"* Multiple requests or complaints issued (Yes/No)"},{"$f":"Form!B19","v":"* Service Deficiency (Primary - select one)"},{"$f":"Form!C19","v":"Service Deficiency (Secondary - select one)"},{"$f":"Form!D19","v":"Service Deficiency Other (manual entry)"},{"$f":"Form!B22","v":"* Impact (Primary - select one)"},{"$f":"Form!C22","v":"Impact (Secondary - select one)"},{"$f":"Form!D22","v":"Impact Other (manual entry)"},{"$f":"Form!B26","v":"* Name"},{"$f":"Form!C26","v":"* Telephone #"},{"$f":"Form!D26","v":"* Email address"},{"$f":"Form!B29","v":"Parent Org / Ministry name (select one)"},{"$f":"Form!C29","v":"Branch / Child Org (select one)"},{"$f":"Form!D29","v":"Other Organization / Program Name (manual entry)"},{"$f":"Form!B32","v":"Name"},{"$f":"Form!C32","v":"Telephone #"},{"$f":"Form!D32","v":"Email address"},{"$f":"Form!B37","v":"* Building Address (select one)"},{"$f":"Form!C37","v":"Building Number (auto populates with address selection)"},{"$f":"Form!D37","v":"City (auto populates with address selection)"},{"$f":"Form!B40","v":"Tenure (auto populates with address selection)"},{"$f":"Form!C40","v":"Floor # "},{"$f":"Form!D40","v":"Suite # "},{"$f":"Form!B43","v":"* Description of issue (1000 character max):"},{"$f":"Form!B72","v":"Resolution Notes (completed by RPD CPO representative):"},{"$f":"Form!D74","v":"Resolved/Closed Date (yyyy-mm-dd):"}]
[{"$f":"Form!D3","v":""},{"$f":"IF(Form!D5=0,\"\",Form!D5)","v":""},{"$f":"Form!D7","v":"New"},{"$f":"NOW()","v":"2019-10-09T11:21:19.920"},{"$f":"Form!C75","v":{"$error":"#N/A"}},{"$f":"IF(Form!B17=0,\"\",Form!B17)","v":""},{"$f":"IF(Form!C17=0,\"\",Form!C17)","v":""},{"$f":"IF(Form!D17=0,\"\",Form!D17)","v":""},{"$f":"IF(Form!B20=0,\"\",Form!B20)","v":""},{"$f":"IF(Form!C20=0,\"\",Form!C20)","v":""},{"$f":"IF(Form!D20=0,\"\",Form!D20)","v":""},{"$f":"IF(Form!B23=0,\"\",Form!B23)","v":""},{"$f":"IF(Form!C23=0,\"\",Form!C23)","v":""},{"$f":"IF(Form!D23=0,\"\",Form!D23)","v":""},{"$f":"IF(Form!B27=0,\"\",Form!B27)","v":""},{"$f":"IF(Form!C27=0,\"\",Form!C27)","v":""},{"$f":"IF(Form!D27=0,\"\",Form!D27)","v":""},{"$f":"IF(Form!B30=0,\"\",Form!B30)","v":""},{"$f":"IF(Form!C30=0,\"\",Form!C30)","v":""},{"$f":"IF(Form!D30=0,\"\",Form!D30)","v":""},{"$f":"IF(Form!B33=0,\"\",Form!B33)","v":""},{"$f":"IF(Form!C33=0,\"\",Form!C33)","v":""},{"$f":"IF(Form!D33=0,\"\",Form!D33)","v":""},{"$f":"IF(Form!B38=0,\"\",Form!B38)","v":""},{"$f":"IF(Form!C38=0,\"\",Form!C38)","v":""},{"$f":"IF(Form!D38=0,\"\",Form!D38)","v":""},{"$f":"IF(Form!B41=0,\"\",Form!B41)","v":""},{"$f":"IF(Form!C41=0,\"\",Form!C41)","v":""},{"$f":"IF(Form!D41=0,\"\",Form!D41)","v":""},{"$f":"IF(Form!B44=0,\"\",Form!B44)","v":""},{"$f":"IF(Form!B73=0,\"\",Form!B73)","v":""},{"$f":"IF(Form!D75=0,\"\",Form!D75)","v":""}]
[]
[]
["Use this button to submit updated data to the Tier2 database"]

{"sheet":"WSI Info","index":4,"n_rows":27,"n_cols":4,"rows_kept":27,"cut":false,"hidden":true,"merged":[[26,1,26,3],[25,1,25,3],[19,1,19,3],[15,1,15,3],[12,1,12,3]]}
[]
[null,"Tier2 Reference #:",{"$f":"Form!D3","v":""}]
[null,"Submission Date:",{"$f":"IF(Form!D5=0,\"\",Form!D5)","v":""}]
[]
[null,"WSI Work Order Information:"]
[null,"* Service Complaint #","Other WO #'s","* Multiple requests/complaints"]
[null,{"$f":"IF(Form!B17=0,\"\",Form!B17)","v":""},{"$f":"IF(Form!C17=0,\"\",Form!C17)","v":""},{"$f":"IF(Form!D17=0,\"\",Form!D17)","v":""}]
[null,"* Service Deficiency (Primary)","Service Deficiency (Secondary)","Service Deficiency Other"]
[null,{"$f":"IF(Form!B20=0,\"\",Form!B20)","v":""},{"$f":"IF(Form!C20=0,\"\",Form!C20)","v":""},{"$f":"IF(Form!D20=0,\"\",Form!D20)","v":""}]
[null,"* Impact (Primary)","Impact (Secondary)","Impact Other"]
[null,{"$f":"IF(Form!B23=0,\"\",Form!B23)","v":""},{"$f":"IF(Form!C23=0,\"\",Form!C23)","v":""},{"$f":"IF(Form!D23=0,\"\",Form!D23)","v":""}]
[]
[null,{"$f":"Form!B25","v":"Facilities Key Contact Information:"}]
[null,"* Name","* Telephone #","* Email address"]
[null,{"$f":"IF(Form!B27=0,\"\",Form!B27)","v":""},{"$f":"IF(Form!C27=0,\"\",Form!C27)","v":""},{"$f":"IF(Form!D27=0,\"\",Form!D27)","v":""}]
[null,{"$f":"Form!B31","v":"Client On-Site Contact Information (if applicable):"}]
[null,"Name","Telephone #","Email address"]
[null,{"$f":"IF(Form!B33=0,\"\",Form!B33)","v":""},{"$f":"IF(Form!C33=0,\"\",Form!C33)","v":""},{"$f":"IF(Form!D33=0,\"\",Form!D33)","v":""}]
[]
[null,{"$f":"Form!B36","v":"Building information:"}]
[null,"* Address","Building Number ","City "]
[null,{"$f":"IF(Form!B38=0,\"\",Form!B38)","v":""},{"$f":"IF(Form!C38=0,\"\",Form!C38)","v":""},{"$f":"IF(Form!D38=0,\"\",Form!D38)","v":""}]
[null,"Tenure","Floor # ","Suite #"]
[null,{"$f":"IF(Form!B41=0,\"\",Form!B41)","v":""},{"$f":"IF(Form!C41=0,\"\",Form!C41)","v":""},{"$f":"IF(Form!D41=0,\"\",Form!D41)","v":""}]
[]
[null,"* Description of issue (1000 character max):"]
[null,{"$f":"IF(Form!B44=0,\"\",Form!B44)","v":""}]

{"sheet":"Process Checklist","index":5,"n_rows":24,"n_cols":3,"rows_kept":24,"cut":false,"hidden":true,"merged":[]}
["Tier2 CPO Process Checklist"]
[]
[1,null,"Check CPO inbox daily for your area and coverage area if currently applicable."]
[2,null,"Forward submission from CPO inbox to your personal email, copy orginal email with form to Livelink."]
[3,null,"Unprotect form and workbook and unhide hidden tabs.  Update Tier 2 database using submit button on Report tab.  Form status \"New\"."]
[4,null,"Validate request and review work order history.  "]
["5-a",null,"If Tier 2 is invalid contact client ASAP and educate them on Tier 2 process.  Form status \"Cancelled\"."]
["5-b",null,"If Tier 2 is valid, contact client and propose meeting time within 2 business days of receiving Tier 2."]
[6,null,"Notify WSI FM and RD that a Tier 2 has been received and more details will follow after client meeting. (No details shared at this point)"]
[7,null,"Facilitate client meeting and collect requirements, establish update time, update form and set form status to \"In Progress\"."]
[8,null,"Forward updated form to client with copy to client services DCR confirming next update time."]
[9,null,"Update Tier 2 database using submit button on Report tab."]
[10,null,"Set up meeting with WSI providing details from client meeting."]
[11,null,"Work on resolution with WSI, include other participants in issue resolution as required.  Update form as progress is made."]
[12,null,"Update client per established timeframe."]
[13,null,"Once issue resolved update form and set form to \"Resolved\" status."]
[14,null,"Communicate Resolved status to client, forward updated form, copy client services DCR."]
[15,null,"Update Tier 2 database using submit button on Report tab."]
[16,null,"Contact client and confirm issue has been resolved to their satisfaction."]
["17-a",null,"Client IS satisfied, update form and set form to \"Closed\" status, forward to client, copy client services DCR."]
["17-b",null,"Client NOT satisfied, update form, set form to \"In Progress\" and go back to step 9, forward update to client and copy client services DCR."]
["17-c",null,"     or     Client NOT satisfied, escalate to client services DCR and FMS CPM.  Update form status to \"Reviewed and Raised\"."]
[18,null,"File the Final form in Livelink.  Update Tier 2 database using submit button on Report tab."]
[19,null,"Once agreement is made to set the form in \"Closed\" or \"Review and Raised\" or \"Cancelled\" status the TIER2 PROCESS ENDS."]

{"sheet":"Tables","index":6,"n_rows":218,"n_cols":7,"rows_kept":218,"cut":false,"hidden":true,"merged":[]}
["Status","YES/NO","Service Deficiency","Impact","Ministry / Parent Org","Branch / Child Org","CPO"]
["New","Yes","Timeliness of Service","Program Delivery - Inconvenient","291 FILM COMPANY INC","ABORIGINAL RELATIONS & RECONCILIATION (MARR)","Alison Nordgren"]
["In Progress","No","Quality of Service","Program Delivery - Interruption","ACCESS POINT INFORMATION CANADA LTD","ACCESS POINT INFORMATION CANADA LTD","Allison Dunn"]
["Resolved",null,"Incomplete Service","Program Delivery - Shut Down","ADVANCED EDUCATION, SKILLS AND TRAINING","AG EXECUTIVE BRANCH","Carolynn Oliver"]
["Closed",null,"Customer Service","Health & Safety - Public","AGRICULTURE","AGELESS GARDENS PRODUCTIONS II INC","Dar Purewall"]
["Reviewed and Raised",null,"Other","Health & Safety - Staff","ALOUETTE RIVER MANAGEMENT SOCIETY","AGENCIES BOARDS COMMISSIONS&OTHER TRIBUNALS","Darrel Murphy"]
["Cancelled",null,null,"Health & Safety - All","ATTORNEY GENERAL","AGRICULTURAL LAND COMMISSION","Davy Mulligan"]
[null,null,null,"Citizen Impacting Issue","AUDITOR GENERAL FOR LOCAL GOVERNMENT","ALOUETTE RIVER MANAGEMENT SOCIETY","Elena Awchoula"]
[null,null,null,"Staff Concern","B C ASSESSMENT","ARTS, CULTURE AND SPORT","Joel Guno"]
[null,null,null,"Other","B C HYDRO","ASSET MANAGEMENT BRANCH","Mark Timmins"]
[null,null,null,null,"B C LOTTERY CORPORATION","AUDITOR GENERAL FOR LOCAL GOVERNMENT","Interior CPO"]
[null,null,null,null,"B C PUBLIC SERVICE AGENCY","B C ASSESSMENT","North CPO"]
[null,null,null,null,"BCNET","B C CENTRE FOR DISEASE CONTROL","Lower Mainland CPO"]
[null,null,null,null,"BELL CANADA","B C HYDRO","Vancouver Island CPO"]
[null,null,null,null,"BGIS WORKPLACE SOLUTIONS INC.","B C LOTTERY CORPORATION"]
[null,null,null,null,"BRITISH COLUMBIA FERRY SERVICES INC.","B C PUBLIC SERVICE AGENCY"]
[null,null,null,null,"BRITISH COLUMBIA PENSION CORPORATION","B C STATS"]
[null,null,null,null,"BRITISH COLUMBIA SAFETY AUTHORITY","B C UTILITIES COMMISSION"]
[null,null,null,null,"CANADIAN BROADCASTING CORPORATION","BC CORONERS SERVICE"]
[null,null,null,null,"CANAZWEST PICTURES INC","BC MENTAL HEALTH & SUBSTANCE USE SERVICES"]
[null,null,null,null,"CAPITAL REGIONAL DISTRICT","BC REGISTRY SERVICES"]
[null,null,null,null,"CHILDREN AND FAMILY DEVELOPMENT","BCNET"]
[null,null,null,null,"CITIZENS' SERVICES","BELL CANADA"]
[null,null,null,null,"CITY OF LANGFORD","BGIS WORKPLACE SOLUTIONS INC."]
[null,null,null,null,"CITY OF QUESNEL","BRITISH COLUMBIA EMERGENCY HEALTH SERVICES"]
[null,null,null,null,"CITY OF VANCOUVER","BRITISH COLUMBIA FERRY SERVICES INC."]
[null,null,null,null,"COLLINS BRANDLE PHYSIOTHERAPIST CORP","BRITISH COLUMBIA PENSION CORPORATION"]
[null,null,null,null,"COLUMBIA BASIN BROADBAND CORPORATION","BRITISH COLUMBIA SAFETY AUTHORITY"]
[null,null,null,null,"COLUMBIA KOOTENAY BROADCASTING CO LTD","BUSINESS RISK MANAGEMENT"]
[null,null,null,null,"COMMUNITY ARTS COUNCIL","C.O.A."]
[null,null,null,null,"COMMUNITY LIVING BRITISH COLUMBIA","CABINET OPERATIONS"]
[null,null,null,null,"DESTINATION BC","CANADIAN BROADCASTING CORPORATION"]
[null,null,null,null,"DISTRICT OF FORT ST JAMES","CANAZWEST PICTURES INC"]
[null,null,null,null,"DISTRICT OF SQUAMISH","CAPITAL REGIONAL DISTRICT"]
[null,null,null,null,"DOCTOR ALEX BARSS","CENTRAL"]
[null,null,null,null,"EDUCATION","CHILD CARE"]
[null,null,null,null,"ELIZABETH BAGSHAW WOMEN'S CLINIC","CITY OF LANGFORD"]
[null,null,null,null,"EMILY CARR UNIVERSITY OF ART AND DESIGN","CITY OF QUESNEL"]
[null,null,null,null,"ENERGY, MINES AND PETROLEUM RESOURCES","CLAIMS CENTRE"]
[null,null,null,null,"ENRIGHT, DON","COAST FRASER"]
[null,null,null,null,"ENVIRONMENT AND CLIMATE CHANGE STRATEGY","COAST NORTH SHORE"]
[null,null,null,null,"ENVIRONMENT CANADA","COLLINS BRANDLE PHYSIOTHERAPIST CORP"]
[null,null,null,null,"EVERYWOMAN'S HEALTH CENTRE","COLUMBIA BASIN BROADBAND CORPORATION"]
[null,null,null,null,"FINANCE","COLUMBIA KOOTENAY BROADCASTING CO LTD"]
[null,null,null,null,"FOREST PRACTICES BOARD","COMMUNITY ARTS COUNCIL"]
[null,null,null,null,"FORESTS, LANDS, NATURAL RESOURCE OPERATIONS AND RURAL DEVELOPMENT","COMMUNITY CORRECTIONS"]
[null,null,null,null,"FRASER HEALTH AUTHORITY","COMMUNITY SAFETY & CRIME PREVENTION - CF"]
[null,null,null,null,"GREATER VICTORIA HARBOUR AUTHORITY","COMMUNITY SAFETY & CRIME PREVENTION - VICTIM SERVICES"]
[null,null,null,null,"GREATER VICTORIA PUBLIC LIBRARY","CORPORATE"]
[null,null,null,null,"GREATER VICTORIA WOMEN'S SHELTER SOCIETY","CORPORATE INFORMATION & RECORDS MGMT OFFICE"]
[null,null,null,null,"HEALTH","CORPORATE MANAGEMENT SERVICES"]
[null,null,null,null,"IBM CANADA LTD","CORPORATE POLICY & PLANNING OFFICE"]
[null,null,null,null,"INDIGENOUS RELATIONS AND RECONCILIATION","CORPORATE PROGRAMS"]
[null,null,null,null,"INDUSTRY TRAINING AUTHORITY","CORPORATE SERVICES"]
[null,null,null,null,"INSURANCE CORPORATION OF BRITISH COLUMBIA","CORPORATE SERVICES AND FINANCIAL ACCOUNTABILITY"]
[null,null,null,null,"INTERIOR HEALTH AUTHORITY","CORPORATE SERVICES FOR THE NATURAL RESOURCES MINISTRIES"]
[null,null,null,null,"JAMES BAY MARKET SOCIETY","CORRECTIONS"]
[null,null,null,null,"JOBS, TRADE AND  TECHNOLOGY","CORRESPONDENCE BRANCH"]
[null,null,null,null,"KAMLOOPS FOOD POLICY COUNCIL","COURT SERVICES"]
[null,null,null,null,"LABOUR","CRIMINAL JUSTICE"]
[null,null,null,null,"LAND TITLE & SURVEY AUTHORITY OF B C","CROWN AGENCIES AND BOARD RESOURCING OFFICE"]
[null,null,null,null,"LAWYERS' INN","DATA BC"]
[null,null,null,null,"LEGISLATIVE ASSEMBLY","Deficient"]
[null,null,null,null,"LUMBY AND DISTRICT HEALTH SERVICES SOCIETY","Demolition"]
[null,null,null,null,"MARITIME MUSEUM","DEPUTY MINISTER'S OFFICE"]
[null,null,null,null,"MENTAL HEALTH AND ADDICTIONS","DISTRICT OF FORT ST JAMES"]
[null,null,null,null,"MORGUARD INVESTMENTS LIMITED","DISTRICT OF SQUAMISH"]
[null,null,null,null,"MUNICIPAL AFFAIRS AND HOUSING","DIVISION OPERATION"]
[null,null,null,null,"NATIVE COURTWORKER AND COUNSELLING ASSOCIATION OF BRITISH COLUMBIA","DOCTOR ALEX BARSS"]
[null,null,null,null,"NDAZKHOT'EN PROPERTIES LTD","ECONOMIC DEVELOPMENT"]
[null,null,null,null,"NEWMAN & WRIGHT THEATRE COMPANY","ELIZABETH BAGSHAW WOMEN'S CLINIC"]
[null,null,null,null,"NORTHERN HEALTH AUTHORITY","EMERGENCY MANAGEMENT BC"]
[null,null,null,null,"NPC TRUST","EMILY CARR UNIVERSITY OF ART AND DESIGN"]
[null,null,null,null,"OFFICE OF THE PREMIER","EMPLOYERS' ADVISORS OFFICE"]
[null,null,null,null,"OFFICE OF THE REPRESENTATIVE FOR CHILDREN AND YOUTH","EMPLOYMENT STANDARDS"]
[null,null,null,null,"OIL AND GAS COMMISSION","ENRIGHT, DON"]
[null,null,null,null,"PEACE REGION INTERNET SOCIETY","ENVIRONMENT CANADA"]
[null,null,null,null,"PENTICTON & DISTRICT MULTICULTURAL SOCIETY","ENVIRONMENTAL ASSESSMENT OFFICE"]
[null,null,null,null,"PRINCE GEORGE & DISTRICT ELIZABETH FRY SOCIETY","EVERYWOMAN'S HEALTH CENTRE"]
[null,null,null,null,"PROVINCIAL HEALTH SERVICES AUTHORITY","FINANCIAL INSTITUTIONS COMMISSION"]
[null,null,null,null,"PROVINCIAL RENTAL HOUSING CORPORATION","FINANCIAL SERVICES"]
[null,null,null,null,"PUBLIC SAFETY AND SOLICITOR GENERAL","FORENSIC LAB"]
[null,null,null,null,"PUBLIC WORKS AND GOVERNMENT SERVICES CANADA","FORENSIC PSYCHIATRIC SERVICES NON TAXABLE"]
[null,null,null,null,"REGIONAL DISTRICT OF CENTRAL KOOTENAY","FORENSIC PSYCHIATRIC SERVICES TAXABLE"]
[null,null,null,null,"REGIONAL DISTRICT OF PEACE RIVER","FOREST PRACTICES BOARD"]
[null,null,null,null,"ROGERS WIRELESS INC, ROGERS COMMUNICATIONS SANS FIL","FRASER"]
[null,null,null,null,"ROYAL B C MUSEUM","GAMING POLICY & ENFORCEMENT"]
[null,null,null,null,"ROYAL CANADIAN MOUNTED POLICE","GENDER EQUITY"]
[null,null,null,null,"SAANICH PENINSULA CHAMBER OF COMMERCE","GOVERNMENT COMMUNICATIONS AND PUBLIC ENGAGEMENT"]
[null,null,null,null,"SBA CANADA, ULC","GOVERNMENT HOUSE"]
[null,null,null,null,"SHAW CABLESYSTEMS LIMITED","GREATER VICTORIA HARBOUR AUTHORITY"]
[null,null,null,null,"SOCIAL DEVELOPMENT AND POVERTY REDUCTION","GREATER VICTORIA PUBLIC LIBRARY"]
[null,null,null,null,"T & S COMMUNICATIONS LTD","GREATER VICTORIA WOMEN'S SHELTER SOCIETY"]
[null,null,null,null,"TELIPHONE NAVIGATA-WESTEL COMMUNICATION INC","HEADQUARTERS"]
[null,null,null,null,"TELUS COMMUNICATIONS INC","HEADQUARTERS/PAC"]
[null,null,null,null,"THE CORPORATION OF THE DISTRICT OF SAANICH","HEALTHLINK BC"]
[null,null,null,null,"TOURISM, ARTS AND CULTURE","HOUSING"]
[null,null,null,null,"TRANSPORTATION AND INFRASTRUCTURE","HOUSING AND PROPERTY DEPT."]
[null,null,null,null,"UNIVERSITY OF BRITISH COLUMBIA","HUTDA LAKE HOLDING A/C"]
[null,null,null,null,"UNIVERSITY OF NORTHERN B C","INDEPENDENT INVESTIGATIONS OFFICE"]
[null,null,null,null,"VALLEY MEDICAL LABORATORIES","INDUSTRY TRAINING AUTHORITY"]
[null,null,null,null,"VANCOUVER COASTAL HEALTH AUTHORITY","INFORMATION SERVICES"]
[null,null,null,null,"VANCOUVER ISLAND HEALTH AUTHORITY","INTERGOVERNMENTAL RELATIONS SECRETARIAT"]
[null,null,null,null,"VANCOUVER ISLAND SOUTH FILM & MEDIA COMMISSION","INTERIOR"]
[null,null,null,null,"VANCOUVER POLICE DEPARTMENT","INTERIOR CFD"]
[null,null,null,null,"VERNON WOMEN'S TRANSITION HOUSE SOCIETY","INTERIOR HEALTH AUTHORITY"]
[null,null,null,null,"VICTORIA BOWMEN ASSOCIATION","ISM"]
[null,null,null,null,"VICTORIA HIGHLAND GAMES ASSOCIATION","JAIL & DETENTION"]
[null,null,null,null,"VITAL STATISTICS AGENCY","JAMES BAY MARKET SOCIETY"]
[null,null,null,null,"WADDINGTON BUILDING STRATA CORPORATION","JUDICIARY"]
[null,null,null,null,"WORKERS' COMPENSATION BOARD DOING BUSINESS AS WORKSAFEBC","JUSTICE SERVICES"]
[null,null,null,null,"YELLOWHEAD ROAD & BRIDGE (FORT GEORGE) LTD","KAMLOOPS FOOD POLICY COUNCIL"]
[null,null,null,null,"YELLOWHEAD ROAD & BRIDGE (KOOTENAY) LTD","LABOUR HEADQUARTERS"]
[null,null,null,null,"Vacancy","LABOUR MARKET"]
[null,null,null,null,null,"LAND TITLE & SURVEY AUTHORITY OF B C"]
[null,null,null,null,null,"LAWYERS' INN"]
[null,null,null,null,null,"LEGAL SERVICES"]
[null,null,null,null,null,"LEGISLATIVE FACILITY SERVICES"]
[null,null,null,null,null,"LICENSING & COMPLIANCE"]
[null,null,null,null,null,"LIQUOR CANNABIS REGULATION"]
[null,null,null,null,null,"LOWER MAINLAND DISTRICT"]
[null,null,null,null,null,"LUMBY AND DISTRICT HEALTH SERVICES SOCIETY"]
[null,null,null,null,null,"MAJOR INVESTMENT OFFICE"]
[null,null,null,null,null,"MARITIME MUSEUM"]
[null,null,null,null,null,"MASTER OF ENGINEERING PROGRAM"]
[null,null,null,null,null,"MINISTRY HEADQUARTERS"]
[null,null,null,null,null,"MINISTRY OPERATIONS"]
[null,null,null,null,null,"MORGUARD - VANCOUVER OFFICE"]
[null,null,null,null,null,"NATIVE COURTWORKER AND COUNSELLING ASSOCIATION OF BRITISH COLUMBIA"]
[null,null,null,null,null,"NDAZKHOT'EN PROPERTIES LTD"]
[null,null,null,null,null,"NEWMAN & WRIGHT THEATRE COMPANY"]
[null,null,null,null,null,"Normal"]
[null,null,null,null,null,"NORTH"]
[null,null,null,null,null,"NORTH CFD"]
[null,null,null,null,null,"NORTH ISLAND"]
[null,null,null,null,null,"NORTHEAST HEALTH SERVICES DELIVERY AREA"]
[null,null,null,null,null,"NORTHERN DISTRICT"]
[null,null,null,null,null,"NORTHERN INTERIOR HEALTH SERVICE DELIVERY AREA"]
[null,null,null,null,null,"NORTHWEST HEALTH SERVICE DELIVERY AREA"]
[null,null,null,null,null,"NPC TRUST"]
[null,null,null,null,null,"NROD COAST"]
[null,null,null,null,null,"NROD NORTH"]
[null,null,null,null,null,"NROD SOUTH"]
[null,null,null,null,null,"OCIO ENTERPRISE SERVICES"]
[null,null,null,null,null,"OFFICE OF THE CHIEF INFORMATION OFFICE (CIO)"]
[null,null,null,null,null,"OFFICE OF THE COMPTROLLER GENERAL"]
[null,null,null,null,null,"OFFICE OF THE OFFICIAL OPPOSITION"]
[null,null,null,null,null,"OIL AND GAS COMMISSION"]
[null,null,null,null,null,"ORGANIZATION DEVELOPMENT TEAM"]
[null,null,null,null,null,"PACIFIC REGION TRAINING CENTRE"]
[null,null,null,null,null,"PEACE REGION INTERNET SOCIETY"]
[null,null,null,null,null,"PENTICTON & DISTRICT MULTICULTURAL SOCIETY"]
[null,null,null,null,null,"POLICING & SECURITY"]
[null,null,null,null,null,"POLICY AND LEGISLATION"]
[null,null,null,null,null,"PREVENTION LOSS MANAGEMENT SERVICES"]
[null,null,null,null,null,"PRINCE GEORGE & DISTRICT ELIZABETH FRY SOCIETY"]
[null,null,null,null,null,"PRIVATE TRAINING INSTITUTIONS"]
[null,null,null,null,null,"PROCUREMENT AND SUPPLY"]
[null,null,null,null,null,"PROVINCIAL OFFICE"]
[null,null,null,null,null,"PROVINCIAL RENTAL HOUSING CORPORATION"]
[null,null,null,null,null,"PROVINCIAL SERVICES"]
[null,null,null,null,null,"PROVINCIAL TREASURY"]
[null,null,null,null,null,"PSSG EXECUTIVE BRANCH"]
[null,null,null,null,null,"PUBLIC GUARDIAN & TRUSTEE OF BC"]
[null,null,null,null,null,"PUBLIC HEALTH"]
[null,null,null,null,null,"PUBLIC SECTOR EMPLOYERS COUNCIL"]
[null,null,null,null,null,"PUBLIC WORKS AND GOVERNMENT SERVICES CANADA"]
[null,null,null,null,null,"REAL PROPERTY DIVISION"]
[null,null,null,null,null,"REGIONAL DISTRICT OF CENTRAL KOOTENAY"]
[null,null,null,null,null,"REGIONAL DISTRICT OF PEACE RIVER"]
[null,null,null,null,null,"RESOURCE DEV & GEOSCIENCE BRANCH"]
[null,null,null,null,null,"REVENUE DIVISION"]
[null,null,null,null,null,"RISK MANAGEMENT"]
[null,null,null,null,null,"ROAD SAFETY BC"]
[null,null,null,null,null,"ROGERS WIRELESS INC, ROGERS COMMUNICATIONS SANS FIL"]
[null,null,null,null,null,"ROYAL B C MUSEUM"]
[null,null,null,null,null,"ROYAL CANADIAN LEGION"]
[null,null,null,null,null,"SAANICH PENINSULA CHAMBER OF COMMERCE"]
[null,null,null,null,null,"SBA CANADA, ULC"]
[null,null,null,null,null,"SERVICE BC CENTRES"]
[null,null,null,null,null,"SHAW CABLESYSTEMS G.P."]
[null,null,null,null,null,"SMALL BUSINESS"]
[null,null,null,null,null,"SMALL BUSINESS, REGULATORY & SERVICE IMPROVEMENT"]
[null,null,null,null,null,"SOUTH EAST DISTRICT"]
[null,null,null,null,null,"SOUTH ISLAND"]
[null,null,null,null,null,"SUPPORT SERVICES"]
[null,null,null,null,null,"T & S COMMUNICATIONS LTD"]
[null,null,null,null,null,"TEACHER REGULATION BRANCH"]
[null,null,null,null,null,"TECHNOLOGY AND INNOVATION"]
[null,null,null,null,null,"TELIPHONE NAVIGATA-WESTEL COMMUNICATION INC"]
[null,null,null,null,null,"TELUS COMMUNICATIONS INC"]
[null,null,null,null,null,"THE CORPORATION OF THE DISTRICT OF SAANICH"]
[null,null,null,null,null,"TREASURY BOARD STAFF"]
[null,null,null,null,null,"UNIVERSITY ENDOWMENT (MA)"]
[null,null,null,null,null,"UNIVERSITY OF BRITISH COLUMBIA"]
[null,null,null,null,null,"VALLEY MEDICAL LABORATORIES"]
[null,null,null,null,null,"VANCOUVER CABINET OFFICES"]
[null,null,null,null,null,"VANCOUVER COASTAL"]
[null,null,null,null,null,"VANCOUVER ISLAND"]
[null,null,null,null,null,"VANCOUVER ISLAND CFD"]
[null,null,null,null,null,"VANCOUVER ISLAND DISTRICT"]
[null,null,null,null,null,"VANCOUVER ISLAND SOUTH FILM & MEDIA COMMISSION"]
[null,null,null,null,null,"VANCOUVER/COASTAL"]
[null,null,null,null,null,"VANCOUVER/RICHMOND"]
[null,null,null,null,null,"VC-OSOYOOS"]
[null,null,null,null,null,"VERNON WOMEN'S TRANSITION HOUSE SOCIETY"]
[null,null,null,null,null,"VICTORIA BOWMEN ASSOCIATION"]
[null,null,null,null,null,"VICTORIA HIGHLAND GAMES ASSOCIATION"]
[null,null,null,null,null,"WADDINGTON BUILDING STRATA CORPORATION"]
[null,null,null,null,null,"WILDFIRE SERVICE"]
[null,null,null,null,null,"WORKERS' ADVISORS OFFICE"]
[null,null,null,null,null,"WORKERS COMPENSATION APPEAL TRIBUNAL"]
[null,null,null,null,null,"WORKERS' COMPENSATION BOARD DOING BUSINESS AS WORKSAFEBC"]
[null,null,null,null,null,"WORKFORCE DEVELOPMENT DIVISION"]
[null,null,null,null,null,"WORKPLACE INNOVATION DIVISION"]
[null,null,null,null,null,"YELLOWHEAD ROAD & BRIDGE (FORT GEORGE) LTD"]
[null,null,null,null,null,"YELLOWHEAD ROAD & BRIDGE (KOOTENAY) LTD"]
[null,null,null,null,null,"N/A"]